Organisation Name,Organisation Code,Date Paid,Transaction Number,Amount,Supplier Name,Supplier ID,Supplier post code (first 4 digits),Directorate,Service Area,General Ledger code Description,BVACOP class,Revenue/ Capital Spend
Wiltshire, http://opendatacommunities.org/id/unitary-authority/wiltshire,04/09/2018,1902194983,8795.00,1st Choice Stairlifts ,113095,SN11,Wiltshire Council,Wiltshire Council,Other Contracts,Third Party Payments,CAPITAL
Wiltshire, http://opendatacommunities.org/id/unitary-authority/wiltshire,12/09/2018,1902198434,5423.00,1st Choice Stairlifts ,113095,SN11,Wiltshire Council,Wiltshire Council,Other Contracts,Third Party Payments,CAPITAL
Wiltshire, http://opendatacommunities.org/id/unitary-authority/wiltshire,18/09/2018,1902201028,1355.00,1st Choice Stairlifts ,113095,SN11,Wiltshire Council,Wiltshire Council,Other Contracts,Third Party Payments,CAPITAL
Wiltshire, http://opendatacommunities.org/id/unitary-authority/wiltshire,28/09/2018,5107268577,650.25,21st Century Building Services ,143369,BS3 ,Wiltshire Council,Wiltshire Council,Buildings Minor Alterations,Premises Related,CAPITAL
Wiltshire, http://opendatacommunities.org/id/unitary-authority/wiltshire,05/09/2018,5107251568,429.31,24-7 Staffing ,140662,SN15,Community Services,Bradbury Manor Resp,Agency Staff,Employee Related,REVENUE
Wiltshire, http://opendatacommunities.org/id/unitary-authority/wiltshire,13/09/2018,5107258878,419.61,24-7 Staffing ,140662,SN15,Community Services,Bradbury Manor Resp,Agency Staff,Employee Related,REVENUE
Wiltshire, http://opendatacommunities.org/id/unitary-authority/wiltshire,27/09/2018,5107259487,475.68,24-7 Staffing ,140662,SN15,Community Services,Bradbury Manor Resp,Agency Staff,Employee Related,REVENUE
Wiltshire, http://opendatacommunities.org/id/unitary-authority/wiltshire,06/09/2018,5107259577,1822.65,24-7 Staffing ,140662,SN15,Community Services,The Medley Day Care,Agency Staff,Employee Related,REVENUE
Wiltshire, http://opendatacommunities.org/id/unitary-authority/wiltshire,10/09/2018,5107259797,461.15,24-7 Staffing ,140662,SN15,Community Services,Bradbury Manor Resp,Agency Staff,Employee Related,REVENUE
Wiltshire, http://opendatacommunities.org/id/unitary-authority/wiltshire,11/09/2018,5107260077,1028.90,24-7 Staffing ,140662,SN15,Community Services,Chippenham Respite,Agency Staff,Employee Related,REVENUE
Wiltshire, http://opendatacommunities.org/id/unitary-authority/wiltshire,11/09/2018,5107260078,743.82,24-7 Staffing ,140662,SN15,Community Services,Chippenham Respite,Agency Staff,Employee Related,REVENUE
Wiltshire, http://opendatacommunities.org/id/unitary-authority/wiltshire,13/09/2018,5107260079,420.68,24-7 Staffing ,140662,SN15,Community Services,Chippenham Respite,Agency Staff,Employee Related,REVENUE
Wiltshire, http://opendatacommunities.org/id/unitary-authority/wiltshire,19/09/2018,1902195760,24720.00,2degrees Limited ,147351,OX2 ,Resources,Facilities Managemen,Professional Fees,Supplies and Services,REVENUE
Wiltshire, http://opendatacommunities.org/id/unitary-authority/wiltshire,25/09/2018,5107260019,1306.75,4 Seasons Beer Tent Co Ningbo ,147322,LL13,Resources,Registration Service,Equipment Purchase,Supplies and Services,REVENUE
Wiltshire, http://opendatacommunities.org/id/unitary-authority/wiltshire,03/09/2018,1902194780,1267.20,A G Minibuses Ltd ,100878,BA12,Neighbourhood & Planning,SEN Secondary,Transport Contracts,Third Party Payments,REVENUE
Wiltshire, http://opendatacommunities.org/id/unitary-authority/wiltshire,03/09/2018,1902194780,1900.80,A G Minibuses Ltd ,100878,BA12,Neighbourhood & Planning,SEN Primary,Transport Contracts,Third Party Payments,REVENUE
Wiltshire, http://opendatacommunities.org/id/unitary-authority/wiltshire,03/09/2018,1902194783,1988.79,A G Minibuses Ltd ,100878,BA12,Neighbourhood & Planning,Mainstream Primary,Transport Contracts,Third Party Payments,REVENUE
Wiltshire, http://opendatacommunities.org/id/unitary-authority/wiltshire,03/09/2018,1902194787,1663.50,A G Minibuses Ltd ,100878,BA12,Neighbourhood & Planning,SEN Secondary,Transport Contracts,Third Party Payments,REVENUE
Wiltshire, http://opendatacommunities.org/id/unitary-authority/wiltshire,05/09/2018,1902196718,2040.00,A G Minibuses Ltd ,100878,BA12,Neighbourhood & Planning,Mainstream Primary,Transport Contracts,Third Party Payments,REVENUE
Wiltshire, http://opendatacommunities.org/id/unitary-authority/wiltshire,07/09/2018,1902197373,564.61,A G Minibuses Ltd ,100878,BA12,Community Services,West Care Packages,Transport Contracts,Third Party Payments,REVENUE
Wiltshire, http://opendatacommunities.org/id/unitary-authority/wiltshire,07/09/2018,1902197374,1988.79,A G Minibuses Ltd ,100878,BA12,Neighbourhood & Planning,Mainstream Primary,Transport Contracts,Third Party Payments,REVENUE
Wiltshire, http://opendatacommunities.org/id/unitary-authority/wiltshire,07/09/2018,1902197375,651.00,A G Minibuses Ltd ,100878,BA12,Community Services,West Care Packages,Transport Contracts,Third Party Payments,REVENUE
Wiltshire, http://opendatacommunities.org/id/unitary-authority/wiltshire,07/09/2018,1902197384,1907.56,A G Minibuses Ltd ,100878,BA12,Neighbourhood & Planning,Mainstream Primary,Transport Contracts,Third Party Payments,REVENUE
Wiltshire, http://opendatacommunities.org/id/unitary-authority/wiltshire,13/09/2018,1902199440,997.50,A G Minibuses Ltd ,100878,BA12,Neighbourhood & Planning,Mainstream Primary,Transport Contracts,Third Party Payments,REVENUE
Wiltshire, http://opendatacommunities.org/id/unitary-authority/wiltshire,13/09/2018,1902199440,3321.72,A G Minibuses Ltd ,100878,BA12,Neighbourhood & Planning,Public Transport,Transport Contracts,Third Party Payments,REVENUE
Wiltshire, http://opendatacommunities.org/id/unitary-authority/wiltshire,13/09/2018,1902199441,1583.33,A G Minibuses Ltd ,100878,BA12,Neighbourhood & Planning,Mainstream Secondary,Transport Contracts,Third Party Payments,REVENUE
Wiltshire, http://opendatacommunities.org/id/unitary-authority/wiltshire,13/09/2018,1902199441,4152.54,A G Minibuses Ltd ,100878,BA12,Neighbourhood & Planning,Public Transport,Transport Contracts,Third Party Payments,REVENUE
Wiltshire, http://opendatacommunities.org/id/unitary-authority/wiltshire,11/09/2018,1902197717,476.00,A2B Taxis (Dorset) ,143353,SP8 ,Neighbourhood & Planning,Mainstream Secondary,Transport Contracts,Third Party Payments,REVENUE
Wiltshire, http://opendatacommunities.org/id/unitary-authority/wiltshire,11/09/2018,1902197720,720.00,A2B Taxis (Dorset) ,143353,SP8 ,Community Services,West Care Packages,Transport Contracts,Third Party Payments,REVENUE
Wiltshire, http://opendatacommunities.org/id/unitary-authority/wiltshire,17/09/2018,1902199974,5716.40,AB Learning and Education ,125864,SN8 ,Children & Education,Free Enttlmnt 3 & 4y,Childcare Free Entitlement Early Years,Supplies and Services,REVENUE
Wiltshire, http://opendatacommunities.org/id/unitary-authority/wiltshire,17/09/2018,1902199975,558.60,AB Learning and Education ,125864,SN8 ,Children & Education,Free Entitlement 2 Y,Childcare Free Entitlement Early Years,Supplies and Services,REVENUE
Wiltshire, http://opendatacommunities.org/id/unitary-authority/wiltshire,12/09/2018,1902198883,1188.00,Abbey Taxis (Swindon) Ltd ,100920,SN2 ,Neighbourhood & Planning,SEN Primary,Transport Contracts,Third Party Payments,REVENUE
Wiltshire, http://opendatacommunities.org/id/unitary-authority/wiltshire,12/09/2018,1902198885,2130.00,Abbey Taxis (Swindon) Ltd ,100920,SN2 ,Neighbourhood & Planning,SEN Secondary,Transport Contracts,Third Party Payments,REVENUE
Wiltshire, http://opendatacommunities.org/id/unitary-authority/wiltshire,17/09/2018,1902199828,6114.58,ABC Day Nursery 1027 ,110028,SN12,Children & Education,Free Enttlmnt 3 & 4y,Childcare Free Entitlement Early Years,Supplies and Services,REVENUE
Wiltshire, http://opendatacommunities.org/id/unitary-authority/wiltshire,17/09/2018,1902199829,279.30,ABC Day Nursery 1027 ,110028,SN12,Children & Education,Free Entitlement 2 Y,Childcare Free Entitlement Early Years,Supplies and Services,REVENUE
Wiltshire, http://opendatacommunities.org/id/unitary-authority/wiltshire,17/09/2018,1902199773,13248.80,ABC Nursery ,143051,SN13,Children & Education,Free Enttlmnt 3 & 4y,Childcare Free Entitlement Early Years,Supplies and Services,REVENUE
Wiltshire, http://opendatacommunities.org/id/unitary-authority/wiltshire,17/09/2018,1902199774,824.60,ABC Nursery ,143051,SN13,Children & Education,Free Entitlement 2 Y,Childcare Free Entitlement Early Years,Supplies and Services,REVENUE
Wiltshire, http://opendatacommunities.org/id/unitary-authority/wiltshire,12/09/2018,5107260503,1926.60,ABLE ,101029,BA14,Community Services,MH Commissioned Cont,Grants Expenditure,Supplies and Services,REVENUE
Wiltshire, http://opendatacommunities.org/id/unitary-authority/wiltshire,12/09/2018,5107260504,1926.60,ABLE ,101029,BA14,Community Services,MH Commissioned Cont,Grants Expenditure,Supplies and Services,REVENUE
Wiltshire, http://opendatacommunities.org/id/unitary-authority/wiltshire,12/09/2018,5107260505,1169.23,ABLE ,101029,BA14,Community Services,MH Commissioned Cont,Grants Expenditure,Supplies and Services,REVENUE
Wiltshire, http://opendatacommunities.org/id/unitary-authority/wiltshire,12/09/2018,5107260506,1169.23,ABLE ,101029,BA14,Community Services,MH Commissioned Cont,Grants Expenditure,Supplies and Services,REVENUE
Wiltshire, http://opendatacommunities.org/id/unitary-authority/wiltshire,04/09/2018,1902195677,3520.00,Academy of Play & Child Psychothera ,131964,TN22,Resources,HR Central Training,Learning Loans for staff,Balance Sheet Accounts,REVENUE
Wiltshire, http://opendatacommunities.org/id/unitary-authority/wiltshire,10/09/2018,1902197520,320.00,Ace Taxis Warminster Ace Taxis,131208,BA12,Community Services,MH OP South Locality,Transport Contracts,Third Party Payments,REVENUE
Wiltshire, http://opendatacommunities.org/id/unitary-authority/wiltshire,10/09/2018,5107259793,340.00,Acer Tree Surgeons Ltd ,113296,BA13,Neighbourhood & Planning,Countryside,Grounds Maintenance,Premises Related,REVENUE
Wiltshire, http://opendatacommunities.org/id/unitary-authority/wiltshire,10/09/2018,5107259795,800.00,Acer Tree Surgeons Ltd ,113296,BA13,Neighbourhood & Planning,Countryside,Grounds Maintenance,Premises Related,REVENUE
Wiltshire, http://opendatacommunities.org/id/unitary-authority/wiltshire,10/09/2018,5107259945,360.00,Acer Tree Surgeons Ltd ,113296,BA13,Neighbourhood & Planning,Countryside,Grounds Maintenance,Premises Related,REVENUE
Wiltshire, http://opendatacommunities.org/id/unitary-authority/wiltshire,12/09/2018,5107260064,780.00,Action For Children ,110045,WD18,Children & Education,AimHighDisabldChild,Other Social & Welfare Costs,Third Party Payments,REVENUE
Wiltshire, http://opendatacommunities.org/id/unitary-authority/wiltshire,12/09/2018,5107260065,15645.00,Action For Children ,110045,WD18,Children & Education,AimHighDisabldChild,Other Social & Welfare Costs,Third Party Payments,REVENUE
Wiltshire, http://opendatacommunities.org/id/unitary-authority/wiltshire,12/09/2018,5107260066,15905.00,Action For Children ,110045,WD18,Children & Education,AimHighDisabldChild,Other Social & Welfare Costs,Third Party Payments,REVENUE
Wiltshire, http://opendatacommunities.org/id/unitary-authority/wiltshire,12/09/2018,5107260067,2290.00,Action For Children ,110045,WD18,Children & Education,AimHighDisabldChild,Other Social & Welfare Costs,Third Party Payments,REVENUE
Wiltshire, http://opendatacommunities.org/id/unitary-authority/wiltshire,18/09/2018,5107264331,810.00,Action on Hearing Loss ,112215,N1 1,Community Services,Disabilities Comm Ct,Grants Expenditure,Supplies and Services,REVENUE
Wiltshire, http://opendatacommunities.org/id/unitary-authority/wiltshire,04/09/2018,5107250989,525.54,Adams Morey Ltd ,110053,SP2 ,Neighbourhood & Planning,Fleet,Vehicle Parts,Transport Related,REVENUE
Wiltshire, http://opendatacommunities.org/id/unitary-authority/wiltshire,04/09/2018,5107251000,573.77,Adams Morey Ltd ,110053,SP2 ,Neighbourhood & Planning,Fleet,Vehicle Parts,Transport Related,REVENUE
Wiltshire, http://opendatacommunities.org/id/unitary-authority/wiltshire,11/09/2018,5107257391,265.00,Adams Morey Ltd ,110053,SP2 ,Neighbourhood & Planning,Fleet,Vehicle Parts,Transport Related,REVENUE
Wiltshire, http://opendatacommunities.org/id/unitary-authority/wiltshire,27/09/2018,5107268386,865.70,Adams Morey Ltd ,110053,SP2 ,Neighbourhood & Planning,Fleet,Vehicle Parts,Transport Related,REVENUE
Wiltshire, http://opendatacommunities.org/id/unitary-authority/wiltshire,05/09/2018,1902196737,3467.50,Adrains Engineering Psv ,100848,SN15,Neighbourhood & Planning,Mainstream Secondary,Transport Contracts,Third Party Payments,REVENUE
Wiltshire, http://opendatacommunities.org/id/unitary-authority/wiltshire,10/09/2018,1902197496,3230.00,Adrains Engineering Psv ,100848,SN15,Neighbourhood & Planning,Mainstream Secondary,Transport Contracts,Third Party Payments,REVENUE
Wiltshire, http://opendatacommunities.org/id/unitary-authority/wiltshire,10/09/2018,1902197497,665.47,Adrains Engineering Psv ,100848,SN15,Neighbourhood & Planning,Mainstream Secondary,Transport Contracts,Third Party Payments,REVENUE
Wiltshire, http://opendatacommunities.org/id/unitary-authority/wiltshire,10/09/2018,1902197498,702.20,Adrains Engineering Psv ,100848,SN15,Neighbourhood & Planning,Mainstream Primary,Transport Contracts,Third Party Payments,REVENUE
Wiltshire, http://opendatacommunities.org/id/unitary-authority/wiltshire,10/09/2018,1902197499,2919.35,Adrains Engineering Psv ,100848,SN15,Neighbourhood & Planning,Mainstream Secondary,Transport Contracts,Third Party Payments,REVENUE
Wiltshire, http://opendatacommunities.org/id/unitary-authority/wiltshire,10/09/2018,1902197500,3077.68,Adrains Engineering Psv ,100848,SN15,Neighbourhood & Planning,Mainstream Secondary,Transport Contracts,Third Party Payments,REVENUE
Wiltshire, http://opendatacommunities.org/id/unitary-authority/wiltshire,10/09/2018,1902197501,352.35,Adrains Engineering Psv ,100848,SN15,Neighbourhood & Planning,Public Transport,Transport Contracts,Third Party Payments,REVENUE
Wiltshire, http://opendatacommunities.org/id/unitary-authority/wiltshire,10/09/2018,1902197501,3333.33,Adrains Engineering Psv ,100848,SN15,Neighbourhood & Planning,Mainstream Primary,Transport Contracts,Third Party Payments,REVENUE
Wiltshire, http://opendatacommunities.org/id/unitary-authority/wiltshire,10/09/2018,1902197503,3333.33,Adrains Engineering Psv ,100848,SN15,Neighbourhood & Planning,Mainstream Secondary,Transport Contracts,Third Party Payments,REVENUE
Wiltshire, http://opendatacommunities.org/id/unitary-authority/wiltshire,10/09/2018,1902197503,3447.42,Adrains Engineering Psv ,100848,SN15,Neighbourhood & Planning,Public Transport,Transport Contracts,Third Party Payments,REVENUE
Wiltshire, http://opendatacommunities.org/id/unitary-authority/wiltshire,10/09/2018,1902197505,2499.75,Adrains Engineering Psv ,100848,SN15,Neighbourhood & Planning,Mainstream Secondary,Transport Contracts,Third Party Payments,REVENUE
Wiltshire, http://opendatacommunities.org/id/unitary-authority/wiltshire,18/09/2018,5107256620,485.00,ADSO ,143176,BA22,Resources,Democracy & Perform,Conference Fees,Supplies and Services,REVENUE
Wiltshire, http://opendatacommunities.org/id/unitary-authority/wiltshire,19/09/2018,5107265033,12499.58,Advantedge Commercial Finance Ltd ,146853,OX10,Neighbourhood & Planning,Health Improvement,Public Health Commissioning,Supplies and Services,REVENUE
Wiltshire, http://opendatacommunities.org/id/unitary-authority/wiltshire,27/09/2018,5107266061,12499.58,Advantedge Commercial Finance Ltd ,146853,OX10,Neighbourhood & Planning,Health Improvement,Public Health Commissioning,Supplies and Services,REVENUE
Wiltshire, http://opendatacommunities.org/id/unitary-authority/wiltshire,19/09/2018,1902201459,660.00,Ahakc Enterprise LTd t/a La Lupa ,147469,SP4 ,Resources,Salisbury Recovery,Grants Expenditure,Supplies and Services,REVENUE
Wiltshire, http://opendatacommunities.org/id/unitary-authority/wiltshire,03/09/2018,1902194785,443.70,Akcess Ltd ,101402,SN2 ,Neighbourhood & Planning,Mainstream Secondary,Transport Contracts,Third Party Payments,REVENUE
Wiltshire, http://opendatacommunities.org/id/unitary-authority/wiltshire,03/09/2018,1902194785,1331.09,Akcess Ltd ,101402,SN2 ,Neighbourhood & Planning,SEN Secondary,Transport Contracts,Third Party Payments,REVENUE
Wiltshire, http://opendatacommunities.org/id/unitary-authority/wiltshire,05/09/2018,1902196710,438.00,Akcess Ltd ,101402,SN2 ,Community Services,North Care Packages,Transport Contracts,Third Party Payments,REVENUE
Wiltshire, http://opendatacommunities.org/id/unitary-authority/wiltshire,05/09/2018,1902196717,1833.17,Akcess Ltd ,101402,SN2 ,Neighbourhood & Planning,Mainstream Primary,Transport Contracts,Third Party Payments,REVENUE
Wiltshire, http://opendatacommunities.org/id/unitary-authority/wiltshire,05/09/2018,1902196719,1786.63,Akcess Ltd ,101402,SN2 ,Neighbourhood & Planning,Mainstream Secondary,Transport Contracts,Third Party Payments,REVENUE
Wiltshire, http://opendatacommunities.org/id/unitary-authority/wiltshire,05/09/2018,1902196720,1682.45,Akcess Ltd ,101402,SN2 ,Neighbourhood & Planning,Mainstream Secondary,Transport Contracts,Third Party Payments,REVENUE
Wiltshire, http://opendatacommunities.org/id/unitary-authority/wiltshire,05/09/2018,1902196721,890.40,Akcess Ltd ,101402,SN2 ,Neighbourhood & Planning,Mainstream Primary,Transport Contracts,Third Party Payments,REVENUE
Wiltshire, http://opendatacommunities.org/id/unitary-authority/wiltshire,05/09/2018,1902196721,1017.60,Akcess Ltd ,101402,SN2 ,Neighbourhood & Planning,Mainstream Secondary,Transport Contracts,Third Party Payments,REVENUE
Wiltshire, http://opendatacommunities.org/id/unitary-authority/wiltshire,05/09/2018,1902196722,444.00,Akcess Ltd ,101402,SN2 ,Neighbourhood & Planning,SEN Rechargable Exp,Transport Contracts,Third Party Payments,REVENUE
Wiltshire, http://opendatacommunities.org/id/unitary-authority/wiltshire,05/09/2018,1902196722,11960.39,Akcess Ltd ,101402,SN2 ,Neighbourhood & Planning,SEN Secondary,Transport Contracts,Third Party Payments,REVENUE
Wiltshire, http://opendatacommunities.org/id/unitary-authority/wiltshire,05/09/2018,1902196722,11960.39,Akcess Ltd ,101402,SN2 ,Neighbourhood & Planning,SEN 16+ Secondary,Transport Contracts,Third Party Payments,REVENUE
Wiltshire, http://opendatacommunities.org/id/unitary-authority/wiltshire,05/09/2018,1902196722,15947.20,Akcess Ltd ,101402,SN2 ,Neighbourhood & Planning,SEN Primary,Transport Contracts,Third Party Payments,REVENUE
Wiltshire, http://opendatacommunities.org/id/unitary-authority/wiltshire,05/09/2018,1902196723,2340.00,Akcess Ltd ,101402,SN2 ,Neighbourhood & Planning,Mainstream Primary,Transport Contracts,Third Party Payments,REVENUE
Wiltshire, http://opendatacommunities.org/id/unitary-authority/wiltshire,05/09/2018,1902196727,1022.25,Akcess Ltd ,101402,SN2 ,Neighbourhood & Planning,Mainstream Primary,Transport Contracts,Third Party Payments,REVENUE
Wiltshire, http://opendatacommunities.org/id/unitary-authority/wiltshire,05/09/2018,1902196728,1022.25,Akcess Ltd ,101402,SN2 ,Neighbourhood & Planning,Mainstream Primary,Transport Contracts,Third Party Payments,REVENUE
Wiltshire, http://opendatacommunities.org/id/unitary-authority/wiltshire,05/09/2018,1902196729,2052.80,Akcess Ltd ,101402,SN2 ,Neighbourhood & Planning,Mainstream Secondary,Transport Contracts,Third Party Payments,REVENUE
Wiltshire, http://opendatacommunities.org/id/unitary-authority/wiltshire,05/09/2018,1902196730,1849.97,Akcess Ltd ,101402,SN2 ,Neighbourhood & Planning,Mainstream Primary,Transport Contracts,Third Party Payments,REVENUE
Wiltshire, http://opendatacommunities.org/id/unitary-authority/wiltshire,05/09/2018,1902196731,3097.19,Akcess Ltd ,101402,SN2 ,Neighbourhood & Planning,Mainstream Secondary,Transport Contracts,Third Party Payments,REVENUE
Wiltshire, http://opendatacommunities.org/id/unitary-authority/wiltshire,05/09/2018,1902196732,3429.17,Akcess Ltd ,101402,SN2 ,Neighbourhood & Planning,Mainstream Secondary,Transport Contracts,Third Party Payments,REVENUE
Wiltshire, http://opendatacommunities.org/id/unitary-authority/wiltshire,05/09/2018,1902196733,1564.33,Akcess Ltd ,101402,SN2 ,Neighbourhood & Planning,Mainstream Secondary,Transport Contracts,Third Party Payments,REVENUE
Wiltshire, http://opendatacommunities.org/id/unitary-authority/wiltshire,05/09/2018,1902196734,1421.83,Akcess Ltd ,101402,SN2 ,Neighbourhood & Planning,Mainstream Secondary,Transport Contracts,Third Party Payments,REVENUE
Wiltshire, http://opendatacommunities.org/id/unitary-authority/wiltshire,05/09/2018,1902196735,2166.67,Akcess Ltd ,101402,SN2 ,Neighbourhood & Planning,Mainstream Primary,Transport Contracts,Third Party Payments,REVENUE
Wiltshire, http://opendatacommunities.org/id/unitary-authority/wiltshire,05/09/2018,1902196736,1472.50,Akcess Ltd ,101402,SN2 ,Neighbourhood & Planning,Mainstream Secondary,Transport Contracts,Third Party Payments,REVENUE
Wiltshire, http://opendatacommunities.org/id/unitary-authority/wiltshire,05/09/2018,1902196739,693.26,Akcess Ltd ,101402,SN2 ,Community Services,North Care Packages,Transport Contracts,Third Party Payments,REVENUE
Wiltshire, http://opendatacommunities.org/id/unitary-authority/wiltshire,14/09/2018,1902199611,1346.37,Akcess Ltd ,101402,SN2 ,Neighbourhood & Planning,SEN 16+ Secondary,Transport Contracts,Third Party Payments,REVENUE
Wiltshire, http://opendatacommunities.org/id/unitary-authority/wiltshire,27/09/2018,1902210036,933.33,Akcess Ltd ,101402,SN2 ,Neighbourhood & Planning,Mainstream Primary,Transport Contracts,Third Party Payments,REVENUE
Wiltshire, http://opendatacommunities.org/id/unitary-authority/wiltshire,27/09/2018,1902210036,1733.34,Akcess Ltd ,101402,SN2 ,Neighbourhood & Planning,Mainstream Secondary,Transport Contracts,Third Party Payments,REVENUE
Wiltshire, http://opendatacommunities.org/id/unitary-authority/wiltshire,03/09/2018,1902194958,38470.03,Alabare Christian Care Centre ,100837,SP2 ,Neighbourhood & Planning,Hsg Strat & Enabling,Other Contracts,Third Party Payments,REVENUE
Wiltshire, http://opendatacommunities.org/id/unitary-authority/wiltshire,28/09/2018,5107268655,1445.44,Alabare Christian Care Centre ,100837,SP2 ,Children & Education,16-25 Supp & Accom,Childrens Agency Placement,Third Party Payments,REVENUE
Wiltshire, http://opendatacommunities.org/id/unitary-authority/wiltshire,28/09/2018,5107268657,1140.80,Alabare Christian Care Centre ,100837,SP2 ,Children & Education,Supp & Safe North,Childrens Agency Placement,Third Party Payments,REVENUE
Wiltshire, http://opendatacommunities.org/id/unitary-authority/wiltshire,28/09/2018,5107268658,2045.48,Alabare Christian Care Centre ,100837,SP2 ,Children & Education,16-25 Supp & Accom,Childrens Agency Placement,Third Party Payments,REVENUE
Wiltshire, http://opendatacommunities.org/id/unitary-authority/wiltshire,28/09/2018,5107268659,990.14,Alabare Christian Care Centre ,100837,SP2 ,Children & Education,16-25 Supp & Accom,Childrens Agency Placement,Third Party Payments,REVENUE
Wiltshire, http://opendatacommunities.org/id/unitary-authority/wiltshire,28/09/2018,5107268660,1995.47,Alabare Christian Care Centre ,100837,SP2 ,Children & Education,16-25 Supp & Accom,Childrens Agency Placement,Third Party Payments,REVENUE
Wiltshire, http://opendatacommunities.org/id/unitary-authority/wiltshire,28/09/2018,5107268661,1654.42,Alabare Christian Care Centre ,100837,SP2 ,Children & Education,CiC Team North,Childrens Agency Placement,Third Party Payments,REVENUE
Wiltshire, http://opendatacommunities.org/id/unitary-authority/wiltshire,28/09/2018,5107268662,2903.14,Alabare Christian Care Centre ,100837,SP2 ,Children & Education,16-25 Supp & Accom,Childrens Agency Placement,Third Party Payments,REVENUE
Wiltshire, http://opendatacommunities.org/id/unitary-authority/wiltshire,28/09/2018,5107268664,3447.83,Alabare Christian Care Centre ,100837,SP2 ,Children & Education,16-25 Supp & Accom,Childrens Agency Placement,Third Party Payments,REVENUE
Wiltshire, http://opendatacommunities.org/id/unitary-authority/wiltshire,28/09/2018,5107268666,1716.17,Alabare Christian Care Centre ,100837,SP2 ,Children & Education,16-25 Supp & Accom,Childrens Agency Placement,Third Party Payments,REVENUE
Wiltshire, http://opendatacommunities.org/id/unitary-authority/wiltshire,28/09/2018,5107268667,1716.17,Alabare Christian Care Centre ,100837,SP2 ,Children & Education,16-25 Supp & Accom,Childrens Agency Placement,Third Party Payments,REVENUE
Wiltshire, http://opendatacommunities.org/id/unitary-authority/wiltshire,28/09/2018,5107268668,3447.83,Alabare Christian Care Centre ,100837,SP2 ,Children & Education,16-25 Supp & Accom,Childrens Agency Placement,Third Party Payments,REVENUE
Wiltshire, http://opendatacommunities.org/id/unitary-authority/wiltshire,28/09/2018,5107268670,3447.83,Alabare Christian Care Centre ,100837,SP2 ,Children & Education,16-25 Supp & Accom,Childrens Agency Placement,Third Party Payments,REVENUE
Wiltshire, http://opendatacommunities.org/id/unitary-authority/wiltshire,28/09/2018,5107268671,723.77,Alabare Christian Care Centre ,100837,SP2 ,Children & Education,Supp & Safe North,Childrens Agency Placement,Third Party Payments,REVENUE
Wiltshire, http://opendatacommunities.org/id/unitary-authority/wiltshire,04/09/2018,1902194982,4487.05,Albino Builders Ltd ,141742,BA4 ,Wiltshire Council,Wiltshire Council,Other Contracts,Third Party Payments,CAPITAL
Wiltshire, http://opendatacommunities.org/id/unitary-authority/wiltshire,17/09/2018,1902200103,5600.64,Allsorts Pre-school Nursery ,113437,SN4 ,Children & Education,Free Enttlmnt 3 & 4y,Childcare Free Entitlement Early Years,Supplies and Services,REVENUE
Wiltshire, http://opendatacommunities.org/id/unitary-authority/wiltshire,17/09/2018,1902200104,1284.78,Allsorts Pre-school Nursery ,113437,SN4 ,Children & Education,Free Entitlement 2 Y,Childcare Free Entitlement Early Years,Supplies and Services,REVENUE
Wiltshire, http://opendatacommunities.org/id/unitary-authority/wiltshire,05/09/2018,5107255750,415.00,ALLSPARES  AUTO  LTD ,110116,CF33,Neighbourhood & Planning,Fleet,Vehicle Parts,Transport Related,REVENUE
Wiltshire, http://opendatacommunities.org/id/unitary-authority/wiltshire,17/09/2018,5107262743,374.40,Alpha Chemicals ,138904,SO31,Neighbourhood & Planning,Devizes,Cleaning Materials - Buildings,Premises Related,REVENUE
Wiltshire, http://opendatacommunities.org/id/unitary-authority/wiltshire,06/09/2018,5107251566,255.00,Alpha Plus Training  and  Translati Ltd,110120,TA4 ,Children & Education,HQ Social Care,Professional Fees,Supplies and Services,REVENUE
Wiltshire, http://opendatacommunities.org/id/unitary-authority/wiltshire,13/09/2018,5107258976,410.70,Alpha Plus Training  and  Translati Ltd,110120,TA4 ,Children & Education,HQ Social Care,Professional Fees,Supplies and Services,REVENUE
Wiltshire, http://opendatacommunities.org/id/unitary-authority/wiltshire,27/09/2018,5107259692,399.00,Alpha Plus Training  and  Translati Ltd,110120,TA4 ,Resources,Refugee Programme,Publications / periodicals,Supplies and Services,REVENUE
Wiltshire, http://opendatacommunities.org/id/unitary-authority/wiltshire,27/09/2018,5107268433,264.15,Alpha Plus Training  and  Translati Ltd,110120,TA4 ,Children & Education,Supp & Safe East,Professional Fees,Supplies and Services,REVENUE
Wiltshire, http://opendatacommunities.org/id/unitary-authority/wiltshire,28/09/2018,5107268606,299.15,Alpha Plus Training  and  Translati Ltd,110120,TA4 ,Children & Education,HQ Social Care,Professional Fees,Supplies and Services,REVENUE
Wiltshire, http://opendatacommunities.org/id/unitary-authority/wiltshire,28/09/2018,5107268607,269.25,Alpha Plus Training  and  Translati Ltd,110120,TA4 ,Children & Education,HQ Social Care,Professional Fees,Supplies and Services,REVENUE
Wiltshire, http://opendatacommunities.org/id/unitary-authority/wiltshire,28/09/2018,5107268608,253.20,Alpha Plus Training  and  Translati Ltd,110120,TA4 ,Children & Education,HQ Social Care,Professional Fees,Supplies and Services,REVENUE
Wiltshire, http://opendatacommunities.org/id/unitary-authority/wiltshire,28/09/2018,5107268610,293.25,Alpha Plus Training  and  Translati Ltd,110120,TA4 ,Children & Education,HQ Social Care,Professional Fees,Supplies and Services,REVENUE
Wiltshire, http://opendatacommunities.org/id/unitary-authority/wiltshire,28/09/2018,5107268611,276.50,Alpha Plus Training  and  Translati Ltd,110120,TA4 ,Children & Education,HQ Social Care,Professional Fees,Supplies and Services,REVENUE
Wiltshire, http://opendatacommunities.org/id/unitary-authority/wiltshire,10/09/2018,1902197515,2016.00,Alpha Taxis (Tidworth) ,137541,SP9 ,Neighbourhood & Planning,SEN Primary,Transport Contracts,Third Party Payments,REVENUE
Wiltshire, http://opendatacommunities.org/id/unitary-authority/wiltshire,10/09/2018,1902197516,2016.00,Alpha Taxis (Tidworth) ,137541,SP9 ,Neighbourhood & Planning,SEN Primary,Transport Contracts,Third Party Payments,REVENUE
Wiltshire, http://opendatacommunities.org/id/unitary-authority/wiltshire,10/09/2018,1902197517,2016.00,Alpha Taxis (Tidworth) ,137541,SP9 ,Neighbourhood & Planning,SEN Primary,Transport Contracts,Third Party Payments,REVENUE
Wiltshire, http://opendatacommunities.org/id/unitary-authority/wiltshire,10/09/2018,1902197518,678.46,Alpha Taxis (Tidworth) ,137541,SP9 ,Community Services,MH OP South Locality,Transport Contracts,Third Party Payments,REVENUE
Wiltshire, http://opendatacommunities.org/id/unitary-authority/wiltshire,10/09/2018,1902197519,336.00,Alpha Taxis (Tidworth) ,137541,SP9 ,Community Services,MH OP South Locality,Transport Contracts,Third Party Payments,REVENUE
Wiltshire, http://opendatacommunities.org/id/unitary-authority/wiltshire,05/09/2018,5107259486,454.57,ALS Laboratories (UK) Ltd ,131122,WF14,Health & Wellbeing,Environmental Protec,Consumer Protection-Measurement Equipment,Supplies and Services,REVENUE
Wiltshire, http://opendatacommunities.org/id/unitary-authority/wiltshire,05/09/2018,5107259489,340.82,ALS Laboratories (UK) Ltd ,131122,WF14,Health & Wellbeing,Environmental Protec,Consumer Protection-Measurement Equipment,Supplies and Services,REVENUE
Wiltshire, http://opendatacommunities.org/id/unitary-authority/wiltshire,21/09/2018,5107266048,1800.00,ALSOprint ,146639,CR0 ,Neighbourhood & Planning,Off Street Parking,Property Maintenance,Premises Related,REVENUE
Wiltshire, http://opendatacommunities.org/id/unitary-authority/wiltshire,10/09/2018,1902187658,15028.18,Alun Griffiths Contractors Ltd ,110123,NP7 ,Wiltshire Council,Wiltshire Council,Materials,Supplies and Services,CAPITAL
Wiltshire, http://opendatacommunities.org/id/unitary-authority/wiltshire,21/09/2018,1902202698,584173.59,Alun Griffiths Contractors Ltd ,110123,NP7 ,Wiltshire Council,Wiltshire Council,Materials,Supplies and Services,CAPITAL
Wiltshire, http://opendatacommunities.org/id/unitary-authority/wiltshire,21/09/2018,1902202699,14671.57,Alun Griffiths Contractors Ltd ,110123,NP7 ,Wiltshire Council,Wiltshire Council,Materials,Supplies and Services,CAPITAL
Wiltshire, http://opendatacommunities.org/id/unitary-authority/wiltshire,13/09/2018,1902199117,3350.18,Alzheimers Support ,113451,BA14,Community Services,Area Board Marlboro,Area Board Grants,Supplies and Services,REVENUE
Wiltshire, http://opendatacommunities.org/id/unitary-authority/wiltshire,18/09/2018,5107264263,9375.00,Ameo Professional Services LLP ,137429,B80 ,Resources,Corporate Directors,Consultants Fees,Supplies and Services,REVENUE
Wiltshire, http://opendatacommunities.org/id/unitary-authority/wiltshire,12/09/2018,5107260526,531.34,Amicus Foster Care Limited ,126050,BS2 ,Children & Education,CIC Team South,Other Social & Welfare Costs,Third Party Payments,REVENUE
Wiltshire, http://opendatacommunities.org/id/unitary-authority/wiltshire,19/09/2018,5107265568,3717.30,Amicus Foster Care Limited ,126050,BS2 ,Children & Education,Ext Placement & IFA,Childrens Agency Placement,Third Party Payments,REVENUE
Wiltshire, http://opendatacommunities.org/id/unitary-authority/wiltshire,19/09/2018,5107265569,3507.30,Amicus Foster Care Limited ,126050,BS2 ,Children & Education,Ext Placement & IFA,Childrens Agency Placement,Third Party Payments,REVENUE
Wiltshire, http://opendatacommunities.org/id/unitary-authority/wiltshire,19/09/2018,5107265570,4433.70,Amicus Foster Care Limited ,126050,BS2 ,Children & Education,Ext Placement & IFA,Childrens Agency Placement,Third Party Payments,REVENUE
Wiltshire, http://opendatacommunities.org/id/unitary-authority/wiltshire,19/09/2018,5107265571,3429.00,Amicus Foster Care Limited ,126050,BS2 ,Children & Education,Ext Placement & IFA,Childrens Agency Placement,Third Party Payments,REVENUE
Wiltshire, http://opendatacommunities.org/id/unitary-authority/wiltshire,19/09/2018,5107265584,3429.00,Amicus Foster Care Limited ,126050,BS2 ,Children & Education,Ext Placement & IFA,Childrens Agency Placement,Third Party Payments,REVENUE
Wiltshire, http://opendatacommunities.org/id/unitary-authority/wiltshire,19/09/2018,5107265587,3166.80,Amicus Foster Care Limited ,126050,BS2 ,Children & Education,Ext Placement & IFA,Childrens Agency Placement,Third Party Payments,REVENUE
Wiltshire, http://opendatacommunities.org/id/unitary-authority/wiltshire,05/09/2018,1902196590,2651.69,Andover Fire and Security Ltd ,147308,SP10,Neighbourhood & Planning,Porton Science Park,Property Maintenance,Premises Related,REVENUE
Wiltshire, http://opendatacommunities.org/id/unitary-authority/wiltshire,24/09/2018,5107260597,2795.00,Andrew Townsend Architects ,133345,SN7 ,Wiltshire Council,Wiltshire Council,Materials,Supplies and Services,CAPITAL
Wiltshire, http://opendatacommunities.org/id/unitary-authority/wiltshire,05/09/2018,1902196711,1111.11,Andybus  and  Coach Ltd ,100132,SN16,Neighbourhood & Planning,Mainstream Primary,Transport Contracts,Third Party Payments,REVENUE
Wiltshire, http://opendatacommunities.org/id/unitary-authority/wiltshire,05/09/2018,1902196711,17253.34,Andybus  and  Coach Ltd ,100132,SN16,Neighbourhood & Planning,Mainstream Secondary,Transport Contracts,Third Party Payments,REVENUE
Wiltshire, http://opendatacommunities.org/id/unitary-authority/wiltshire,05/09/2018,1902196712,3084.38,Andybus  and  Coach Ltd ,100132,SN16,Neighbourhood & Planning,Mainstream Secondary,Transport Contracts,Third Party Payments,REVENUE
Wiltshire, http://opendatacommunities.org/id/unitary-authority/wiltshire,05/09/2018,1902196713,3246.25,Andybus  and  Coach Ltd ,100132,SN16,Neighbourhood & Planning,Mainstream Secondary,Transport Contracts,Third Party Payments,REVENUE
Wiltshire, http://opendatacommunities.org/id/unitary-authority/wiltshire,05/09/2018,1902196714,3286.68,Andybus  and  Coach Ltd ,100132,SN16,Neighbourhood & Planning,Mainstream Secondary,Transport Contracts,Third Party Payments,REVENUE
Wiltshire, http://opendatacommunities.org/id/unitary-authority/wiltshire,28/09/2018,1902198439,680.00,Any Body can Cook ,125066,BA12,Neighbourhood & Planning,Sports & Physical Ac,Other Sporting Activities,Supplies and Services,REVENUE
Wiltshire, http://opendatacommunities.org/id/unitary-authority/wiltshire,24/09/2018,1902203000,2980.42,Aon Limited ,113554,LE1 ,Neighbourhood & Planning,Asset Management,Tenants� Contents Insurance,Premises Related,REVENUE
Wiltshire, http://opendatacommunities.org/id/unitary-authority/wiltshire,07/09/2018,5107259784,1040.00,APA Consultants Ltd ,113361,SN10,Neighbourhood & Planning,Development Control,Consultants Fees,Supplies and Services,REVENUE
Wiltshire, http://opendatacommunities.org/id/unitary-authority/wiltshire,28/09/2018,5107268407,2340.00,APA Consultants Ltd ,113361,SN10,Neighbourhood & Planning,Development Control,Consultants Fees,Supplies and Services,REVENUE
Wiltshire, http://opendatacommunities.org/id/unitary-authority/wiltshire,17/09/2018,1902200041,13313.10,Appletree Nursery 1026 ,110163,SN11,Children & Education,Free Enttlmnt 3 & 4y,Childcare Free Entitlement Early Years,Supplies and Services,REVENUE
Wiltshire, http://opendatacommunities.org/id/unitary-authority/wiltshire,17/09/2018,1902200042,2793.00,Appletree Nursery 1026 ,110163,SN11,Children & Education,Free Entitlement 2 Y,Childcare Free Entitlement Early Years,Supplies and Services,REVENUE
Wiltshire, http://opendatacommunities.org/id/unitary-authority/wiltshire,26/09/2018,1902203678,2801.00,Aquascience Limited ,147343,SO61,Wiltshire Council,Wiltshire Council,Highways Contracts - Other,Third Party Payments,CAPITAL
Wiltshire, http://opendatacommunities.org/id/unitary-authority/wiltshire,26/09/2018,1902209032,29999.80,Aquascience Limited ,147343,SO61,Wiltshire Council,Wiltshire Council,Highways Contracts - Other,Third Party Payments,CAPITAL
Wiltshire, http://opendatacommunities.org/id/unitary-authority/wiltshire,07/09/2018,5107259708,2925.00,Arch Consulting Ltd t/a Arch ,138595,W4 1,Resources,Central HR Mgt,ICT - Support arrangements,Supplies and Services,REVENUE
Wiltshire, http://opendatacommunities.org/id/unitary-authority/wiltshire,26/09/2018,5107268099,324.15,Arjo Limited ,100120,GL1 ,Neighbourhood & Planning,Marlborough,Equipment Maintenance,Supplies and Services,REVENUE
Wiltshire, http://opendatacommunities.org/id/unitary-authority/wiltshire,17/09/2018,1902199654,2611.15,ARP Research Limited ,139794,S35 ,Community Services,HRA System Supp Perf,Marketing and Promotions,Supplies and Services,REVENUE
Wiltshire, http://opendatacommunities.org/id/unitary-authority/wiltshire,04/09/2018,5107251618,3718.00,Arqiva Services Limited ,137139,SO21,Neighbourhood & Planning,Fleet,Radio Communications,Supplies and Services,REVENUE
Wiltshire, http://opendatacommunities.org/id/unitary-authority/wiltshire,20/09/2018,5107264220,1500.00,Arthur Williams Consulting Ltd ,129581,BA14,Wiltshire Council,Wiltshire Council,Consultants Fees,Supplies and Services,CAPITAL
Wiltshire, http://opendatacommunities.org/id/unitary-authority/wiltshire,20/09/2018,5107265806,270.00,Arthur Williams Consulting Ltd ,129581,BA14,Wiltshire Council,Wiltshire Council,Consultants Fees,Supplies and Services,CAPITAL
Wiltshire, http://opendatacommunities.org/id/unitary-authority/wiltshire,20/09/2018,5107265807,400.00,Arthur Williams Consulting Ltd ,129581,BA14,Wiltshire Council,Wiltshire Council,Consultants Fees,Supplies and Services,CAPITAL
Wiltshire, http://opendatacommunities.org/id/unitary-authority/wiltshire,17/09/2018,1902200138,4243.20,Ashton Keynes Playgroup 249 ,110188,SN6 ,Children & Education,Free Enttlmnt 3 & 4y,Childcare Free Entitlement Early Years,Supplies and Services,REVENUE
Wiltshire, http://opendatacommunities.org/id/unitary-authority/wiltshire,17/09/2018,1902200139,391.02,Ashton Keynes Playgroup 249 ,110188,SN6 ,Children & Education,Free Entitlement 2 Y,Childcare Free Entitlement Early Years,Supplies and Services,REVENUE
Wiltshire, http://opendatacommunities.org/id/unitary-authority/wiltshire,10/09/2018,1902187239,7187.77,Askews & Holts Library Services Ltd ,101034,PR1 ,Community Services,Libraries,Books & Publications,Supplies and Services,REVENUE
Wiltshire, http://opendatacommunities.org/id/unitary-authority/wiltshire,24/09/2018,1902197591,254.65,Askews & Holts Library Services Ltd ,101034,PR1 ,Community Services,Erlestoke Library,Books & Publications,Supplies and Services,REVENUE
Wiltshire, http://opendatacommunities.org/id/unitary-authority/wiltshire,24/09/2018,1902197591,6357.69,Askews & Holts Library Services Ltd ,101034,PR1 ,Community Services,Libraries,Books & Publications,Supplies and Services,REVENUE
Wiltshire, http://opendatacommunities.org/id/unitary-authority/wiltshire,27/09/2018,5107268427,8241.94,Aspirations Care ,112698,L20 ,Children & Education,Ext Placement & IFA,Childrens Agency Placement,Third Party Payments,REVENUE
Wiltshire, http://opendatacommunities.org/id/unitary-authority/wiltshire,10/09/2018,1902197502,450.00,Aspire Taxis ,101274,SP2 ,Neighbourhood & Planning,Mainstream Primary,Transport Contracts,Third Party Payments,REVENUE
Wiltshire, http://opendatacommunities.org/id/unitary-authority/wiltshire,10/09/2018,1902197502,1350.00,Aspire Taxis ,101274,SP2 ,Neighbourhood & Planning,SEN Primary,Transport Contracts,Third Party Payments,REVENUE
Wiltshire, http://opendatacommunities.org/id/unitary-authority/wiltshire,10/09/2018,1902197504,600.00,Aspire Taxis ,101274,SP2 ,Neighbourhood & Planning,Mainstream Primary,Transport Contracts,Third Party Payments,REVENUE
Wiltshire, http://opendatacommunities.org/id/unitary-authority/wiltshire,10/09/2018,1902197506,1020.00,Aspire Taxis ,101274,SP2 ,Neighbourhood & Planning,Mainstream Primary,Transport Contracts,Third Party Payments,REVENUE
Wiltshire, http://opendatacommunities.org/id/unitary-authority/wiltshire,10/09/2018,1902197508,450.00,Aspire Taxis ,101274,SP2 ,Neighbourhood & Planning,Mainstream Secondary,Transport Contracts,Third Party Payments,REVENUE
Wiltshire, http://opendatacommunities.org/id/unitary-authority/wiltshire,10/09/2018,1902197508,450.00,Aspire Taxis ,101274,SP2 ,Neighbourhood & Planning,SEN Primary,Transport Contracts,Third Party Payments,REVENUE
Wiltshire, http://opendatacommunities.org/id/unitary-authority/wiltshire,04/09/2018,5107257366,16589.52,Assoc Of Electoral Administrators ,113675,SR2 ,Resources,Parliamentary Electi,Consultants Fees,Supplies and Services,REVENUE
Wiltshire, http://opendatacommunities.org/id/unitary-authority/wiltshire,04/09/2018,1902195755,650.00,Aster ,135687,SN10,Wiltshire Council,Wiltshire Council,Professional Fees,Supplies and Services,CAPITAL
Wiltshire, http://opendatacommunities.org/id/unitary-authority/wiltshire,06/09/2018,1902196807,500.00,Aster ,135687,SN10,Wiltshire Council,Wiltshire Council,Professional Fees,Supplies and Services,CAPITAL
Wiltshire, http://opendatacommunities.org/id/unitary-authority/wiltshire,27/09/2018,1902197783,385.50,Aster ,135687,SN10,Wiltshire Council,Wiltshire Council,Professional Fees,Supplies and Services,CAPITAL
Wiltshire, http://opendatacommunities.org/id/unitary-authority/wiltshire,27/09/2018,1902197835,500.00,Aster ,135687,SN10,Wiltshire Council,Wiltshire Council,Professional Fees,Supplies and Services,CAPITAL
Wiltshire, http://opendatacommunities.org/id/unitary-authority/wiltshire,27/09/2018,1902198437,650.00,Aster ,135687,SN10,Wiltshire Council,Wiltshire Council,Professional Fees,Supplies and Services,CAPITAL
Wiltshire, http://opendatacommunities.org/id/unitary-authority/wiltshire,27/09/2018,1902198442,500.00,Aster ,135687,SN10,Wiltshire Council,Wiltshire Council,Professional Fees,Supplies and Services,CAPITAL
Wiltshire, http://opendatacommunities.org/id/unitary-authority/wiltshire,27/09/2018,1902198694,650.00,Aster ,135687,SN10,Wiltshire Council,Wiltshire Council,Professional Fees,Supplies and Services,CAPITAL
Wiltshire, http://opendatacommunities.org/id/unitary-authority/wiltshire,17/09/2018,1902199706,3240.58,Atelier Nursery Ltd ,145940,SN15,Children & Education,Free Enttlmnt 3 & 4y,Childcare Free Entitlement Early Years,Supplies and Services,REVENUE
Wiltshire, http://opendatacommunities.org/id/unitary-authority/wiltshire,17/09/2018,1902199707,809.97,Atelier Nursery Ltd ,145940,SN15,Children & Education,Free Entitlement 2 Y,Childcare Free Entitlement Early Years,Supplies and Services,REVENUE
Wiltshire, http://opendatacommunities.org/id/unitary-authority/wiltshire,21/09/2018,1902203002,930.61,Atkins Ltd ,110197,KT18,Wiltshire Council,Wiltshire Council,Highways Contracts,Third Party Payments,CAPITAL
Wiltshire, http://opendatacommunities.org/id/unitary-authority/wiltshire,21/09/2018,1902203002,1048.80,Atkins Ltd ,110197,KT18,Wiltshire Council,Wiltshire Council,Highways Contracts,Third Party Payments,CAPITAL
Wiltshire, http://opendatacommunities.org/id/unitary-authority/wiltshire,21/09/2018,1902203002,1363.88,Atkins Ltd ,110197,KT18,Wiltshire Council,Wiltshire Council,Highways Contracts,Third Party Payments,CAPITAL
Wiltshire, http://opendatacommunities.org/id/unitary-authority/wiltshire,21/09/2018,1902203002,1603.03,Atkins Ltd ,110197,KT18,Wiltshire Council,Wiltshire Council,Highways Contracts,Third Party Payments,CAPITAL
Wiltshire, http://opendatacommunities.org/id/unitary-authority/wiltshire,21/09/2018,1902203002,1622.90,Atkins Ltd ,110197,KT18,Neighbourhood & Planning,Bridge Routine Mtc,Highways Contracts,Third Party Payments,REVENUE
Wiltshire, http://opendatacommunities.org/id/unitary-authority/wiltshire,21/09/2018,1902203002,1633.14,Atkins Ltd ,110197,KT18,Wiltshire Council,Wiltshire Council,Highways Contracts,Third Party Payments,CAPITAL
Wiltshire, http://opendatacommunities.org/id/unitary-authority/wiltshire,21/09/2018,1902203002,2202.03,Atkins Ltd ,110197,KT18,Wiltshire Council,Wiltshire Council,Highways Contracts,Third Party Payments,CAPITAL
Wiltshire, http://opendatacommunities.org/id/unitary-authority/wiltshire,21/09/2018,1902203002,2286.51,Atkins Ltd ,110197,KT18,Wiltshire Council,Wiltshire Council,Highways Contracts,Third Party Payments,CAPITAL
Wiltshire, http://opendatacommunities.org/id/unitary-authority/wiltshire,21/09/2018,1902203002,2337.10,Atkins Ltd ,110197,KT18,Wiltshire Council,Wiltshire Council,Highways Contracts,Third Party Payments,CAPITAL
Wiltshire, http://opendatacommunities.org/id/unitary-authority/wiltshire,21/09/2018,1902203002,4397.22,Atkins Ltd ,110197,KT18,Wiltshire Council,Wiltshire Council,Highways Contracts,Third Party Payments,CAPITAL
Wiltshire, http://opendatacommunities.org/id/unitary-authority/wiltshire,21/09/2018,1902203002,4871.33,Atkins Ltd ,110197,KT18,Wiltshire Council,Wiltshire Council,Highways Contracts,Third Party Payments,CAPITAL
Wiltshire, http://opendatacommunities.org/id/unitary-authority/wiltshire,21/09/2018,1902203002,5508.29,Atkins Ltd ,110197,KT18,Wiltshire Council,Wiltshire Council,Highways Contracts,Third Party Payments,CAPITAL
Wiltshire, http://opendatacommunities.org/id/unitary-authority/wiltshire,21/09/2018,1902203002,6524.84,Atkins Ltd ,110197,KT18,Wiltshire Council,Wiltshire Council,Highways Contracts,Third Party Payments,CAPITAL
Wiltshire, http://opendatacommunities.org/id/unitary-authority/wiltshire,21/09/2018,1902203002,7231.92,Atkins Ltd ,110197,KT18,Resources,Chippenham Futures,Highways Contracts,Third Party Payments,REVENUE
Wiltshire, http://opendatacommunities.org/id/unitary-authority/wiltshire,21/09/2018,1902203002,10198.81,Atkins Ltd ,110197,KT18,Neighbourhood & Planning,Highw Hedges & Trees,Highways Contracts,Third Party Payments,REVENUE
Wiltshire, http://opendatacommunities.org/id/unitary-authority/wiltshire,21/09/2018,1902203002,11074.62,Atkins Ltd ,110197,KT18,Wiltshire Council,Wiltshire Council,Highways Contracts,Third Party Payments,CAPITAL
Wiltshire, http://opendatacommunities.org/id/unitary-authority/wiltshire,21/09/2018,1902203002,11158.29,Atkins Ltd ,110197,KT18,Wiltshire Council,Wiltshire Council,Highways Contracts,Third Party Payments,CAPITAL
Wiltshire, http://opendatacommunities.org/id/unitary-authority/wiltshire,21/09/2018,1902203002,15459.38,Atkins Ltd ,110197,KT18,Wiltshire Council,Wiltshire Council,Highways Contracts,Third Party Payments,CAPITAL
Wiltshire, http://opendatacommunities.org/id/unitary-authority/wiltshire,21/09/2018,1902203002,17346.06,Atkins Ltd ,110197,KT18,Neighbourhood & Planning,Transport Plan & DC,Highways Contracts,Third Party Payments,REVENUE
Wiltshire, http://opendatacommunities.org/id/unitary-authority/wiltshire,21/09/2018,1902203002,19403.70,Atkins Ltd ,110197,KT18,Wiltshire Council,Wiltshire Council,Highways Contracts,Third Party Payments,CAPITAL
Wiltshire, http://opendatacommunities.org/id/unitary-authority/wiltshire,21/09/2018,1902203002,20337.21,Atkins Ltd ,110197,KT18,Neighbourhood & Planning,Traffic Signal Mtc,Highways Contracts,Third Party Payments,REVENUE
Wiltshire, http://opendatacommunities.org/id/unitary-authority/wiltshire,21/09/2018,1902203002,21100.00,Atkins Ltd ,110197,KT18,Wiltshire Council,Wiltshire Council,Highways Contracts,Third Party Payments,CAPITAL
Wiltshire, http://opendatacommunities.org/id/unitary-authority/wiltshire,21/09/2018,1902203002,22244.58,Atkins Ltd ,110197,KT18,Neighbourhood & Planning,Street Lighting,Highways Contracts,Third Party Payments,REVENUE
Wiltshire, http://opendatacommunities.org/id/unitary-authority/wiltshire,21/09/2018,1902203002,25158.67,Atkins Ltd ,110197,KT18,Wiltshire Council,Wiltshire Council,Highways Contracts,Third Party Payments,CAPITAL
Wiltshire, http://opendatacommunities.org/id/unitary-authority/wiltshire,21/09/2018,1902203002,34669.70,Atkins Ltd ,110197,KT18,Wiltshire Council,Wiltshire Council,Highways Contracts,Third Party Payments,CAPITAL
Wiltshire, http://opendatacommunities.org/id/unitary-authority/wiltshire,21/09/2018,1902203002,67738.98,Atkins Ltd ,110197,KT18,Wiltshire Council,Wiltshire Council,Highways Contracts,Third Party Payments,CAPITAL
Wiltshire, http://opendatacommunities.org/id/unitary-authority/wiltshire,21/09/2018,1902203002,142267.01,Atkins Ltd ,110197,KT18,Wiltshire Council,Wiltshire Council,Highways Contracts,Third Party Payments,CAPITAL
Wiltshire, http://opendatacommunities.org/id/unitary-authority/wiltshire,20/09/2018,5107265800,8373.86,Atkins Ltd ,110197,KT18,Wiltshire Council,Wiltshire Council,Consultants Fees,Supplies and Services,CAPITAL
Wiltshire, http://opendatacommunities.org/id/unitary-authority/wiltshire,07/09/2018,5107259706,284.01,Atkinson Lewis ,143942,SA5 ,Children & Education,HQ Social Care,Witness / Jurors' / Justice's Expenses,Supplies and Services,REVENUE
Wiltshire, http://opendatacommunities.org/id/unitary-authority/wiltshire,11/09/2018,5107260135,1136.05,Atkinson Lewis ,143942,SA5 ,Children & Education,HQ Social Care,Witness / Jurors' / Justice's Expenses,Supplies and Services,REVENUE
Wiltshire, http://opendatacommunities.org/id/unitary-authority/wiltshire,25/09/2018,1902203541,1080.34,Ats Euromaster Ltd ,113709,B6 5,Neighbourhood & Planning,Fleet,Vehicle Tyres,Transport Related,REVENUE
Wiltshire, http://opendatacommunities.org/id/unitary-authority/wiltshire,18/09/2018,5107264293,26775.27,Aurora Hedgeway School ,146712,EC1N,Children & Education,IndepSpecialSchFees,Educational Fees,Supplies and Services,REVENUE
Wiltshire, http://opendatacommunities.org/id/unitary-authority/wiltshire,18/09/2018,5107264293,46504.40,Aurora Hedgeway School ,146712,EC1N,Children & Education,0-25 extnl disabty p,Educational Fees,Supplies and Services,REVENUE
Wiltshire, http://opendatacommunities.org/id/unitary-authority/wiltshire,07/09/2018,5107256659,321.21,Automotive Leasing Ltd ,113729,SL1 ,Neighbourhood & Planning,Fleet,Commercial Leased Vehicles,Transport Related,REVENUE
Wiltshire, http://opendatacommunities.org/id/unitary-authority/wiltshire,10/09/2018,5107259886,2138.97,Autonomy Care Limited ,126128,SN12,Children & Education,0-25 extnl disabty p,Other Social & Welfare Costs,Third Party Payments,REVENUE
Wiltshire, http://opendatacommunities.org/id/unitary-authority/wiltshire,10/09/2018,5107259887,17246.17,Autonomy Care Limited ,126128,SN12,Children & Education,0-25 extnl disabty p,Other Social & Welfare Costs,Third Party Payments,REVENUE
Wiltshire, http://opendatacommunities.org/id/unitary-authority/wiltshire,10/09/2018,5107259888,14137.55,Autonomy Care Limited ,126128,SN12,Children & Education,0-25 extnl disabty p,Other Social & Welfare Costs,Third Party Payments,REVENUE
Wiltshire, http://opendatacommunities.org/id/unitary-authority/wiltshire,24/09/2018,5107266896,7303.80,Autonomy Care Limited ,126128,SN12,Children & Education,0-25 extnl disabty p,Other Social & Welfare Costs,Third Party Payments,REVENUE
Wiltshire, http://opendatacommunities.org/id/unitary-authority/wiltshire,03/09/2018,5107259127,15929.10,Autonomy Plus Limited ,146109,SN12,Children & Education,0-25 extnl disabty p,Childrens Agency Placement,Third Party Payments,REVENUE
Wiltshire, http://opendatacommunities.org/id/unitary-authority/wiltshire,03/09/2018,5107259128,15929.10,Autonomy Plus Limited ,146109,SN12,Children & Education,0-25 extnl disabty p,Childrens Agency Placement,Third Party Payments,REVENUE
Wiltshire, http://opendatacommunities.org/id/unitary-authority/wiltshire,03/09/2018,5107259129,15929.10,Autonomy Plus Limited ,146109,SN12,Children & Education,0-25 extnl disabty p,Childrens Agency Placement,Third Party Payments,REVENUE
Wiltshire, http://opendatacommunities.org/id/unitary-authority/wiltshire,07/09/2018,1902197364,3632.34,Avalon Promotions Ltd ,126693,W10 ,Neighbourhood & Planning,City Hall,City Hall Shows,Balance Sheet Accounts,REVENUE
Wiltshire, http://opendatacommunities.org/id/unitary-authority/wiltshire,04/09/2018,5107259374,324.40,Aveling Adventure ,147359,BA11,Children & Education,In house fostering t,Carer Recruitment & Training,Third Party Payments,REVENUE
Wiltshire, http://opendatacommunities.org/id/unitary-authority/wiltshire,14/09/2018,1902199623,540.00,Avenue Surgery ,110214,BA12,Neighbourhood & Planning,Smoking-Mgt & Commss,Public Health Commissioning,Supplies and Services,REVENUE
Wiltshire, http://opendatacommunities.org/id/unitary-authority/wiltshire,21/09/2018,1902202999,1500.00,Avon Asset Holdings Ltd t/a Car Park,147477,SP4 ,Resources,Salisbury Recovery,Grants Expenditure,Supplies and Services,REVENUE
Wiltshire, http://opendatacommunities.org/id/unitary-authority/wiltshire,14/09/2018,1902199625,320.00,Avon Valley Practice ,131697,SN9 ,Neighbourhood & Planning,Smoking-Mgt & Commss,Public Health Commissioning,Supplies and Services,REVENUE
Wiltshire, http://opendatacommunities.org/id/unitary-authority/wiltshire,07/09/2018,1902197306,1680.00,Axis Signs Limited ,140699,SN3 ,Resources,News & Information,Marketing and Promotions,Supplies and Services,REVENUE
Wiltshire, http://opendatacommunities.org/id/unitary-authority/wiltshire,17/09/2018,1902199651,2194.00,Axis Signs Limited ,140699,SN3 ,Resources,News & Information,Marketing and Promotions,Supplies and Services,REVENUE
Wiltshire, http://opendatacommunities.org/id/unitary-authority/wiltshire,11/09/2018,5107260020,1030.00,B & M Windows  and  Doors Ltd ,101694,SP2 ,Neighbourhood & Planning,DLO,Equipment Purchase,Supplies and Services,REVENUE
Wiltshire, http://opendatacommunities.org/id/unitary-authority/wiltshire,11/09/2018,5107260021,360.00,B & M Windows  and  Doors Ltd ,101694,SP2 ,Neighbourhood & Planning,DLO,Equipment Purchase,Supplies and Services,REVENUE
Wiltshire, http://opendatacommunities.org/id/unitary-authority/wiltshire,11/09/2018,5107260024,630.00,B & M Windows  and  Doors Ltd ,101694,SP2 ,Neighbourhood & Planning,DLO,Equipment Purchase,Supplies and Services,REVENUE
Wiltshire, http://opendatacommunities.org/id/unitary-authority/wiltshire,11/09/2018,5107260026,340.00,B & M Windows  and  Doors Ltd ,101694,SP2 ,Neighbourhood & Planning,DLO,Equipment Purchase,Supplies and Services,REVENUE
Wiltshire, http://opendatacommunities.org/id/unitary-authority/wiltshire,25/09/2018,5107267442,680.00,B & M Windows  and  Doors Ltd ,101694,SP2 ,Neighbourhood & Planning,DLO,Equipment Purchase,Supplies and Services,REVENUE
Wiltshire, http://opendatacommunities.org/id/unitary-authority/wiltshire,25/09/2018,5107267443,643.60,B & M Windows  and  Doors Ltd ,101694,SP2 ,Neighbourhood & Planning,DLO,Equipment Purchase,Supplies and Services,REVENUE
Wiltshire, http://opendatacommunities.org/id/unitary-authority/wiltshire,25/09/2018,5107267444,450.00,B & M Windows  and  Doors Ltd ,101694,SP2 ,Neighbourhood & Planning,DLO,Equipment Purchase,Supplies and Services,REVENUE
Wiltshire, http://opendatacommunities.org/id/unitary-authority/wiltshire,25/09/2018,5107267445,450.00,B & M Windows  and  Doors Ltd ,101694,SP2 ,Neighbourhood & Planning,DLO,Equipment Purchase,Supplies and Services,REVENUE
Wiltshire, http://opendatacommunities.org/id/unitary-authority/wiltshire,27/09/2018,5107268447,472.39,B & M Windows  and  Doors Ltd ,101694,SP2 ,Neighbourhood & Planning,DLO,Equipment Purchase,Supplies and Services,REVENUE
Wiltshire, http://opendatacommunities.org/id/unitary-authority/wiltshire,11/09/2018,1902197778,264.00,Babcock 4S Limited. ,131088,PO6 ,Resources,Schools A&B Support,Conference Fees,Supplies and Services,REVENUE
Wiltshire, http://opendatacommunities.org/id/unitary-authority/wiltshire,27/09/2018,5107268399,533.40,Bablake Wines T/A Amathus ,143935,CV6 ,Neighbourhood & Planning,Calne Leisure Centre,Catering,Supplies and Services,REVENUE
Wiltshire, http://opendatacommunities.org/id/unitary-authority/wiltshire,26/09/2018,1902201091,625.00,BACPR Education ,136012,GU9 ,Neighbourhood & Planning,Sports&Phys Act Grnt,Other Sporting Activities,Supplies and Services,REVENUE
Wiltshire, http://opendatacommunities.org/id/unitary-authority/wiltshire,26/09/2018,1902201094,625.00,BACPR Education ,136012,GU9 ,Neighbourhood & Planning,Sports&Phys Act Grnt,Other Sporting Activities,Supplies and Services,REVENUE
Wiltshire, http://opendatacommunities.org/id/unitary-authority/wiltshire,13/09/2018,5107260590,306.35,Bailey Employment Services Ltd t/a Bailey Care Services,100204,SN12,Community Services,Bradbury Manor Resp,Agency Staff,Employee Related,REVENUE
Wiltshire, http://opendatacommunities.org/id/unitary-authority/wiltshire,11/09/2018,1902197629,944.68,Balcas Ltd ,146414,BT94,Neighbourhood & Planning,Biomass Prog Schools,Other Fuels,Premises Related,REVENUE
Wiltshire, http://opendatacommunities.org/id/unitary-authority/wiltshire,11/09/2018,1902197635,1764.00,Balcas Ltd ,146414,BT94,Neighbourhood & Planning,Biomass Prog Schools,Other Fuels,Premises Related,REVENUE
Wiltshire, http://opendatacommunities.org/id/unitary-authority/wiltshire,11/09/2018,1902197636,1850.24,Balcas Ltd ,146414,BT94,Neighbourhood & Planning,Biomass Prog Schools,Other Fuels,Premises Related,REVENUE
Wiltshire, http://opendatacommunities.org/id/unitary-authority/wiltshire,18/09/2018,1902201084,1621.84,Balcas Ltd ,146414,BT94,Neighbourhood & Planning,Biomass Prog Schools,Other Fuels,Premises Related,REVENUE
Wiltshire, http://opendatacommunities.org/id/unitary-authority/wiltshire,18/09/2018,1902201085,1243.55,Balcas Ltd ,146414,BT94,Neighbourhood & Planning,Biomass Prog Schools,Other Fuels,Premises Related,REVENUE
Wiltshire, http://opendatacommunities.org/id/unitary-authority/wiltshire,07/09/2018,1902188349,544.98,Banner Group Ltd ,145979,S9 1,Resources,Desk Top Hardware,Stationery,Supplies and Services,REVENUE
Wiltshire, http://opendatacommunities.org/id/unitary-authority/wiltshire,26/09/2018,1902195682,908.30,Banner Group Ltd ,145979,S9 1,Resources,Desk Top Hardware,Stationery,Supplies and Services,REVENUE
Wiltshire, http://opendatacommunities.org/id/unitary-authority/wiltshire,04/09/2018,1902195761,568.50,Banner Group Ltd ,145979,S9 1,Resources,Facilities Managemen,Stationery,Supplies and Services,REVENUE
Wiltshire, http://opendatacommunities.org/id/unitary-authority/wiltshire,11/09/2018,1902195762,537.12,Banner Group Ltd ,145979,S9 1,Resources,Facilities Managemen,Stationery,Supplies and Services,REVENUE
Wiltshire, http://opendatacommunities.org/id/unitary-authority/wiltshire,18/09/2018,1902201104,454.80,Banner Group Ltd ,145979,S9 1,Resources,DesignPrintTrowbridg,Stationery,Supplies and Services,REVENUE
Wiltshire, http://opendatacommunities.org/id/unitary-authority/wiltshire,18/09/2018,1902201107,454.80,Banner Group Ltd ,145979,S9 1,Resources,DesignPrintTrowbridg,Stationery,Supplies and Services,REVENUE
Wiltshire, http://opendatacommunities.org/id/unitary-authority/wiltshire,20/09/2018,1902202143,474.18,Banner Group Ltd ,145979,S9 1,Community Services,Libraries,Stationery,Supplies and Services,REVENUE
Wiltshire, http://opendatacommunities.org/id/unitary-authority/wiltshire,19/09/2018,5107264335,123999.90,Barclays Bank Plc ,126156,E14 ,Resources,Monkton Pk Off Accom,PFI Schemes,Supplies and Services,REVENUE
Wiltshire, http://opendatacommunities.org/id/unitary-authority/wiltshire,11/09/2018,1902197724,3492.00,Barnes Coaches Ltd ,100190,SN3 ,Neighbourhood & Planning,Mainstream Secondary,Transport Contracts,Third Party Payments,REVENUE
Wiltshire, http://opendatacommunities.org/id/unitary-authority/wiltshire,12/09/2018,1902198882,2980.62,Barnes Coaches Ltd ,100190,SN3 ,Neighbourhood & Planning,Mainstream Primary,Transport Contracts,Third Party Payments,REVENUE
Wiltshire, http://opendatacommunities.org/id/unitary-authority/wiltshire,17/09/2018,1902200046,12844.50,Barney Lodge Day Nursery ,113891,BA12,Children & Education,Free Enttlmnt 3 & 4y,Childcare Free Entitlement Early Years,Supplies and Services,REVENUE
Wiltshire, http://opendatacommunities.org/id/unitary-authority/wiltshire,17/09/2018,1902200047,1117.20,Barney Lodge Day Nursery ,113891,BA12,Children & Education,Free Entitlement 2 Y,Childcare Free Entitlement Early Years,Supplies and Services,REVENUE
Wiltshire, http://opendatacommunities.org/id/unitary-authority/wiltshire,07/09/2018,5107251014,318.68,BARRETTINE ENVIRONMENTAL HEALTH ,110260,BS30,Health & Wellbeing,CommunityPestControl,Materials & Consumables (Non-Educational),Supplies and Services,REVENUE
Wiltshire, http://opendatacommunities.org/id/unitary-authority/wiltshire,18/09/2018,1902201121,298.89,Barts Health NHS Trust ,137417,E1 8,Neighbourhood & Planning,Sexual Health Commun,Public Health Commissioning,Supplies and Services,REVENUE
Wiltshire, http://opendatacommunities.org/id/unitary-authority/wiltshire,12/09/2018,5107260495,545.83,Bath Mind ,134100,BA1 ,Community Services,MH Commissioned Cont,Grants Expenditure,Supplies and Services,REVENUE
Wiltshire, http://opendatacommunities.org/id/unitary-authority/wiltshire,12/09/2018,5107260496,545.83,Bath Mind ,134100,BA1 ,Community Services,MH Commissioned Cont,Grants Expenditure,Supplies and Services,REVENUE
Wiltshire, http://opendatacommunities.org/id/unitary-authority/wiltshire,17/09/2018,1902199848,7764.92,Bath YMCA Kings Nursery ,136259,BA1 ,Children & Education,Free Enttlmnt 3 & 4y,Childcare Free Entitlement Early Years,Supplies and Services,REVENUE
Wiltshire, http://opendatacommunities.org/id/unitary-authority/wiltshire,17/09/2018,1902199849,1117.20,Bath YMCA Kings Nursery ,136259,BA1 ,Children & Education,Free Entitlement 2 Y,Childcare Free Entitlement Early Years,Supplies and Services,REVENUE
Wiltshire, http://opendatacommunities.org/id/unitary-authority/wiltshire,11/09/2018,1902187210,2208.00,BCIS ,110271,SW1P,Resources,Facilities Managemen,ICT - Support arrangements,Supplies and Services,REVENUE
Wiltshire, http://opendatacommunities.org/id/unitary-authority/wiltshire,26/09/2018,1902203742,2650.00,BCIS ,110271,SW1P,Resources,Facilities Managemen,Professional Subscriptions/Memberships,Employee Related,REVENUE
Wiltshire, http://opendatacommunities.org/id/unitary-authority/wiltshire,03/09/2018,5107259238,5600.00,Beaufort Care Group ,144301,BH24,Children & Education,Ext Placement & IFA,Childrens Agency Placement,Third Party Payments,REVENUE
Wiltshire, http://opendatacommunities.org/id/unitary-authority/wiltshire,11/09/2018,1902197619,320.00,Beaufort Nine Ltd ,146524,SW19,Community Services,ASC Transformation,Consultants Fees,Supplies and Services,REVENUE
Wiltshire, http://opendatacommunities.org/id/unitary-authority/wiltshire,25/09/2018,5107259788,322.05,Bechtle Direct Limited ,145225,SN14,Resources,Revs&Bens-Revenues,Telephones - Landlines,Supplies and Services,REVENUE
Wiltshire, http://opendatacommunities.org/id/unitary-authority/wiltshire,25/09/2018,1902203571,795.22,Beeline Coaches ,101673,BA12,Neighbourhood & Planning,Concessionary Fares,Concessionary fares,Third Party Payments,REVENUE
Wiltshire, http://opendatacommunities.org/id/unitary-authority/wiltshire,27/09/2018,5107267425,696.00,BemroseBooth ,113983,HU7 ,Resources,DesignPrintTrowbridg,Printing,Supplies and Services,REVENUE
Wiltshire, http://opendatacommunities.org/id/unitary-authority/wiltshire,17/09/2018,1902200140,4098.02,Benger Bears Playgroup 434 ,113988,SN15,Children & Education,Free Enttlmnt 3 & 4y,Childcare Free Entitlement Early Years,Supplies and Services,REVENUE
Wiltshire, http://opendatacommunities.org/id/unitary-authority/wiltshire,14/09/2018,1902199647,460.00,Beversbrook Medical Centre ,110756,SN11,Neighbourhood & Planning,Smoking-Mgt & Commss,Public Health Commissioning,Supplies and Services,REVENUE
Wiltshire, http://opendatacommunities.org/id/unitary-authority/wiltshire,17/09/2018,5107264187,390.00,Bibliotheca Ltd ,125688,SK8 ,Resources,Infrastructure,IT Hardware Maintenance,Supplies and Services,REVENUE
Wiltshire, http://opendatacommunities.org/id/unitary-authority/wiltshire,25/09/2018,5107267388,350.00,Bibliotheca Ltd ,125688,SK8 ,Community Services,Libraries,Furniture / Office Equipment Purchase,Supplies and Services,REVENUE
Wiltshire, http://opendatacommunities.org/id/unitary-authority/wiltshire,25/09/2018,5107267405,375.00,Bibliotheca Ltd ,125688,SK8 ,Resources,Infrastructure,IT Hardware Maintenance,Supplies and Services,REVENUE
Wiltshire, http://opendatacommunities.org/id/unitary-authority/wiltshire,17/09/2018,1902199763,8705.64,Bishopdown Farm Community Pre-sch ,114037,SP1 ,Children & Education,Free Enttlmnt 3 & 4y,Childcare Free Entitlement Early Years,Supplies and Services,REVENUE
Wiltshire, http://opendatacommunities.org/id/unitary-authority/wiltshire,17/09/2018,1902199764,1452.36,Bishopdown Farm Community Pre-sch ,114037,SP1 ,Children & Education,Free Entitlement 2 Y,Childcare Free Entitlement Early Years,Supplies and Services,REVENUE
Wiltshire, http://opendatacommunities.org/id/unitary-authority/wiltshire,18/09/2018,5107264198,74053.93,BKP Waste and Recycling Ltd ,147439,SO51,Wiltshire Council,Wiltshire Council,Premises Related Other Maintenance Costs,Premises Related,CAPITAL
Wiltshire, http://opendatacommunities.org/id/unitary-authority/wiltshire,18/09/2018,1902199416,3366.00,Blue 9 Security Limited ,144177,SP1 ,Resources,County Hall Complex,Premises Security Costs,Premises Related,REVENUE
Wiltshire, http://opendatacommunities.org/id/unitary-authority/wiltshire,18/09/2018,1902199557,3366.00,Blue 9 Security Limited ,144177,SP1 ,Resources,County Hall Complex,Premises Security Costs,Premises Related,REVENUE
Wiltshire, http://opendatacommunities.org/id/unitary-authority/wiltshire,03/09/2018,5107259246,1824.00,Blue Sky Fostering ,137768,HA1 ,Children & Education,Ext Placement & IFA,Childrens Agency Placement,Third Party Payments,REVENUE
Wiltshire, http://opendatacommunities.org/id/unitary-authority/wiltshire,19/09/2018,5107265575,8250.00,Blue Sky Fostering ,137768,HA1 ,Children & Education,Ext Placement & IFA,Childrens Agency Placement,Third Party Payments,REVENUE
Wiltshire, http://opendatacommunities.org/id/unitary-authority/wiltshire,19/09/2018,5107265576,3351.60,Blue Sky Fostering ,137768,HA1 ,Children & Education,Ext Placement & IFA,Childrens Agency Placement,Third Party Payments,REVENUE
Wiltshire, http://opendatacommunities.org/id/unitary-authority/wiltshire,19/09/2018,5107265577,5142.90,Blue Sky Fostering ,137768,HA1 ,Children & Education,Ext Placement & IFA,Childrens Agency Placement,Third Party Payments,REVENUE
Wiltshire, http://opendatacommunities.org/id/unitary-authority/wiltshire,19/09/2018,5107265578,3214.80,Blue Sky Fostering ,137768,HA1 ,Children & Education,Ext Placement & IFA,Childrens Agency Placement,Third Party Payments,REVENUE
Wiltshire, http://opendatacommunities.org/id/unitary-authority/wiltshire,19/09/2018,5107265579,3420.00,Blue Sky Fostering ,137768,HA1 ,Children & Education,Ext Placement & IFA,Childrens Agency Placement,Third Party Payments,REVENUE
Wiltshire, http://opendatacommunities.org/id/unitary-authority/wiltshire,19/09/2018,5107265580,6300.00,Blue Sky Fostering ,137768,HA1 ,Children & Education,Ext Placement & IFA,Childrens Agency Placement,Third Party Payments,REVENUE
Wiltshire, http://opendatacommunities.org/id/unitary-authority/wiltshire,19/09/2018,5107265581,6300.00,Blue Sky Fostering ,137768,HA1 ,Children & Education,Ext Placement & IFA,Childrens Agency Placement,Third Party Payments,REVENUE
Wiltshire, http://opendatacommunities.org/id/unitary-authority/wiltshire,19/09/2018,5107265582,6300.00,Blue Sky Fostering ,137768,HA1 ,Children & Education,Ext Placement & IFA,Childrens Agency Placement,Third Party Payments,REVENUE
Wiltshire, http://opendatacommunities.org/id/unitary-authority/wiltshire,19/09/2018,5107265583,3542.10,Blue Sky Fostering ,137768,HA1 ,Children & Education,Ext Placement & IFA,Childrens Agency Placement,Third Party Payments,REVENUE
Wiltshire, http://opendatacommunities.org/id/unitary-authority/wiltshire,19/09/2018,5107265598,8250.00,Blue Sky Fostering ,137768,HA1 ,Children & Education,Ext Placement & IFA,Childrens Agency Placement,Third Party Payments,REVENUE
Wiltshire, http://opendatacommunities.org/id/unitary-authority/wiltshire,19/09/2018,5107265599,8250.00,Blue Sky Fostering ,137768,HA1 ,Children & Education,Ext Placement & IFA,Childrens Agency Placement,Third Party Payments,REVENUE
Wiltshire, http://opendatacommunities.org/id/unitary-authority/wiltshire,19/09/2018,5107265602,3540.00,Blue Sky Fostering ,137768,HA1 ,Children & Education,Ext Placement & IFA,Childrens Agency Placement,Third Party Payments,REVENUE
Wiltshire, http://opendatacommunities.org/id/unitary-authority/wiltshire,19/09/2018,5107265736,1628.70,Blue Sky Fostering ,137768,HA1 ,Children & Education,Staying Put,Childrens Agency Placement,Third Party Payments,REVENUE
Wiltshire, http://opendatacommunities.org/id/unitary-authority/wiltshire,28/09/2018,5107259451,1000.00,Box Twenty Consulting Engineers Ltd ,145655,BS1 ,Resources,County Hall Complex,Professional Fees,Supplies and Services,REVENUE
Wiltshire, http://opendatacommunities.org/id/unitary-authority/wiltshire,10/09/2018,1902197523,1712.04,Bradies ,147258,SN15,Community Services,MH OP South Locality,Transport Contracts,Third Party Payments,REVENUE
Wiltshire, http://opendatacommunities.org/id/unitary-authority/wiltshire,25/09/2018,1902203550,6000.00,Bradies ,147258,SN15,Neighbourhood & Planning,Public Transport,Transport Contracts,Third Party Payments,REVENUE
Wiltshire, http://opendatacommunities.org/id/unitary-authority/wiltshire,25/09/2018,1902203578,4600.00,Bradies ,147258,SN15,Neighbourhood & Planning,Concessionary Fares,Concessionary fares,Third Party Payments,REVENUE
Wiltshire, http://opendatacommunities.org/id/unitary-authority/wiltshire,21/09/2018,1902201127,256.62,Brakes Bros Ltd ,110344,TN24,Neighbourhood & Planning,Marlborough LC Cafe,Catering,Supplies and Services,REVENUE
Wiltshire, http://opendatacommunities.org/id/unitary-authority/wiltshire,05/09/2018,5107259479,585.66,Brakes Bros Ltd ,110344,TN24,Children & Education,Oxenwood,Catering,Supplies and Services,REVENUE
Wiltshire, http://opendatacommunities.org/id/unitary-authority/wiltshire,04/09/2018,5107259007,847.00,Brandon Hire ,130758,SP2 ,Neighbourhood & Planning,DLO,Equipment Purchase,Supplies and Services,REVENUE
Wiltshire, http://opendatacommunities.org/id/unitary-authority/wiltshire,04/09/2018,5107259008,432.38,Brandon Hire ,130758,SP2 ,Neighbourhood & Planning,DLO,Equipment Purchase,Supplies and Services,REVENUE
Wiltshire, http://opendatacommunities.org/id/unitary-authority/wiltshire,11/09/2018,5107260082,83864.20,Bray & Slaughter Limited ,137562,BS3 ,Wiltshire Council,Wiltshire Council,Buildings Minor Alterations,Premises Related,CAPITAL
Wiltshire, http://opendatacommunities.org/id/unitary-authority/wiltshire,19/09/2018,1902201493,7665.00,Bredon School ,138231,GL20,Children & Education,IndepSpecialSchFees,Educational Fees,Supplies and Services,REVENUE
Wiltshire, http://opendatacommunities.org/id/unitary-authority/wiltshire,19/09/2018,1902201494,4710.00,Bredon School ,138231,GL20,Children & Education,IndepSpecialSchFees,Educational Fees,Supplies and Services,REVENUE
Wiltshire, http://opendatacommunities.org/id/unitary-authority/wiltshire,25/09/2018,5107259030,698.60,Brenntag UK Ltd ,100412,LS19,Neighbourhood & Planning,Tisbury Outdoor Pool,Chemicals,Premises Related,REVENUE
Wiltshire, http://opendatacommunities.org/id/unitary-authority/wiltshire,07/09/2018,5107259270,356.14,Brenntag UK Ltd ,100412,LS19,Neighbourhood & Planning,Calne Leisure Centre,Chemicals,Premises Related,REVENUE
Wiltshire, http://opendatacommunities.org/id/unitary-authority/wiltshire,28/09/2018,5107268625,378.55,Bridging the Gap ,145190,ME7 ,Children & Education,Ext Placement & IFA,Childrens Agency Placement,Third Party Payments,REVENUE
Wiltshire, http://opendatacommunities.org/id/unitary-authority/wiltshire,28/09/2018,5107268626,1741.33,Bridging the Gap ,145190,ME7 ,Children & Education,Ext Placement & IFA,Childrens Agency Placement,Third Party Payments,REVENUE
Wiltshire, http://opendatacommunities.org/id/unitary-authority/wiltshire,28/09/2018,5107268627,605.68,Bridging the Gap ,145190,ME7 ,Children & Education,Ext Placement & IFA,Childrens Agency Placement,Third Party Payments,REVENUE
Wiltshire, http://opendatacommunities.org/id/unitary-authority/wiltshire,28/09/2018,5107268628,1514.20,Bridging the Gap ,145190,ME7 ,Children & Education,Ext Placement & IFA,Childrens Agency Placement,Third Party Payments,REVENUE
Wiltshire, http://opendatacommunities.org/id/unitary-authority/wiltshire,17/09/2018,1902200161,4149.60,Bright Sparks Nursery ,114180,.,Children & Education,Free Enttlmnt 3 & 4y,Childcare Free Entitlement Early Years,Supplies and Services,REVENUE
Wiltshire, http://opendatacommunities.org/id/unitary-authority/wiltshire,17/09/2018,1902199880,465.50,Bright Stars Nursery ,110361,BA13,Children & Education,Free Enttlmnt 3 & 4y,Childcare Free Entitlement Early Years,Supplies and Services,REVENUE
Wiltshire, http://opendatacommunities.org/id/unitary-authority/wiltshire,17/09/2018,1902199881,14422.34,Bright Stars Pre School ,133640,BA13,Children & Education,Free Enttlmnt 3 & 4y,Childcare Free Entitlement Early Years,Supplies and Services,REVENUE
Wiltshire, http://opendatacommunities.org/id/unitary-authority/wiltshire,17/09/2018,1902199882,2226.42,Bright Stars Pre School ,133640,BA13,Children & Education,Free Entitlement 2 Y,Childcare Free Entitlement Early Years,Supplies and Services,REVENUE
Wiltshire, http://opendatacommunities.org/id/unitary-authority/wiltshire,17/09/2018,1902200136,1237.60,Brinkworth Butterflies Pre-Sch ,110362,SN15,Children & Education,Free Enttlmnt 3 & 4y,Childcare Free Entitlement Early Years,Supplies and Services,REVENUE
Wiltshire, http://opendatacommunities.org/id/unitary-authority/wiltshire,25/09/2018,5107267428,3142.44,Bristol CC Finance Operations ,145411,BS3 ,Neighbourhood & Planning,Waste Transformation,Legal Fees,Supplies and Services,REVENUE
Wiltshire, http://opendatacommunities.org/id/unitary-authority/wiltshire,13/09/2018,5107255766,372.00,Bristol Microfilm & Imaging Limited ,126115,EX39,Community Services,Libraries,Publications / periodicals,Supplies and Services,REVENUE
Wiltshire, http://opendatacommunities.org/id/unitary-authority/wiltshire,13/09/2018,5107255767,1330.90,Bristol Microfilm & Imaging Limited ,126115,EX39,Community Services,Archives & Local Stu,Publications / periodicals,Supplies and Services,REVENUE
Wiltshire, http://opendatacommunities.org/id/unitary-authority/wiltshire,04/09/2018,1902194976,648.94,Bristol Wessex Billing Services Lim ,100164,BS48,Resources,Rural Estates,Water,Premises Related,REVENUE
Wiltshire, http://opendatacommunities.org/id/unitary-authority/wiltshire,11/09/2018,1902197789,4769.67,Bristol Wessex Billing Services Lim ,100164,BS48,Neighbourhood & Planning,SH Reindorp Lodge,Water,Premises Related,REVENUE
Wiltshire, http://opendatacommunities.org/id/unitary-authority/wiltshire,12/09/2018,1902197798,367.08,Bristol Wessex Billing Services Lim ,100164,BS48,Neighbourhood & Planning,Communal Areas,Water,Premises Related,REVENUE
Wiltshire, http://opendatacommunities.org/id/unitary-authority/wiltshire,12/09/2018,1902197798,506.31,Bristol Wessex Billing Services Lim ,100164,BS48,Neighbourhood & Planning,SH Castle Meadow,Water,Premises Related,REVENUE
Wiltshire, http://opendatacommunities.org/id/unitary-authority/wiltshire,12/09/2018,1902197798,704.27,Bristol Wessex Billing Services Lim ,100164,BS48,Neighbourhood & Planning,SH Norfolk Road,Water,Premises Related,REVENUE
Wiltshire, http://opendatacommunities.org/id/unitary-authority/wiltshire,12/09/2018,1902197798,739.30,Bristol Wessex Billing Services Lim ,100164,BS48,Neighbourhood & Planning,SH Parsons Green,Water,Premises Related,REVENUE
Wiltshire, http://opendatacommunities.org/id/unitary-authority/wiltshire,12/09/2018,1902197798,830.42,Bristol Wessex Billing Services Lim ,100164,BS48,Neighbourhood & Planning,SH Lanfear Close,Water,Premises Related,REVENUE
Wiltshire, http://opendatacommunities.org/id/unitary-authority/wiltshire,12/09/2018,1902197798,2203.99,Bristol Wessex Billing Services Lim ,100164,BS48,Neighbourhood & Planning,SH Downside,Water,Premises Related,REVENUE
Wiltshire, http://opendatacommunities.org/id/unitary-authority/wiltshire,12/09/2018,1902198709,340.00,Bristow & Sutor ,132631,B98 ,Resources,Revs&Bens-Revenues,Cash Collection / Bailiff's Fees,Supplies and Services,REVENUE
Wiltshire, http://opendatacommunities.org/id/unitary-authority/wiltshire,05/09/2018,1902196604,35087.66,British Telecom ,100310,DH98,Resources,Main xchg phon lines,Telephones - Landlines,Supplies and Services,REVENUE
Wiltshire, http://opendatacommunities.org/id/unitary-authority/wiltshire,10/09/2018,1902197584,1977.36,British Telecommunications Plc ,123564,SN2 ,Wiltshire Council,Wiltshire Council,Materials,Supplies and Services,CAPITAL
Wiltshire, http://opendatacommunities.org/id/unitary-authority/wiltshire,13/09/2018,1902199090,638.26,British Telecommunications PLC ,138227,S1 3,Wiltshire Council,Wiltshire Council,Highways Contracts - Other,Third Party Payments,CAPITAL
Wiltshire, http://opendatacommunities.org/id/unitary-authority/wiltshire,11/09/2018,5107259975,6268.80,Bruton School for Girls ,135251,BA10,Children & Education,IndepSpecialSchFees,Educational Fees,Supplies and Services,REVENUE
Wiltshire, http://opendatacommunities.org/id/unitary-authority/wiltshire,11/09/2018,5107260015,889.70,Bruton School for Girls ,135251,BA10,Children & Education,IndepSpecialSchFees,Educational Fees,Supplies and Services,REVENUE
Wiltshire, http://opendatacommunities.org/id/unitary-authority/wiltshire,25/09/2018,1902203497,210674.00,BT PLC ,139265,EC1A,Wiltshire Council,Wiltshire Council,Network Infrastructure Cabling,Supplies and Services,CAPITAL
Wiltshire, http://opendatacommunities.org/id/unitary-authority/wiltshire,12/09/2018,5107260189,4835.00,Buchanan Computing Ltd ,110398,W6 7,Resources,Applications SuppLOB,ICT - Support arrangements,Supplies and Services,REVENUE
Wiltshire, http://opendatacommunities.org/id/unitary-authority/wiltshire,17/09/2018,1902200109,20249.86,Busy Bees ,122834,BA14,Children & Education,Free Enttlmnt 3 & 4y,Childcare Free Entitlement Early Years,Supplies and Services,REVENUE
Wiltshire, http://opendatacommunities.org/id/unitary-authority/wiltshire,17/09/2018,1902200110,837.90,Busy Bees ,122834,BA14,Children & Education,Free Entitlement 2 Y,Childcare Free Entitlement Early Years,Supplies and Services,REVENUE
Wiltshire, http://opendatacommunities.org/id/unitary-authority/wiltshire,17/09/2018,1902200097,13209.12,Busy Bees Day Nursery at Salisbury ,117410,SP1 ,Children & Education,Free Enttlmnt 3 & 4y,Childcare Free Entitlement Early Years,Supplies and Services,REVENUE
Wiltshire, http://opendatacommunities.org/id/unitary-authority/wiltshire,17/09/2018,1902200098,2141.30,Busy Bees Day Nursery at Salisbury ,117410,SP1 ,Children & Education,Free Entitlement 2 Y,Childcare Free Entitlement Early Years,Supplies and Services,REVENUE
Wiltshire, http://opendatacommunities.org/id/unitary-authority/wiltshire,17/09/2018,1902200062,5401.14,Busy Kids ,114321,SN15,Children & Education,Free Enttlmnt 3 & 4y,Childcare Free Entitlement Early Years,Supplies and Services,REVENUE
Wiltshire, http://opendatacommunities.org/id/unitary-authority/wiltshire,17/09/2018,1902200063,279.30,Busy Kids ,114321,SN15,Children & Education,Free Entitlement 2 Y,Childcare Free Entitlement Early Years,Supplies and Services,REVENUE
Wiltshire, http://opendatacommunities.org/id/unitary-authority/wiltshire,17/09/2018,1902199912,9347.82,Buttercups Kindergarten ,110413,SN11,Children & Education,Free Enttlmnt 3 & 4y,Childcare Free Entitlement Early Years,Supplies and Services,REVENUE
Wiltshire, http://opendatacommunities.org/id/unitary-authority/wiltshire,17/09/2018,1902199913,1461.67,Buttercups Kindergarten ,110413,SN11,Children & Education,Free Entitlement 2 Y,Childcare Free Entitlement Early Years,Supplies and Services,REVENUE
Wiltshire, http://opendatacommunities.org/id/unitary-authority/wiltshire,17/09/2018,5107254841,8107.50,BWSIPP Trustees Ltd ,131981,SN15,Resources,SAFM - Other Assets,Premises Rental,Premises Related,REVENUE
Wiltshire, http://opendatacommunities.org/id/unitary-authority/wiltshire,21/09/2018,5107265838,2617.46,By The Bridge North West Ltd ,136982,TN15,Children & Education,Ext Placement & IFA,Childrens Agency Placement,Third Party Payments,REVENUE
Wiltshire, http://opendatacommunities.org/id/unitary-authority/wiltshire,21/09/2018,5107265839,2824.54,By The Bridge North West Ltd ,136982,TN15,Children & Education,Ext Placement & IFA,Childrens Agency Placement,Third Party Payments,REVENUE
Wiltshire, http://opendatacommunities.org/id/unitary-authority/wiltshire,11/09/2018,5107259997,14688.05,Bytes Software Services ,143925,KT22,Resources,Microsoft Entpr&Slct,ICT - Support arrangements,Supplies and Services,REVENUE
Wiltshire, http://opendatacommunities.org/id/unitary-authority/wiltshire,17/09/2018,5107257401,2474.90,C C S Media ,114362,S40 ,Resources,Desk Top Hardware,IT Hardware Purchases,Supplies and Services,REVENUE
Wiltshire, http://opendatacommunities.org/id/unitary-authority/wiltshire,28/09/2018,5107259642,316.68,C C S Media ,114362,S40 ,Resources,Desk Top Hardware,IT Hardware Purchases,Supplies and Services,REVENUE
Wiltshire, http://opendatacommunities.org/id/unitary-authority/wiltshire,20/09/2018,1902202542,675.00,Calne Taxis ,101502,SN11,Neighbourhood & Planning,SEN Secondary,Transport Contracts,Third Party Payments,REVENUE
Wiltshire, http://opendatacommunities.org/id/unitary-authority/wiltshire,10/09/2018,1902197510,3237.67,Calne Travel ,100267,SN11,Neighbourhood & Planning,Mainstream Secondary,Transport Contracts,Third Party Payments,REVENUE
Wiltshire, http://opendatacommunities.org/id/unitary-authority/wiltshire,10/09/2018,1902197511,4170.63,Calne Travel ,100267,SN11,Neighbourhood & Planning,Mainstream 16+ Sec,Transport Contracts,Third Party Payments,REVENUE
Wiltshire, http://opendatacommunities.org/id/unitary-authority/wiltshire,04/09/2018,5107259366,31301.60,Cambian Autism Services Ltd ,110434,W6 9,Children & Education,IndepSpecialSchFees,Educational Fees,Supplies and Services,REVENUE
Wiltshire, http://opendatacommunities.org/id/unitary-authority/wiltshire,04/09/2018,5107259367,31301.59,Cambian Autism Services Ltd ,110434,W6 9,Children & Education,0-25 extnl disabty p,Educational Fees,Supplies and Services,REVENUE
Wiltshire, http://opendatacommunities.org/id/unitary-authority/wiltshire,04/09/2018,5107259368,9240.00,Cambian Autism Services Ltd ,110434,W6 9,Children & Education,IndepSpecialSchFees,Educational Fees,Supplies and Services,REVENUE
Wiltshire, http://opendatacommunities.org/id/unitary-authority/wiltshire,04/09/2018,5107259369,9240.00,Cambian Autism Services Ltd ,110434,W6 9,Children & Education,0-25 extnl disabty p,Educational Fees,Supplies and Services,REVENUE
Wiltshire, http://opendatacommunities.org/id/unitary-authority/wiltshire,04/09/2018,5107259370,9572.21,Cambian Autism Services Ltd ,110434,W6 9,Children & Education,IndepSpecialSchFees,Educational Fees,Supplies and Services,REVENUE
Wiltshire, http://opendatacommunities.org/id/unitary-authority/wiltshire,04/09/2018,5107259371,9572.21,Cambian Autism Services Ltd ,110434,W6 9,Children & Education,0-25 extnl disabty p,Educational Fees,Supplies and Services,REVENUE
Wiltshire, http://opendatacommunities.org/id/unitary-authority/wiltshire,04/09/2018,5107259372,9572.21,Cambian Autism Services Ltd ,110434,W6 9,Children & Education,IndepSpecialSchFees,Educational Fees,Supplies and Services,REVENUE
Wiltshire, http://opendatacommunities.org/id/unitary-authority/wiltshire,04/09/2018,5107259373,9572.21,Cambian Autism Services Ltd ,110434,W6 9,Children & Education,0-25 extnl disabty p,Educational Fees,Supplies and Services,REVENUE
Wiltshire, http://opendatacommunities.org/id/unitary-authority/wiltshire,12/09/2018,5107260528,70000.00,Canal & River Trust ,138180,LS9 ,Neighbourhood & Planning,Countryside,Grants Expenditure,Supplies and Services,REVENUE
Wiltshire, http://opendatacommunities.org/id/unitary-authority/wiltshire,04/09/2018,5107259292,888.08,Canon  Uk  Ltd ,110444,RH2 ,Neighbourhood & Planning,Development Control,Stationery,Supplies and Services,REVENUE
Wiltshire, http://opendatacommunities.org/id/unitary-authority/wiltshire,27/09/2018,5107259934,964.00,Canon  Uk  Ltd ,110444,RH2 ,Resources,DesignPrintTrowbridg,Printing Internal - Internal Trading Charges,Supplies and Services,REVENUE
Wiltshire, http://opendatacommunities.org/id/unitary-authority/wiltshire,27/09/2018,5107260178,314.00,Canon  Uk  Ltd ,110444,RH2 ,Neighbourhood & Planning,N Wessex Downs AONB,Photocopier Rental,Supplies and Services,REVENUE
Wiltshire, http://opendatacommunities.org/id/unitary-authority/wiltshire,14/09/2018,5107261615,380.10,Canon  Uk  Ltd ,110444,RH2 ,Resources,DesignPrintTrowbridg,Printing Internal - Internal Trading Charges,Supplies and Services,REVENUE
Wiltshire, http://opendatacommunities.org/id/unitary-authority/wiltshire,14/09/2018,5107261617,602.28,Canon  Uk  Ltd ,110444,RH2 ,Resources,DesignPrintTrowbridg,Printing Internal - Internal Trading Charges,Supplies and Services,REVENUE
Wiltshire, http://opendatacommunities.org/id/unitary-authority/wiltshire,24/09/2018,5107266683,3385.80,Capstone Foster Care ,125793,TQ12,Children & Education,Ext Placement & IFA,Childrens Agency Placement,Third Party Payments,REVENUE
Wiltshire, http://opendatacommunities.org/id/unitary-authority/wiltshire,24/09/2018,5107266684,3385.80,Capstone Foster Care ,125793,TQ12,Children & Education,Ext Placement & IFA,Childrens Agency Placement,Third Party Payments,REVENUE
Wiltshire, http://opendatacommunities.org/id/unitary-authority/wiltshire,24/09/2018,5107266685,3990.00,Capstone Foster Care ,125793,TQ12,Children & Education,Ext Placement & IFA,Childrens Agency Placement,Third Party Payments,REVENUE
Wiltshire, http://opendatacommunities.org/id/unitary-authority/wiltshire,24/09/2018,5107266686,3280.50,Capstone Foster Care ,125793,TQ12,Children & Education,Ext Placement & IFA,Childrens Agency Placement,Third Party Payments,REVENUE
Wiltshire, http://opendatacommunities.org/id/unitary-authority/wiltshire,24/09/2018,5107266687,3280.50,Capstone Foster Care ,125793,TQ12,Children & Education,Ext Placement & IFA,Childrens Agency Placement,Third Party Payments,REVENUE
Wiltshire, http://opendatacommunities.org/id/unitary-authority/wiltshire,24/09/2018,5107266688,3552.90,Capstone Foster Care ,125793,TQ12,Children & Education,Ext Placement & IFA,Childrens Agency Placement,Third Party Payments,REVENUE
Wiltshire, http://opendatacommunities.org/id/unitary-authority/wiltshire,24/09/2018,5107266689,3347.40,Capstone Foster Care ,125793,TQ12,Children & Education,Ext Placement & IFA,Childrens Agency Placement,Third Party Payments,REVENUE
Wiltshire, http://opendatacommunities.org/id/unitary-authority/wiltshire,24/09/2018,5107266690,3347.40,Capstone Foster Care ,125793,TQ12,Children & Education,Ext Placement & IFA,Childrens Agency Placement,Third Party Payments,REVENUE
Wiltshire, http://opendatacommunities.org/id/unitary-authority/wiltshire,24/09/2018,5107266691,3552.90,Capstone Foster Care ,125793,TQ12,Children & Education,Ext Placement & IFA,Childrens Agency Placement,Third Party Payments,REVENUE
Wiltshire, http://opendatacommunities.org/id/unitary-authority/wiltshire,24/09/2018,5107266740,4334.40,Capstone Foster Care ,125793,TQ12,Children & Education,Ext Placement & IFA,Childrens Agency Placement,Third Party Payments,REVENUE
Wiltshire, http://opendatacommunities.org/id/unitary-authority/wiltshire,28/09/2018,5107267430,4646.19,Cardinus Limited ,127424,RH19,Resources,Health & Safety,ICT - Support arrangements,Supplies and Services,REVENUE
Wiltshire, http://opendatacommunities.org/id/unitary-authority/wiltshire,17/09/2018,1902199843,2577.12,Carers Nest Pre School ,136873,SN10,Children & Education,Free Enttlmnt 3 & 4y,Childcare Free Entitlement Early Years,Supplies and Services,REVENUE
Wiltshire, http://opendatacommunities.org/id/unitary-authority/wiltshire,17/09/2018,1902199844,1061.34,Carers Nest Pre School ,136873,SN10,Children & Education,Free Entitlement 2 Y,Childcare Free Entitlement Early Years,Supplies and Services,REVENUE
Wiltshire, http://opendatacommunities.org/id/unitary-authority/wiltshire,10/09/2018,5107259924,1212.00,Carpet Barn Chippenham Ltd ,126673,SN15,Children & Education,CiC Team North,Grants Expenditure,Supplies and Services,REVENUE
Wiltshire, http://opendatacommunities.org/id/unitary-authority/wiltshire,07/09/2018,5107259698,1200.00,Carter Brown The Expert Service ,133141,B16 ,Children & Education,HQ Social Care,Witness / Jurors' / Justice's Expenses,Supplies and Services,REVENUE
Wiltshire, http://opendatacommunities.org/id/unitary-authority/wiltshire,28/09/2018,5107268506,1150.00,Carter Brown The Expert Service ,133141,B16 ,Children & Education,In house fostering t,Carer Recruitment & Training,Third Party Payments,REVENUE
Wiltshire, http://opendatacommunities.org/id/unitary-authority/wiltshire,28/09/2018,5107268553,1150.00,Carter Brown The Expert Service ,133141,B16 ,Children & Education,In house fostering t,Carer Recruitment & Training,Third Party Payments,REVENUE
Wiltshire, http://opendatacommunities.org/id/unitary-authority/wiltshire,28/09/2018,5107268554,2400.00,Carter Brown The Expert Service ,133141,B16 ,Children & Education,In house fostering t,Carer Recruitment & Training,Third Party Payments,REVENUE
Wiltshire, http://opendatacommunities.org/id/unitary-authority/wiltshire,18/09/2018,1902197639,750.00,Carter Jonas ,101533,PE1 ,Resources,Investment Estate,Professional Fees,Supplies and Services,REVENUE
Wiltshire, http://opendatacommunities.org/id/unitary-authority/wiltshire,17/09/2018,1902200319,10104.44,Castle Mead Nursery ,140424,BA14,Children & Education,Free Enttlmnt 3 & 4y,Childcare Free Entitlement Early Years,Supplies and Services,REVENUE
Wiltshire, http://opendatacommunities.org/id/unitary-authority/wiltshire,17/09/2018,1902200320,3491.25,Castle Mead Nursery ,140424,BA14,Children & Education,Free Entitlement 2 Y,Childcare Free Entitlement Early Years,Supplies and Services,REVENUE
Wiltshire, http://opendatacommunities.org/id/unitary-authority/wiltshire,04/09/2018,1902186460,856.74,Castle Water Ltd ,145216,PH10,Resources,FM Leisure Centres,Water,Premises Related,REVENUE
Wiltshire, http://opendatacommunities.org/id/unitary-authority/wiltshire,28/09/2018,1902201472,841.35,Castle Water Ltd ,145216,PH10,Resources,Investment Estate,Water,Premises Related,REVENUE
Wiltshire, http://opendatacommunities.org/id/unitary-authority/wiltshire,28/09/2018,1902201474,856.78,Castle Water Ltd ,145216,PH10,Resources,FM Leisure Centres,Water,Premises Related,REVENUE
Wiltshire, http://opendatacommunities.org/id/unitary-authority/wiltshire,17/09/2018,1902200241,14414.40,Caterpillas Under 5s ,110480,SP9 ,Children & Education,Free Enttlmnt 3 & 4y,Childcare Free Entitlement Early Years,Supplies and Services,REVENUE
Wiltshire, http://opendatacommunities.org/id/unitary-authority/wiltshire,17/09/2018,1902200242,2346.12,Caterpillas Under 5s ,110480,SP9 ,Children & Education,Free Entitlement 2 Y,Childcare Free Entitlement Early Years,Supplies and Services,REVENUE
Wiltshire, http://opendatacommunities.org/id/unitary-authority/wiltshire,11/09/2018,5107259978,655.00,CB Skip Hire ,110484,SP1 ,Neighbourhood & Planning,DLO,Equipment Purchase,Supplies and Services,REVENUE
Wiltshire, http://opendatacommunities.org/id/unitary-authority/wiltshire,11/09/2018,5107259979,350.00,CB Skip Hire ,110484,SP1 ,Neighbourhood & Planning,Responsive Repairs,Equipment Purchase,Supplies and Services,REVENUE
Wiltshire, http://opendatacommunities.org/id/unitary-authority/wiltshire,25/09/2018,5107260563,655.00,CB Skip Hire ,110484,SP1 ,Neighbourhood & Planning,DLO,Equipment Purchase,Supplies and Services,REVENUE
Wiltshire, http://opendatacommunities.org/id/unitary-authority/wiltshire,04/09/2018,5107259281,271.24,CENTREWIRE LTD ,110495,ST3 ,Neighbourhood & Planning,Rights of Way,Materials,Supplies and Services,REVENUE
Wiltshire, http://opendatacommunities.org/id/unitary-authority/wiltshire,05/09/2018,1902196589,583.05,CFH Total Document ,133330,BA3 ,Resources,Revs&Bens-Revenues,Postage,Supplies and Services,REVENUE
Wiltshire, http://opendatacommunities.org/id/unitary-authority/wiltshire,14/09/2018,1902197792,757.37,CFH Total Document ,133330,BA3 ,Resources,Revs&Bens-Revenues,Postage,Supplies and Services,REVENUE
Wiltshire, http://opendatacommunities.org/id/unitary-authority/wiltshire,18/09/2018,1902201176,272.00,CFH Total Document ,133330,BA3 ,Resources,Revs&Bens-Housng Ben,ICT - Support arrangements,Supplies and Services,REVENUE
Wiltshire, http://opendatacommunities.org/id/unitary-authority/wiltshire,18/09/2018,1902201177,3336.95,CFH Total Document ,133330,BA3 ,Resources,Revs&Bens-Revenues,Postage,Supplies and Services,REVENUE
Wiltshire, http://opendatacommunities.org/id/unitary-authority/wiltshire,18/09/2018,1902201177,3336.96,CFH Total Document ,133330,BA3 ,Resources,Revs&Bens-Housng Ben,Postage,Supplies and Services,REVENUE
Wiltshire, http://opendatacommunities.org/id/unitary-authority/wiltshire,18/09/2018,1902201180,814.88,CFH Total Document ,133330,BA3 ,Resources,Revs&Bens-Housng Ben,Other Contracts,Third Party Payments,REVENUE
Wiltshire, http://opendatacommunities.org/id/unitary-authority/wiltshire,18/09/2018,1902201180,814.88,CFH Total Document ,133330,BA3 ,Resources,Revs&Bens-Revenues,Other Contracts,Third Party Payments,REVENUE
Wiltshire, http://opendatacommunities.org/id/unitary-authority/wiltshire,27/09/2018,1902201376,539.43,CFH Total Document ,133330,BA3 ,Resources,Revs&Bens-Revenues,Postage,Supplies and Services,REVENUE
Wiltshire, http://opendatacommunities.org/id/unitary-authority/wiltshire,04/09/2018,5107259300,1193.01,CFH Total Document ,133330,BA3 ,Neighbourhood & Planning,Waste Mangmt Team,Waste Contracts,Third Party Payments,REVENUE
Wiltshire, http://opendatacommunities.org/id/unitary-authority/wiltshire,04/09/2018,5107259301,9899.17,CFH Total Document ,133330,BA3 ,Neighbourhood & Planning,Waste Mangmt Team,Waste Contracts,Third Party Payments,REVENUE
Wiltshire, http://opendatacommunities.org/id/unitary-authority/wiltshire,04/09/2018,5107259302,303.45,CFH Total Document ,133330,BA3 ,Neighbourhood & Planning,Waste Mangmt Team,Waste Contracts,Third Party Payments,REVENUE
Wiltshire, http://opendatacommunities.org/id/unitary-authority/wiltshire,05/09/2018,1902187924,896.00,Chapple  and  Jenkins Limited ,110503,BS15,Neighbourhood & Planning,Five Rivers,Vending costs,Supplies and Services,REVENUE
Wiltshire, http://opendatacommunities.org/id/unitary-authority/wiltshire,12/09/2018,1902188474,504.42,Chapple  and  Jenkins Limited ,110503,BS15,Neighbourhood & Planning,Five Rivers,Vending costs,Supplies and Services,REVENUE
Wiltshire, http://opendatacommunities.org/id/unitary-authority/wiltshire,19/09/2018,1902194248,563.39,Chapple  and  Jenkins Limited ,110503,BS15,Neighbourhood & Planning,Five Rivers,Vending costs,Supplies and Services,REVENUE
Wiltshire, http://opendatacommunities.org/id/unitary-authority/wiltshire,05/09/2018,5107258950,255.90,Chapple  and  Jenkins Limited ,110503,BS15,Neighbourhood & Planning,Amesbury,Vending costs,Supplies and Services,REVENUE
Wiltshire, http://opendatacommunities.org/id/unitary-authority/wiltshire,28/09/2018,5107268612,562.66,Chapple  and  Jenkins Limited ,110503,BS15,Neighbourhood & Planning,Durrington SwimmingP,Vending costs,Supplies and Services,REVENUE
Wiltshire, http://opendatacommunities.org/id/unitary-authority/wiltshire,11/09/2018,1902197640,515.72,Charming Stoves Ltd ,146863,TA11,Neighbourhood & Planning,Biomass Prog Schools,Premises Related Other Maintenance Costs,Premises Related,REVENUE
Wiltshire, http://opendatacommunities.org/id/unitary-authority/wiltshire,11/09/2018,1902197641,2875.00,Charming Stoves Ltd ,146863,TA11,Neighbourhood & Planning,Biomass Prog Schools,Premises Related Other Maintenance Costs,Premises Related,REVENUE
Wiltshire, http://opendatacommunities.org/id/unitary-authority/wiltshire,11/09/2018,1902197643,1267.18,Charming Stoves Ltd ,146863,TA11,Neighbourhood & Planning,Biomass Prog Schools,Premises Related Other Maintenance Costs,Premises Related,REVENUE
Wiltshire, http://opendatacommunities.org/id/unitary-authority/wiltshire,26/09/2018,1902203745,485.00,Charming Stoves Ltd ,146863,TA11,Neighbourhood & Planning,Biomass Prog Schools,Premises Related Other Maintenance Costs,Premises Related,REVENUE
Wiltshire, http://opendatacommunities.org/id/unitary-authority/wiltshire,19/09/2018,1902196783,730.12,Chelsea & Westminster Hospital NHS Foundation Trust,138260,WF3 ,Neighbourhood & Planning,Sexual Health Commun,Public Health Commissioning,Supplies and Services,REVENUE
Wiltshire, http://opendatacommunities.org/id/unitary-authority/wiltshire,19/09/2018,1902196784,579.15,Chelsea & Westminster Hospital NHS Foundation Trust,138260,WF3 ,Neighbourhood & Planning,Sexual Health Commun,Public Health Commissioning,Supplies and Services,REVENUE
Wiltshire, http://opendatacommunities.org/id/unitary-authority/wiltshire,14/09/2018,1902197659,650.00,Chesterton Humberts ,125519,SN15,Resources,Investment Estate,Professional Fees,Supplies and Services,REVENUE
Wiltshire, http://opendatacommunities.org/id/unitary-authority/wiltshire,26/09/2018,1902203746,1447.50,Chippenham Town Council ,110525,SN15,Resources,SAFM - Other Assets,Property Maintenance,Premises Related,REVENUE
Wiltshire, http://opendatacommunities.org/id/unitary-authority/wiltshire,05/09/2018,5107259439,4102.35,Chipside Limited ,110526,SN5 ,Neighbourhood & Planning,Car Park Admin,ICT - Support arrangements,Supplies and Services,REVENUE
Wiltshire, http://opendatacommunities.org/id/unitary-authority/wiltshire,05/09/2018,5107259440,1644.14,Chipside Limited ,110526,SN5 ,Neighbourhood & Planning,Car Park Admin,ICT - Support arrangements,Supplies and Services,REVENUE
Wiltshire, http://opendatacommunities.org/id/unitary-authority/wiltshire,28/09/2018,5107266043,1811.18,Chipside Limited ,110526,SN5 ,Neighbourhood & Planning,Car Park Admin,ICT - Support arrangements,Supplies and Services,REVENUE
Wiltshire, http://opendatacommunities.org/id/unitary-authority/wiltshire,28/09/2018,5107266045,3947.02,Chipside Limited ,110526,SN5 ,Neighbourhood & Planning,Car Park Admin,ICT - Support arrangements,Supplies and Services,REVENUE
Wiltshire, http://opendatacommunities.org/id/unitary-authority/wiltshire,06/09/2018,5107258963,9284.60,Chubb Community Care ,124344,BB1 ,Neighbourhood & Planning,Housg Rprs Contracts,Premises Related Other Maintenance Costs,Premises Related,REVENUE
Wiltshire, http://opendatacommunities.org/id/unitary-authority/wiltshire,07/09/2018,1902197405,266.00,Chubb Electronic Security - Bristol Ltd,114756,BS14,Neighbourhood & Planning,Responsive Repairs,Premises Related Other Maintenance Costs,Premises Related,REVENUE
Wiltshire, http://opendatacommunities.org/id/unitary-authority/wiltshire,20/09/2018,1902202566,266.00,Chubb Electronic Security - Bristol Ltd,114756,BS14,Neighbourhood & Planning,Responsive Repairs,Premises Related Other Maintenance Costs,Premises Related,REVENUE
Wiltshire, http://opendatacommunities.org/id/unitary-authority/wiltshire,17/09/2018,1902200354,271.74,Churchill Contract Services Ltd ,135047,AL5 ,Neighbourhood & Planning,The Old Fire Sttn EC,Cleaning,Premises Related,REVENUE
Wiltshire, http://opendatacommunities.org/id/unitary-authority/wiltshire,17/09/2018,1902200354,328.70,Churchill Contract Services Ltd ,135047,AL5 ,Resources,FM Leisure Centres,Cleaning,Premises Related,REVENUE
Wiltshire, http://opendatacommunities.org/id/unitary-authority/wiltshire,17/09/2018,1902200354,343.60,Churchill Contract Services Ltd ,135047,AL5 ,Resources,Special Schools,Cleaning,Premises Related,REVENUE
Wiltshire, http://opendatacommunities.org/id/unitary-authority/wiltshire,17/09/2018,1902200354,364.48,Churchill Contract Services Ltd ,135047,AL5 ,Neighbourhood & Planning,Manor House Enterpri,Cleaning,Premises Related,REVENUE
Wiltshire, http://opendatacommunities.org/id/unitary-authority/wiltshire,17/09/2018,1902200354,395.12,Churchill Contract Services Ltd ,135047,AL5 ,Neighbourhood & Planning,Porton Science Park,Cleaning,Premises Related,REVENUE
Wiltshire, http://opendatacommunities.org/id/unitary-authority/wiltshire,17/09/2018,1902200354,407.15,Churchill Contract Services Ltd ,135047,AL5 ,Resources,Investment Estate,Cleaning,Premises Related,REVENUE
Wiltshire, http://opendatacommunities.org/id/unitary-authority/wiltshire,17/09/2018,1902200354,451.34,Churchill Contract Services Ltd ,135047,AL5 ,Children & Education,Aspire House,Cleaning,Premises Related,REVENUE
Wiltshire, http://opendatacommunities.org/id/unitary-authority/wiltshire,17/09/2018,1902200354,452.17,Churchill Contract Services Ltd ,135047,AL5 ,Neighbourhood & Planning,Kingsbury Hostel,Cleaning,Premises Related,REVENUE
Wiltshire, http://opendatacommunities.org/id/unitary-authority/wiltshire,17/09/2018,1902200354,723.71,Churchill Contract Services Ltd ,135047,AL5 ,Neighbourhood & Planning,Wilts Incubation Env,Cleaning,Premises Related,REVENUE
Wiltshire, http://opendatacommunities.org/id/unitary-authority/wiltshire,17/09/2018,1902200354,809.97,Churchill Contract Services Ltd ,135047,AL5 ,Community Services,Bradbury Manor Resp,Cleaning,Premises Related,REVENUE
Wiltshire, http://opendatacommunities.org/id/unitary-authority/wiltshire,17/09/2018,1902200354,1501.98,Churchill Contract Services Ltd ,135047,AL5 ,Resources,Salisbury City Hall,Cleaning,Premises Related,REVENUE
Wiltshire, http://opendatacommunities.org/id/unitary-authority/wiltshire,17/09/2018,1902200354,2657.24,Churchill Contract Services Ltd ,135047,AL5 ,Resources,Bourne Hill,Cleaning,Premises Related,REVENUE
Wiltshire, http://opendatacommunities.org/id/unitary-authority/wiltshire,17/09/2018,1902200354,3640.97,Churchill Contract Services Ltd ,135047,AL5 ,Resources,FM Highway Depots,Cleaning,Premises Related,REVENUE
Wiltshire, http://opendatacommunities.org/id/unitary-authority/wiltshire,17/09/2018,1902200354,4512.16,Churchill Contract Services Ltd ,135047,AL5 ,Resources,Monkton Park,Cleaning,Premises Related,REVENUE
Wiltshire, http://opendatacommunities.org/id/unitary-authority/wiltshire,17/09/2018,1902200354,5639.18,Churchill Contract Services Ltd ,135047,AL5 ,Resources,5 Rivers LC,Cleaning,Premises Related,REVENUE
Wiltshire, http://opendatacommunities.org/id/unitary-authority/wiltshire,17/09/2018,1902200354,8325.43,Churchill Contract Services Ltd ,135047,AL5 ,Resources,SAFM - Other Assets,Cleaning,Premises Related,REVENUE
Wiltshire, http://opendatacommunities.org/id/unitary-authority/wiltshire,17/09/2018,1902200354,15698.12,Churchill Contract Services Ltd ,135047,AL5 ,Resources,FM Libraries,Cleaning,Premises Related,REVENUE
Wiltshire, http://opendatacommunities.org/id/unitary-authority/wiltshire,17/09/2018,1902200354,19272.72,Churchill Contract Services Ltd ,135047,AL5 ,Resources,County Hall Complex,Cleaning,Premises Related,REVENUE
Wiltshire, http://opendatacommunities.org/id/unitary-authority/wiltshire,21/09/2018,1902197588,432.29,Churchill Environmental Services ,143816,AL5 ,Resources,FM Leisure Centres,Property Maintenance,Premises Related,REVENUE
Wiltshire, http://opendatacommunities.org/id/unitary-authority/wiltshire,21/09/2018,1902197588,648.02,Churchill Environmental Services ,143816,AL5 ,Resources,SAFM - Other Assets,Property Maintenance,Premises Related,REVENUE
Wiltshire, http://opendatacommunities.org/id/unitary-authority/wiltshire,21/09/2018,1902197588,2748.81,Churchill Environmental Services ,143816,AL5 ,Children & Education,Sch Compliance Schem,Premises Related Other Maintenance Costs,Premises Related,REVENUE
Wiltshire, http://opendatacommunities.org/id/unitary-authority/wiltshire,06/09/2018,1902197097,38200.00,Churchill Retirement ,147397,BH24,Neighbourhood & Planning,Transport Plan & DC,Developers Fee Income,Income,REVENUE
Wiltshire, http://opendatacommunities.org/id/unitary-authority/wiltshire,13/09/2018,1902199553,682.50,Chute Farms Limited ,131137,SP11,Neighbourhood & Planning,Winter Maintenance,Grounds Maintenance,Premises Related,REVENUE
Wiltshire, http://opendatacommunities.org/id/unitary-authority/wiltshire,28/09/2018,1902203747,375.00,CIPFA Business Limited ,116688,E1 8,Resources,Facilities Managemen,Conference Fees,Supplies and Services,REVENUE
Wiltshire, http://opendatacommunities.org/id/unitary-authority/wiltshire,10/09/2018,5107259915,390.00,Citrus Training Ltd ,145582,NN9 ,Resources,HR Central Training,Staff Training - General,Employee Related,REVENUE
Wiltshire, http://opendatacommunities.org/id/unitary-authority/wiltshire,10/09/2018,5107259917,390.00,Citrus Training Ltd ,145582,NN9 ,Resources,HR Central Training,Staff Training - General,Employee Related,REVENUE
Wiltshire, http://opendatacommunities.org/id/unitary-authority/wiltshire,12/09/2018,5107259920,390.00,Citrus Training Ltd ,145582,NN9 ,Resources,HR Central Training,Staff Training - General,Employee Related,REVENUE
Wiltshire, http://opendatacommunities.org/id/unitary-authority/wiltshire,04/09/2018,1902185518,3166.38,Civica UK Ltd ,114793,DY1 ,Neighbourhood & Planning,ChoicedBasedLetting,IT Hardware Purchases,Supplies and Services,REVENUE
Wiltshire, http://opendatacommunities.org/id/unitary-authority/wiltshire,21/09/2018,1902202649,1170.00,Cleansing Service Group Ltd ,100226,PO15,Neighbourhood & Planning,Other Weather Emerg,Materials,Supplies and Services,REVENUE
Wiltshire, http://opendatacommunities.org/id/unitary-authority/wiltshire,25/09/2018,5107259931,2790.00,CloudDNA ,146681,SL6 ,Resources,Infrastructure,ICT - Support arrangements,Supplies and Services,REVENUE
Wiltshire, http://opendatacommunities.org/id/unitary-authority/wiltshire,04/09/2018,1902195786,3333.33,Coachstyle Ltd ,100176,SN14,Neighbourhood & Planning,Mainstream Secondary,Transport Contracts,Third Party Payments,REVENUE
Wiltshire, http://opendatacommunities.org/id/unitary-authority/wiltshire,04/09/2018,1902195786,9999.99,Coachstyle Ltd ,100176,SN14,Neighbourhood & Planning,Mainstream 16+ Sec,Transport Contracts,Third Party Payments,REVENUE
Wiltshire, http://opendatacommunities.org/id/unitary-authority/wiltshire,04/09/2018,1902195786,9999.99,Coachstyle Ltd ,100176,SN14,Neighbourhood & Planning,Mainstream 16+ FE,Transport Contracts,Third Party Payments,REVENUE
Wiltshire, http://opendatacommunities.org/id/unitary-authority/wiltshire,04/09/2018,1902195786,30750.02,Coachstyle Ltd ,100176,SN14,Neighbourhood & Planning,Public Transport,Transport Contracts,Third Party Payments,REVENUE
Wiltshire, http://opendatacommunities.org/id/unitary-authority/wiltshire,04/09/2018,1902195787,1040.00,Coachstyle Ltd ,100176,SN14,Neighbourhood & Planning,Public Transport,Transport Contracts,Third Party Payments,REVENUE
Wiltshire, http://opendatacommunities.org/id/unitary-authority/wiltshire,04/09/2018,1902195788,3467.50,Coachstyle Ltd ,100176,SN14,Neighbourhood & Planning,Mainstream Secondary,Transport Contracts,Third Party Payments,REVENUE
Wiltshire, http://opendatacommunities.org/id/unitary-authority/wiltshire,04/09/2018,1902195789,5021.34,Coachstyle Ltd ,100176,SN14,Neighbourhood & Planning,Mainstream Secondary,Transport Contracts,Third Party Payments,REVENUE
Wiltshire, http://opendatacommunities.org/id/unitary-authority/wiltshire,04/09/2018,1902195790,2992.50,Coachstyle Ltd ,100176,SN14,Neighbourhood & Planning,Mainstream Secondary,Transport Contracts,Third Party Payments,REVENUE
Wiltshire, http://opendatacommunities.org/id/unitary-authority/wiltshire,04/09/2018,1902195791,2992.50,Coachstyle Ltd ,100176,SN14,Neighbourhood & Planning,Mainstream Secondary,Transport Contracts,Third Party Payments,REVENUE
Wiltshire, http://opendatacommunities.org/id/unitary-authority/wiltshire,04/09/2018,1902195793,2045.66,Coachstyle Ltd ,100176,SN14,Neighbourhood & Planning,Mainstream Secondary,Transport Contract -  Bus Season Tickets,Third Party Payments,REVENUE
Wiltshire, http://opendatacommunities.org/id/unitary-authority/wiltshire,04/09/2018,1902195794,4031.16,Coachstyle Ltd ,100176,SN14,Neighbourhood & Planning,Mainstream Secondary,Transport Contract -  Bus Season Tickets,Third Party Payments,REVENUE
Wiltshire, http://opendatacommunities.org/id/unitary-authority/wiltshire,04/09/2018,1902195795,3995.83,Coachstyle Ltd ,100176,SN14,Neighbourhood & Planning,Mainstream Secondary,Transport Contracts,Third Party Payments,REVENUE
Wiltshire, http://opendatacommunities.org/id/unitary-authority/wiltshire,04/09/2018,1902195796,3087.08,Coachstyle Ltd ,100176,SN14,Neighbourhood & Planning,Mainstream Secondary,Transport Contracts,Third Party Payments,REVENUE
Wiltshire, http://opendatacommunities.org/id/unitary-authority/wiltshire,25/09/2018,1902203565,6400.00,Coachstyle Ltd ,100176,SN14,Neighbourhood & Planning,Concessionary Fares,Concessionary fares,Third Party Payments,REVENUE
Wiltshire, http://opendatacommunities.org/id/unitary-authority/wiltshire,27/09/2018,1902210033,600.00,Coachstyle Ltd ,100176,SN14,Neighbourhood & Planning,SEN 16+ Secondary,Transport Contracts,Third Party Payments,REVENUE
Wiltshire, http://opendatacommunities.org/id/unitary-authority/wiltshire,17/09/2018,1902200197,4586.40,College Fields Montessori 365 ,110584,SN8 ,Children & Education,Free Enttlmnt 3 & 4y,Childcare Free Entitlement Early Years,Supplies and Services,REVENUE
Wiltshire, http://opendatacommunities.org/id/unitary-authority/wiltshire,26/09/2018,1902209570,4802.25,Community Catalysts CIC ,145797,HG1 ,Community Services,Local Area Co-ord,Consultants Fees,Supplies and Services,REVENUE
Wiltshire, http://opendatacommunities.org/id/unitary-authority/wiltshire,26/09/2018,1902209656,2009.60,Community Catalysts CIC ,145797,HG1 ,Community Services,Local Area Co-ord,Consultants Fees,Supplies and Services,REVENUE
Wiltshire, http://opendatacommunities.org/id/unitary-authority/wiltshire,13/09/2018,1902199454,350.08,Community First Trading Limited ,143759,SN10,Neighbourhood & Planning,Mainstream Primary,Transport Contracts,Third Party Payments,REVENUE
Wiltshire, http://opendatacommunities.org/id/unitary-authority/wiltshire,13/09/2018,1902199454,650.15,Community First Trading Limited ,143759,SN10,Neighbourhood & Planning,Mainstream Secondary,Transport Contracts,Third Party Payments,REVENUE
Wiltshire, http://opendatacommunities.org/id/unitary-authority/wiltshire,07/09/2018,5107259749,3675.67,Community Foster Care Ltd ,110597,GL19,Children & Education,Ext Placement & IFA,Childrens Agency Placement,Third Party Payments,REVENUE
Wiltshire, http://opendatacommunities.org/id/unitary-authority/wiltshire,07/09/2018,5107259765,3675.67,Community Foster Care Ltd ,110597,GL19,Children & Education,Ext Placement & IFA,Childrens Agency Placement,Third Party Payments,REVENUE
Wiltshire, http://opendatacommunities.org/id/unitary-authority/wiltshire,28/09/2018,5107268640,3557.10,Community Foster Care Ltd ,110597,GL19,Children & Education,Ext Placement & IFA,Childrens Agency Placement,Third Party Payments,REVENUE
Wiltshire, http://opendatacommunities.org/id/unitary-authority/wiltshire,25/09/2018,1902203562,4000.00,Community Transport for South Wilts ,100761,SP2 ,Neighbourhood & Planning,Concessionary Fares,Concessionary fares,Third Party Payments,REVENUE
Wiltshire, http://opendatacommunities.org/id/unitary-authority/wiltshire,11/09/2018,5107260085,3542.68,Compass Fostering London Limited ,146749,LE11,Children & Education,UASC Under 18 Years,Childrens Agency Placement,Third Party Payments,REVENUE
Wiltshire, http://opendatacommunities.org/id/unitary-authority/wiltshire,28/09/2018,5107260565,3428.40,Compass Fostering London Limited ,146749,LE11,Children & Education,UASC Under 18 Years,Childrens Agency Placement,Third Party Payments,REVENUE
Wiltshire, http://opendatacommunities.org/id/unitary-authority/wiltshire,13/09/2018,5107260583,1170.00,Compass Fostering South Rustington Office,143637,LE11,Children & Education,Ext Placement & IFA,Childrens Agency Placement,Third Party Payments,REVENUE
Wiltshire, http://opendatacommunities.org/id/unitary-authority/wiltshire,21/09/2018,5107265837,3510.00,Compass Fostering South Rustington Office,143637,LE11,Children & Education,Ext Placement & IFA,Childrens Agency Placement,Third Party Payments,REVENUE
Wiltshire, http://opendatacommunities.org/id/unitary-authority/wiltshire,17/09/2018,5107256639,5372.71,Compass Minerals ,112379,CW7 ,Neighbourhood & Planning,Winter Maintenance,Highways - Salt,Supplies and Services,REVENUE
Wiltshire, http://opendatacommunities.org/id/unitary-authority/wiltshire,18/09/2018,5107259495,13329.67,Compass Minerals ,112379,CW7 ,Neighbourhood & Planning,Winter Maintenance,Highways - Salt,Supplies and Services,REVENUE
Wiltshire, http://opendatacommunities.org/id/unitary-authority/wiltshire,19/09/2018,5107259779,6188.08,Compass Minerals ,112379,CW7 ,Neighbourhood & Planning,Winter Maintenance,Highways - Salt,Supplies and Services,REVENUE
Wiltshire, http://opendatacommunities.org/id/unitary-authority/wiltshire,20/09/2018,5107259910,16496.13,Compass Minerals ,112379,CW7 ,Neighbourhood & Planning,Winter Maintenance,Highways - Salt,Supplies and Services,REVENUE
Wiltshire, http://opendatacommunities.org/id/unitary-authority/wiltshire,25/09/2018,5107259911,4318.96,Compass Minerals ,112379,CW7 ,Neighbourhood & Planning,Winter Maintenance,Highways - Salt,Supplies and Services,REVENUE
Wiltshire, http://opendatacommunities.org/id/unitary-authority/wiltshire,21/09/2018,5107259912,7149.76,Compass Minerals ,112379,CW7 ,Neighbourhood & Planning,Winter Maintenance,Highways - Salt,Supplies and Services,REVENUE
Wiltshire, http://opendatacommunities.org/id/unitary-authority/wiltshire,26/09/2018,5107259913,4194.20,Compass Minerals ,112379,CW7 ,Neighbourhood & Planning,Winter Maintenance,Highways - Salt,Supplies and Services,REVENUE
Wiltshire, http://opendatacommunities.org/id/unitary-authority/wiltshire,20/09/2018,5107265769,263.93,Connect Assist ,142600,CF15,Neighbourhood & Planning,Development Control,Fire Alarms maintenance,Premises Related,REVENUE
Wiltshire, http://opendatacommunities.org/id/unitary-authority/wiltshire,12/09/2018,1902195764,400.00,Conservation Contractors ,114941,SN10,Resources,SAFM - Other Assets,Property Maintenance,Premises Related,REVENUE
Wiltshire, http://opendatacommunities.org/id/unitary-authority/wiltshire,10/09/2018,5107259921,9925.00,Conservation Contractors ,114941,SN10,Neighbourhood & Planning,Highw Hedges & Trees,Materials,Supplies and Services,REVENUE
Wiltshire, http://opendatacommunities.org/id/unitary-authority/wiltshire,26/09/2018,5107259950,590.00,Conservation Contractors ,114941,SN10,Neighbourhood & Planning,Countryside,Grounds Maintenance,Premises Related,REVENUE
Wiltshire, http://opendatacommunities.org/id/unitary-authority/wiltshire,21/09/2018,5107259952,1090.00,Conservation Contractors ,114941,SN10,Neighbourhood & Planning,Countryside,Grounds Maintenance,Premises Related,REVENUE
Wiltshire, http://opendatacommunities.org/id/unitary-authority/wiltshire,19/09/2018,5107259953,850.00,Conservation Contractors ,114941,SN10,Neighbourhood & Planning,Countryside,Grounds Maintenance,Premises Related,REVENUE
Wiltshire, http://opendatacommunities.org/id/unitary-authority/wiltshire,28/09/2018,5107268095,348.39,Consortium Purchasing Distribution ,101676,BA14,Community Services,Riverbank,Cleaning Materials - Buildings,Premises Related,REVENUE
Wiltshire, http://opendatacommunities.org/id/unitary-authority/wiltshire,06/09/2018,1902196804,300.00,Constantine Ltd ,147419,SE15,Community Services,Archives & Local Stu,Courier costs,Supplies and Services,REVENUE
Wiltshire, http://opendatacommunities.org/id/unitary-authority/wiltshire,19/09/2018,1902201460,400.00,Cookline and Sinker ,147441,BH18,Resources,Salisbury Recovery,Grants Expenditure,Supplies and Services,REVENUE
Wiltshire, http://opendatacommunities.org/id/unitary-authority/wiltshire,13/09/2018,5107261576,1139.40,Cornerstones UK Ltd ,110620,SN9 ,Children & Education,SpecialistProvision,Educational Fees,Supplies and Services,REVENUE
Wiltshire, http://opendatacommunities.org/id/unitary-authority/wiltshire,10/09/2018,5107259919,1400.00,Corporate Agenda ,147220,NN11,Neighbourhood & Planning,Swindon & Wilts LEP,Professional Fees,Supplies and Services,REVENUE
Wiltshire, http://opendatacommunities.org/id/unitary-authority/wiltshire,19/09/2018,5107260153,3500.00,Corporate Agenda ,147220,NN11,Neighbourhood & Planning,Swindon & Wilts LEP,Professional Fees,Supplies and Services,REVENUE
Wiltshire, http://opendatacommunities.org/id/unitary-authority/wiltshire,28/09/2018,5107260155,2100.00,Corporate Agenda ,147220,NN11,Neighbourhood & Planning,Swindon & Wilts LEP,Professional Fees,Supplies and Services,REVENUE
Wiltshire, http://opendatacommunities.org/id/unitary-authority/wiltshire,18/09/2018,5107264302,1248.00,Corsham School Academy ,131052,SN13,Children & Education,SpecialistProvision,Educational Fees,Supplies and Services,REVENUE
Wiltshire, http://opendatacommunities.org/id/unitary-authority/wiltshire,13/09/2018,1902199442,256.06,Corsham Taxis ,100434,SN13,Community Services,MH AOWA N&E Locality,Transport Contracts,Third Party Payments,REVENUE
Wiltshire, http://opendatacommunities.org/id/unitary-authority/wiltshire,13/09/2018,1902199442,1433.94,Corsham Taxis ,100434,SN13,Community Services,North Care Packages,Transport Contracts,Third Party Payments,REVENUE
Wiltshire, http://opendatacommunities.org/id/unitary-authority/wiltshire,13/09/2018,1902199446,1830.00,Corsham Taxis ,100434,SN13,Neighbourhood & Planning,SEN Primary,Transport Contracts,Third Party Payments,REVENUE
Wiltshire, http://opendatacommunities.org/id/unitary-authority/wiltshire,26/09/2018,5107259418,495.00,Covergold ,115019,NN3 ,Neighbourhood & Planning,Development Control,Equipment Maintenance,Supplies and Services,REVENUE
Wiltshire, http://opendatacommunities.org/id/unitary-authority/wiltshire,17/09/2018,1902199951,5896.80,Cross Hayes Preschool (Urn 540159) ,115063,SN16,Children & Education,Free Enttlmnt 3 & 4y,Childcare Free Entitlement Early Years,Supplies and Services,REVENUE
Wiltshire, http://opendatacommunities.org/id/unitary-authority/wiltshire,17/09/2018,1902199952,977.55,Cross Hayes Preschool (Urn 540159) ,115063,SN16,Children & Education,Free Entitlement 2 Y,Childcare Free Entitlement Early Years,Supplies and Services,REVENUE
Wiltshire, http://opendatacommunities.org/id/unitary-authority/wiltshire,18/09/2018,1902201188,3500.00,Crowe Clark Whitehill ,136682,GL50,Neighbourhood & Planning,Economic Regen,Consultants Fees,Supplies and Services,REVENUE
Wiltshire, http://opendatacommunities.org/id/unitary-authority/wiltshire,25/09/2018,5107267411,7764.50,Crown Flooring Limited ,145433,WA5 ,Wiltshire Council,Wiltshire Council,Professional Fees,Supplies and Services,CAPITAL
Wiltshire, http://opendatacommunities.org/id/unitary-authority/wiltshire,28/09/2018,1902197590,256.87,CSS ,130460,SP2 ,Neighbourhood & Planning,SH Parsons Green,Cleaning,Premises Related,REVENUE
Wiltshire, http://opendatacommunities.org/id/unitary-authority/wiltshire,28/09/2018,1902197590,256.87,CSS ,130460,SP2 ,Neighbourhood & Planning,SH Reindorp Lodge,Cleaning,Premises Related,REVENUE
Wiltshire, http://opendatacommunities.org/id/unitary-authority/wiltshire,28/09/2018,1902197590,366.82,CSS ,130460,SP2 ,Neighbourhood & Planning,SH Crane Lodge,Cleaning,Premises Related,REVENUE
Wiltshire, http://opendatacommunities.org/id/unitary-authority/wiltshire,28/09/2018,1902197590,446.95,CSS ,130460,SP2 ,Neighbourhood & Planning,SH Westwood House,Cleaning,Premises Related,REVENUE
Wiltshire, http://opendatacommunities.org/id/unitary-authority/wiltshire,28/09/2018,1902197590,551.42,CSS ,130460,SP2 ,Neighbourhood & Planning,SH Nadder Close,Cleaning,Premises Related,REVENUE
Wiltshire, http://opendatacommunities.org/id/unitary-authority/wiltshire,28/09/2018,1902201452,2212.50,Cushman & Wakefield (DTZ) ,130250,B4 5,Wiltshire Council,Wiltshire Council,Consultants Fees,Supplies and Services,CAPITAL
Wiltshire, http://opendatacommunities.org/id/unitary-authority/wiltshire,11/09/2018,1902197694,1016.66,Cyclescheme Ltd ,137260,BA1 ,Wiltshire Council,Wiltshire Council,Staff Cycle to Work Scheme,Balance Sheet Accounts,REVENUE
Wiltshire, http://opendatacommunities.org/id/unitary-authority/wiltshire,11/09/2018,1902197695,2249.13,Cyclescheme Ltd ,137260,BA1 ,Wiltshire Council,Wiltshire Council,Staff Cycle to Work Scheme,Balance Sheet Accounts,REVENUE
Wiltshire, http://opendatacommunities.org/id/unitary-authority/wiltshire,17/09/2018,1902199676,4084.08,Cygnets Day Nursery ,146874,SP1 ,Children & Education,Free Enttlmnt 3 & 4y,Childcare Free Entitlement Early Years,Supplies and Services,REVENUE
Wiltshire, http://opendatacommunities.org/id/unitary-authority/wiltshire,17/09/2018,1902199677,428.26,Cygnets Day Nursery ,146874,SP1 ,Children & Education,Free Entitlement 2 Y,Childcare Free Entitlement Early Years,Supplies and Services,REVENUE
Wiltshire, http://opendatacommunities.org/id/unitary-authority/wiltshire,03/09/2018,1902194790,1538.80,D Js Taxis ,101306,BA12,Children & Education,Supp & Safe West 2,Transport Contracts,Third Party Payments,REVENUE
Wiltshire, http://opendatacommunities.org/id/unitary-authority/wiltshire,07/09/2018,5107258936,464.55,DACWS Limited ,142787,S72 ,Wiltshire Council,Wiltshire Council,Professional Fees,Supplies and Services,CAPITAL
Wiltshire, http://opendatacommunities.org/id/unitary-authority/wiltshire,28/09/2018,1902201026,3180.69,Daisy Communications Ltd ,127760,BB9 ,Resources,Main xchg phon lines,Telephones - Mobile phones,Supplies and Services,REVENUE
Wiltshire, http://opendatacommunities.org/id/unitary-authority/wiltshire,28/09/2018,1902201027,257.08,Daisy Communications Ltd ,127760,BB9 ,Resources,Main xchg phon lines,Telephones - Mobile phones,Supplies and Services,REVENUE
Wiltshire, http://opendatacommunities.org/id/unitary-authority/wiltshire,17/09/2018,1902199720,8628.40,Daisychain Melksham Ltd ,145045,SN12,Children & Education,Free Enttlmnt 3 & 4y,Childcare Free Entitlement Early Years,Supplies and Services,REVENUE
Wiltshire, http://opendatacommunities.org/id/unitary-authority/wiltshire,17/09/2018,1902199721,1582.70,Daisychain Melksham Ltd ,145045,SN12,Children & Education,Free Entitlement 2 Y,Childcare Free Entitlement Early Years,Supplies and Services,REVENUE
Wiltshire, http://opendatacommunities.org/id/unitary-authority/wiltshire,18/09/2018,5107258924,4776.11,Darnton B3 Architecture ,134322,CF10,Wiltshire Council,Wiltshire Council,Consultants Fees,Supplies and Services,CAPITAL
Wiltshire, http://opendatacommunities.org/id/unitary-authority/wiltshire,05/09/2018,5107259433,500.00,Darnton B3 Architecture ,134322,CF10,Wiltshire Council,Wiltshire Council,Consultants Fees,Supplies and Services,CAPITAL
Wiltshire, http://opendatacommunities.org/id/unitary-authority/wiltshire,03/09/2018,1902194766,13547.00,Dartington Hall Trust ,115235,TQ9 ,Community Services,ASC Community C&G,Grants Expenditure,Supplies and Services,REVENUE
Wiltshire, http://opendatacommunities.org/id/unitary-authority/wiltshire,14/09/2018,5107262721,63091.89,Dawnus Construction Holdings Ltd ,147135,SA7 ,Wiltshire Council,Wiltshire Council,Buildings Minor Alterations,Premises Related,CAPITAL
Wiltshire, http://opendatacommunities.org/id/unitary-authority/wiltshire,05/09/2018,1902196690,647.00,Department for Work & Pensions ,141693,NE38,Resources,Insurance,Insurance Claims,Supplies and Services,REVENUE
Wiltshire, http://opendatacommunities.org/id/unitary-authority/wiltshire,06/09/2018,1902197102,678.00,Department for Work & Pensions ,141693,NE38,Resources,Insurance,Insurance Claims,Supplies and Services,REVENUE
Wiltshire, http://opendatacommunities.org/id/unitary-authority/wiltshire,17/09/2018,1902200238,1628.86,Devizes and District Opportunity Ce ,115347,SN10,Children & Education,Free Enttlmnt 3 & 4y,Childcare Free Entitlement Early Years,Supplies and Services,REVENUE
Wiltshire, http://opendatacommunities.org/id/unitary-authority/wiltshire,17/09/2018,1902200239,591.52,Devizes and District Opportunity Ce ,115347,SN10,Children & Education,Free Enttlmnt 3 & 4y,Childcare Free Entitlement Early Years,Supplies and Services,REVENUE
Wiltshire, http://opendatacommunities.org/id/unitary-authority/wiltshire,17/09/2018,1902200240,279.30,Devizes and District Opportunity Ce ,115347,SN10,Children & Education,Free Entitlement 2 Y,Childcare Free Entitlement Early Years,Supplies and Services,REVENUE
Wiltshire, http://opendatacommunities.org/id/unitary-authority/wiltshire,06/09/2018,1902197144,1952.28,Devizes Taxis ,100136,SN10,Neighbourhood & Planning,SEN Secondary,Transport Contracts,Third Party Payments,REVENUE
Wiltshire, http://opendatacommunities.org/id/unitary-authority/wiltshire,13/09/2018,1902199437,1218.94,Devizes Taxis ,100136,SN10,Neighbourhood & Planning,Mainstream Primary,Transport Contracts,Third Party Payments,REVENUE
Wiltshire, http://opendatacommunities.org/id/unitary-authority/wiltshire,13/09/2018,1902199437,2485.73,Devizes Taxis ,100136,SN10,Neighbourhood & Planning,Public Transport,Transport Contracts,Third Party Payments,REVENUE
Wiltshire, http://opendatacommunities.org/id/unitary-authority/wiltshire,14/09/2018,1902196591,637.00,Devon County Council ,129638,EX2 ,Community Services,Area Board Warminstr,Hospitality,Supplies and Services,REVENUE
Wiltshire, http://opendatacommunities.org/id/unitary-authority/wiltshire,27/09/2018,1902197644,935.35,Digital ID ,142611,SK1 ,Resources,Facilities Managemen,Materials,Supplies and Services,REVENUE
Wiltshire, http://opendatacommunities.org/id/unitary-authority/wiltshire,13/09/2018,1902196800,3906.49,Document Despatch ,135346,RG22,Resources,News & Information,Marketing and Promotions,Supplies and Services,REVENUE
Wiltshire, http://opendatacommunities.org/id/unitary-authority/wiltshire,04/09/2018,1902194979,3597.17,Dolphin Lifts Western Ltd ,115440,BS21,Wiltshire Council,Wiltshire Council,Other Contracts,Third Party Payments,CAPITAL
Wiltshire, http://opendatacommunities.org/id/unitary-authority/wiltshire,18/09/2018,1902201350,3880.20,Dolphin Lifts Western Ltd ,115440,BS21,Wiltshire Council,Wiltshire Council,Other Contracts,Third Party Payments,CAPITAL
Wiltshire, http://opendatacommunities.org/id/unitary-authority/wiltshire,26/09/2018,1902208970,2605.25,Dolphin Lifts Western Ltd ,115440,BS21,Wiltshire Council,Wiltshire Council,Other Contracts,Third Party Payments,CAPITAL
Wiltshire, http://opendatacommunities.org/id/unitary-authority/wiltshire,11/09/2018,5107260090,146920.00,Dorset & Wiltshire Fire and Rescue ,143370,SP1 ,Resources,WC Bus Rate Ret Schm,BRRS Fire Share Payment - NOT FOR GENERAL USE,Balance Sheet Accounts,REVENUE
Wiltshire, http://opendatacommunities.org/id/unitary-authority/wiltshire,17/09/2018,5107263876,25000.00,Dorset & Wiltshire Fire and Rescue ,143370,SP1 ,Community Services,Subs Misuse Contract,Substance Misuse Contracts,Third Party Payments,REVENUE
Wiltshire, http://opendatacommunities.org/id/unitary-authority/wiltshire,17/09/2018,1902200053,3166.80,Dragonflies At Collingbourne Ducis 303,115525,SN8 ,Children & Education,Free Enttlmnt 3 & 4y,Childcare Free Entitlement Early Years,Supplies and Services,REVENUE
Wiltshire, http://opendatacommunities.org/id/unitary-authority/wiltshire,17/09/2018,1902200054,1396.50,Dragonflies At Collingbourne Ducis 303,115525,SN8 ,Children & Education,Free Entitlement 2 Y,Childcare Free Entitlement Early Years,Supplies and Services,REVENUE
Wiltshire, http://opendatacommunities.org/id/unitary-authority/wiltshire,07/09/2018,1902197415,285.00,Drain Services Ltd ,101715,SP2 ,Neighbourhood & Planning,Responsive Repairs,Emergency Property Repairs,Premises Related,REVENUE
Wiltshire, http://opendatacommunities.org/id/unitary-authority/wiltshire,07/09/2018,1902197416,612.21,Drain Services Ltd ,101715,SP2 ,Neighbourhood & Planning,Responsive Repairs,Premises Related Other Maintenance Costs,Premises Related,REVENUE
Wiltshire, http://opendatacommunities.org/id/unitary-authority/wiltshire,07/09/2018,1902197417,985.86,Drain Services Ltd ,101715,SP2 ,Neighbourhood & Planning,Responsive Repairs,Premises Related Other Maintenance Costs,Premises Related,REVENUE
Wiltshire, http://opendatacommunities.org/id/unitary-authority/wiltshire,11/09/2018,1902197645,1245.46,Drain Services Ltd ,101715,SP2 ,Resources,FM Highway Depots,Property Maintenance,Premises Related,REVENUE
Wiltshire, http://opendatacommunities.org/id/unitary-authority/wiltshire,11/09/2018,1902197647,795.00,Drain Services Ltd ,101715,SP2 ,Resources,FM Highway Depots,Property Maintenance,Premises Related,REVENUE
Wiltshire, http://opendatacommunities.org/id/unitary-authority/wiltshire,11/09/2018,1902197648,740.00,Drain Services Ltd ,101715,SP2 ,Resources,FM Highway Depots,Property Maintenance,Premises Related,REVENUE
Wiltshire, http://opendatacommunities.org/id/unitary-authority/wiltshire,11/09/2018,1902197650,843.84,Drain Services Ltd ,101715,SP2 ,Resources,FM Highway Depots,Property Maintenance,Premises Related,REVENUE
Wiltshire, http://opendatacommunities.org/id/unitary-authority/wiltshire,11/09/2018,1902197651,617.52,Drain Services Ltd ,101715,SP2 ,Resources,FM Highway Depots,Property Maintenance,Premises Related,REVENUE
Wiltshire, http://opendatacommunities.org/id/unitary-authority/wiltshire,11/09/2018,1902197652,702.04,Drain Services Ltd ,101715,SP2 ,Resources,FM Highway Depots,Property Maintenance,Premises Related,REVENUE
Wiltshire, http://opendatacommunities.org/id/unitary-authority/wiltshire,11/09/2018,1902197653,351.00,Drain Services Ltd ,101715,SP2 ,Resources,SAFM - Other Assets,Property Maintenance,Premises Related,REVENUE
Wiltshire, http://opendatacommunities.org/id/unitary-authority/wiltshire,11/09/2018,1902197654,795.00,Drain Services Ltd ,101715,SP2 ,Resources,FM Highway Depots,Property Maintenance,Premises Related,REVENUE
Wiltshire, http://opendatacommunities.org/id/unitary-authority/wiltshire,18/09/2018,1902201054,1815.00,Drain Services Ltd ,101715,SP2 ,Resources,SAFM - Other Assets,Property Maintenance,Premises Related,REVENUE
Wiltshire, http://opendatacommunities.org/id/unitary-authority/wiltshire,18/09/2018,1902201055,1992.24,Drain Services Ltd ,101715,SP2 ,Resources,FM Highway Depots,Property Maintenance,Premises Related,REVENUE
Wiltshire, http://opendatacommunities.org/id/unitary-authority/wiltshire,18/09/2018,1902201056,1492.56,Drain Services Ltd ,101715,SP2 ,Resources,FM Highway Depots,Property Maintenance,Premises Related,REVENUE
Wiltshire, http://opendatacommunities.org/id/unitary-authority/wiltshire,18/09/2018,1902201057,368.00,Drain Services Ltd ,101715,SP2 ,Resources,SAFM - Other Assets,Property Maintenance,Premises Related,REVENUE
Wiltshire, http://opendatacommunities.org/id/unitary-authority/wiltshire,18/09/2018,1902201058,259.50,Drain Services Ltd ,101715,SP2 ,Resources,SAFM - Other Assets,Property Maintenance,Premises Related,REVENUE
Wiltshire, http://opendatacommunities.org/id/unitary-authority/wiltshire,18/09/2018,1902201059,795.00,Drain Services Ltd ,101715,SP2 ,Resources,FM Highway Depots,Property Maintenance,Premises Related,REVENUE
Wiltshire, http://opendatacommunities.org/id/unitary-authority/wiltshire,18/09/2018,1902201060,740.00,Drain Services Ltd ,101715,SP2 ,Resources,FM Highway Depots,Property Maintenance,Premises Related,REVENUE
Wiltshire, http://opendatacommunities.org/id/unitary-authority/wiltshire,18/09/2018,1902201061,1590.00,Drain Services Ltd ,101715,SP2 ,Resources,FM Highway Depots,Property Maintenance,Premises Related,REVENUE
Wiltshire, http://opendatacommunities.org/id/unitary-authority/wiltshire,18/09/2018,1902201062,750.00,Drain Services Ltd ,101715,SP2 ,Resources,FM Highway Depots,Property Maintenance,Premises Related,REVENUE
Wiltshire, http://opendatacommunities.org/id/unitary-authority/wiltshire,18/09/2018,1902201063,795.00,Drain Services Ltd ,101715,SP2 ,Resources,FM Highway Depots,Property Maintenance,Premises Related,REVENUE
Wiltshire, http://opendatacommunities.org/id/unitary-authority/wiltshire,18/09/2018,1902201067,489.36,Drain Services Ltd ,101715,SP2 ,Resources,FM Highway Depots,Property Maintenance,Premises Related,REVENUE
Wiltshire, http://opendatacommunities.org/id/unitary-authority/wiltshire,07/09/2018,5107259675,16795.44,Drain Services Ltd ,101715,SP2 ,Neighbourhood & Planning,Housg Rprs Contracts,Premises Related Other Maintenance Costs,Premises Related,REVENUE
Wiltshire, http://opendatacommunities.org/id/unitary-authority/wiltshire,04/09/2018,5107259303,5500.00,Dstl ,129324,PO14,Neighbourhood & Planning,Permitted Sites,Waste Contracts,Third Party Payments,REVENUE
Wiltshire, http://opendatacommunities.org/id/unitary-authority/wiltshire,05/09/2018,1902196594,7241.25,DSTL ,143031,SP4 ,Neighbourhood & Planning,Porton Science Park,Electricity,Premises Related,REVENUE
Wiltshire, http://opendatacommunities.org/id/unitary-authority/wiltshire,20/09/2018,5107265831,22500.00,DTZ Debenham Tie Leung Ltd ,144813,B4 6,Resources,FM Leisure Centres,Premises Rental,Premises Related,REVENUE
Wiltshire, http://opendatacommunities.org/id/unitary-authority/wiltshire,20/09/2018,5107265832,7140.00,DTZ Debenham Tie Leung Ltd ,144813,B4 6,Resources,FM Leisure Centres,Premises Rental,Premises Related,REVENUE
Wiltshire, http://opendatacommunities.org/id/unitary-authority/wiltshire,12/09/2018,1902198874,406.55,Duncan Private Hire ,100600,SN12,Community Services,West Care Packages,Transport Contracts,Third Party Payments,REVENUE
Wiltshire, http://opendatacommunities.org/id/unitary-authority/wiltshire,17/09/2018,1902199850,6937.84,Durrington Day Nursery ,136250,SP4 ,Children & Education,Free Enttlmnt 3 & 4y,Childcare Free Entitlement Early Years,Supplies and Services,REVENUE
Wiltshire, http://opendatacommunities.org/id/unitary-authority/wiltshire,17/09/2018,1902199851,558.60,Durrington Day Nursery ,136250,SP4 ,Children & Education,Free Entitlement 2 Y,Childcare Free Entitlement Early Years,Supplies and Services,REVENUE
Wiltshire, http://opendatacommunities.org/id/unitary-authority/wiltshire,11/09/2018,1902197781,6208.25,Durrington Town Council ,127234,SP4 ,Resources,Amesbry AreaBrd S106,S106 Public Open Spaces Contributions,Balance Sheet Accounts,REVENUE
Wiltshire, http://opendatacommunities.org/id/unitary-authority/wiltshire,25/09/2018,5107267427,425.00,DX Network Services Ltd ,110812,NN4 ,Resources,Legal Services,Postage,Supplies and Services,REVENUE
Wiltshire, http://opendatacommunities.org/id/unitary-authority/wiltshire,19/09/2018,5107265051,304504.47,E W Beard Ltd ,100171,SN3 ,Wiltshire Council,Wiltshire Council,Buildings Minor Alterations,Premises Related,CAPITAL
Wiltshire, http://opendatacommunities.org/id/unitary-authority/wiltshire,20/09/2018,1902195771,1773.34,Eastern Shire Purchasing Organisati ,133593,LE19,Resources,Facilities Managemen,Materials,Supplies and Services,REVENUE
Wiltshire, http://opendatacommunities.org/id/unitary-authority/wiltshire,14/09/2018,5107258885,3155.96,Econ Engineering Ltd ,110832,HG4 ,Neighbourhood & Planning,Fleet,Vehicle 3rd Party Repairs,Transport Related,REVENUE
Wiltshire, http://opendatacommunities.org/id/unitary-authority/wiltshire,14/09/2018,5107258910,2997.66,Econ Engineering Ltd ,110832,HG4 ,Neighbourhood & Planning,Fleet,Vehicle 3rd Party Repairs,Transport Related,REVENUE
Wiltshire, http://opendatacommunities.org/id/unitary-authority/wiltshire,14/09/2018,5107258911,3056.44,Econ Engineering Ltd ,110832,HG4 ,Neighbourhood & Planning,Fleet,Vehicle 3rd Party Repairs,Transport Related,REVENUE
Wiltshire, http://opendatacommunities.org/id/unitary-authority/wiltshire,14/09/2018,5107258912,3115.00,Econ Engineering Ltd ,110832,HG4 ,Neighbourhood & Planning,Fleet,Vehicle 3rd Party Repairs,Transport Related,REVENUE
Wiltshire, http://opendatacommunities.org/id/unitary-authority/wiltshire,14/09/2018,5107258913,3081.57,Econ Engineering Ltd ,110832,HG4 ,Neighbourhood & Planning,Fleet,Vehicle 3rd Party Repairs,Transport Related,REVENUE
Wiltshire, http://opendatacommunities.org/id/unitary-authority/wiltshire,14/09/2018,5107258914,3044.47,Econ Engineering Ltd ,110832,HG4 ,Neighbourhood & Planning,Fleet,Vehicle 3rd Party Repairs,Transport Related,REVENUE
Wiltshire, http://opendatacommunities.org/id/unitary-authority/wiltshire,14/09/2018,5107258915,4579.05,Econ Engineering Ltd ,110832,HG4 ,Neighbourhood & Planning,Fleet,Vehicle 3rd Party Repairs,Transport Related,REVENUE
Wiltshire, http://opendatacommunities.org/id/unitary-authority/wiltshire,14/09/2018,5107258916,3375.62,Econ Engineering Ltd ,110832,HG4 ,Neighbourhood & Planning,Fleet,Vehicle 3rd Party Repairs,Transport Related,REVENUE
Wiltshire, http://opendatacommunities.org/id/unitary-authority/wiltshire,26/09/2018,5107260016,306.25,Edenred (Incentives & Motivation) L ,114495,CH4 ,Children & Education,School Effectvnss Tm,Grants Expenditure,Supplies and Services,REVENUE
Wiltshire, http://opendatacommunities.org/id/unitary-authority/wiltshire,21/09/2018,5107262779,850.00,Edmond Shipway LLP ,131609,BA2 ,Wiltshire Council,Wiltshire Council,Professional Fees,Supplies and Services,CAPITAL
Wiltshire, http://opendatacommunities.org/id/unitary-authority/wiltshire,27/09/2018,5107268531,3000.00,Edmond Shipway LLP ,131609,BA2 ,Wiltshire Council,Wiltshire Council,Professional Fees,Supplies and Services,CAPITAL
Wiltshire, http://opendatacommunities.org/id/unitary-authority/wiltshire,13/09/2018,1902188170,370.00,Elior UK PLC ,135123,SK11,Neighbourhood & Planning,Health Improvement,Catering,Supplies and Services,REVENUE
Wiltshire, http://opendatacommunities.org/id/unitary-authority/wiltshire,13/09/2018,1902188170,914.50,Elior UK PLC ,135123,SK11,Resources,Corporate Directors,Catering,Supplies and Services,REVENUE
Wiltshire, http://opendatacommunities.org/id/unitary-authority/wiltshire,20/09/2018,1902194262,1763.43,Elior UK PLC ,135123,SK11,Resources,County Hall Complex,Catering,Supplies and Services,REVENUE
Wiltshire, http://opendatacommunities.org/id/unitary-authority/wiltshire,13/09/2018,1902199412,2684.75,Elior UK PLC ,135123,SK11,Resources,Monkton Park,Catering,Supplies and Services,REVENUE
Wiltshire, http://opendatacommunities.org/id/unitary-authority/wiltshire,13/09/2018,1902199412,3305.38,Elior UK PLC ,135123,SK11,Resources,County Hall Complex,Catering,Supplies and Services,REVENUE
Wiltshire, http://opendatacommunities.org/id/unitary-authority/wiltshire,07/09/2018,5107259681,2014.11,Elior UK PLC ,135123,SK11,Neighbourhood & Planning,SH - Grouped,Catering,Supplies and Services,REVENUE
Wiltshire, http://opendatacommunities.org/id/unitary-authority/wiltshire,28/09/2018,5107268483,2809.80,Elior UK PLC ,135123,SK11,Neighbourhood & Planning,SH - Grouped,Catering,Supplies and Services,REVENUE
Wiltshire, http://opendatacommunities.org/id/unitary-authority/wiltshire,10/09/2018,1902197509,2984.36,Ellisons Coaches ,100162,SN6 ,Neighbourhood & Planning,Mainstream Secondary,Transport Contracts,Third Party Payments,REVENUE
Wiltshire, http://opendatacommunities.org/id/unitary-authority/wiltshire,10/09/2018,1902197512,3135.00,Ellisons Coaches ,100162,SN6 ,Neighbourhood & Planning,Mainstream Secondary,Transport Contracts,Third Party Payments,REVENUE
Wiltshire, http://opendatacommunities.org/id/unitary-authority/wiltshire,26/09/2018,1902203750,385.00,Elm Office Products Ltd ,110854,SN11,Wiltshire Council,Wiltshire Council,Equipment Purchase,Supplies and Services,CAPITAL
Wiltshire, http://opendatacommunities.org/id/unitary-authority/wiltshire,03/09/2018,5107259239,3451.00,Enhanced Foster Care Ltd ,110872,BA12,Children & Education,Ext Placement & IFA,Childrens Agency Placement,Third Party Payments,REVENUE
Wiltshire, http://opendatacommunities.org/id/unitary-authority/wiltshire,03/09/2018,5107259240,3451.00,Enhanced Foster Care Ltd ,110872,BA12,Children & Education,Ext Placement & IFA,Childrens Agency Placement,Third Party Payments,REVENUE
Wiltshire, http://opendatacommunities.org/id/unitary-authority/wiltshire,24/09/2018,5107266692,3587.10,Enhanced Foster Care Ltd ,110872,BA12,Children & Education,Ext Placement & IFA,Childrens Agency Placement,Third Party Payments,REVENUE
Wiltshire, http://opendatacommunities.org/id/unitary-authority/wiltshire,24/09/2018,5107266693,3188.70,Enhanced Foster Care Ltd ,110872,BA12,Children & Education,Ext Placement & IFA,Childrens Agency Placement,Third Party Payments,REVENUE
Wiltshire, http://opendatacommunities.org/id/unitary-authority/wiltshire,24/09/2018,5107266694,4778.70,Enhanced Foster Care Ltd ,110872,BA12,Children & Education,Ext Placement & IFA,Childrens Agency Placement,Third Party Payments,REVENUE
Wiltshire, http://opendatacommunities.org/id/unitary-authority/wiltshire,24/09/2018,5107266695,3587.10,Enhanced Foster Care Ltd ,110872,BA12,Children & Education,Ext Placement & IFA,Childrens Agency Placement,Third Party Payments,REVENUE
Wiltshire, http://opendatacommunities.org/id/unitary-authority/wiltshire,24/09/2018,5107266696,3351.60,Enhanced Foster Care Ltd ,110872,BA12,Children & Education,Ext Placement & IFA,Childrens Agency Placement,Third Party Payments,REVENUE
Wiltshire, http://opendatacommunities.org/id/unitary-authority/wiltshire,24/09/2018,5107266697,3780.00,Enhanced Foster Care Ltd ,110872,BA12,Children & Education,Ext Placement & IFA,Childrens Agency Placement,Third Party Payments,REVENUE
Wiltshire, http://opendatacommunities.org/id/unitary-authority/wiltshire,24/09/2018,5107266698,4620.00,Enhanced Foster Care Ltd ,110872,BA12,Children & Education,Ext Placement & IFA,Childrens Agency Placement,Third Party Payments,REVENUE
Wiltshire, http://opendatacommunities.org/id/unitary-authority/wiltshire,24/09/2018,5107266699,3780.00,Enhanced Foster Care Ltd ,110872,BA12,Children & Education,Ext Placement & IFA,Childrens Agency Placement,Third Party Payments,REVENUE
Wiltshire, http://opendatacommunities.org/id/unitary-authority/wiltshire,24/09/2018,5107266750,4500.00,Enhanced Foster Care Ltd ,110872,BA12,Children & Education,Ext Placement & IFA,Childrens Agency Placement,Third Party Payments,REVENUE
Wiltshire, http://opendatacommunities.org/id/unitary-authority/wiltshire,24/09/2018,5107266887,3570.00,Enhanced Foster Care Ltd ,110872,BA12,Children & Education,Ext Placement & IFA,Childrens Agency Placement,Third Party Payments,REVENUE
Wiltshire, http://opendatacommunities.org/id/unitary-authority/wiltshire,24/09/2018,5107266888,3570.00,Enhanced Foster Care Ltd ,110872,BA12,Children & Education,Ext Placement & IFA,Childrens Agency Placement,Third Party Payments,REVENUE
Wiltshire, http://opendatacommunities.org/id/unitary-authority/wiltshire,28/09/2018,5107268638,250.00,Enhanced Foster Care Ltd ,110872,BA12,Children & Education,CIC Team South,Childrens Agency Placement,Third Party Payments,REVENUE
Wiltshire, http://opendatacommunities.org/id/unitary-authority/wiltshire,05/09/2018,5107259454,2514.29,Enhanced Learning Services Ltd ,147029,BA12,Children & Education,Ext Placement & IFA,Childrens Agency Placement,Third Party Payments,REVENUE
Wiltshire, http://opendatacommunities.org/id/unitary-authority/wiltshire,05/09/2018,5107259455,4714.29,Enhanced Learning Services Ltd ,147029,BA12,Children & Education,Ext Placement & IFA,Childrens Agency Placement,Third Party Payments,REVENUE
Wiltshire, http://opendatacommunities.org/id/unitary-authority/wiltshire,05/09/2018,5107259456,4871.43,Enhanced Learning Services Ltd ,147029,BA12,Children & Education,Ext Placement & IFA,Childrens Agency Placement,Third Party Payments,REVENUE
Wiltshire, http://opendatacommunities.org/id/unitary-authority/wiltshire,05/09/2018,1902187754,657.44,Entre-Prises (UK) Ltd ,142337,BB18,Children & Education,Braeside,Grounds Maintenance,Premises Related,REVENUE
Wiltshire, http://opendatacommunities.org/id/unitary-authority/wiltshire,05/09/2018,1902196789,5340.00,Environment Agency ,101219,FY5 ,Neighbourhood & Planning,Pumping Plants,Water - sewerage,Premises Related,REVENUE
Wiltshire, http://opendatacommunities.org/id/unitary-authority/wiltshire,27/09/2018,5107268469,153511.50,Environment Agency ,110878,PE2 ,Resources,Corporate Levies,Flood Defence Levy,Premises Related,REVENUE
Wiltshire, http://opendatacommunities.org/id/unitary-authority/wiltshire,19/09/2018,5107260543,1334.39,Essanet Ltd l/a Broadbandbuyer Com ,110382,MK14,Neighbourhood & Planning,City Hall,Entertainment Events,Supplies and Services,REVENUE
Wiltshire, http://opendatacommunities.org/id/unitary-authority/wiltshire,05/09/2018,1902196588,1441613.76,Eurovia Infrastructure Limited ,143815,GL2 ,Wiltshire Council,Wiltshire Council,Highways Contracts,Third Party Payments,CAPITAL
Wiltshire, http://opendatacommunities.org/id/unitary-authority/wiltshire,28/09/2018,1902210161,180796.71,Eurovia Infrastructure Limited ,143815,GL2 ,Wiltshire Council,Wiltshire Council,Highways Contracts,Third Party Payments,CAPITAL
Wiltshire, http://opendatacommunities.org/id/unitary-authority/wiltshire,26/09/2018,5107268112,695.00,Evac chair International Ltd ,101332,B11 ,Neighbourhood & Planning,Porton Science Park,Fire Alarms maintenance,Premises Related,REVENUE
Wiltshire, http://opendatacommunities.org/id/unitary-authority/wiltshire,26/09/2018,5107268352,17577.41,Exalon Care Limited ,110896,SN12,Children & Education,0-25 extnl disabty p,Other Social & Welfare Costs,Third Party Payments,REVENUE
Wiltshire, http://opendatacommunities.org/id/unitary-authority/wiltshire,27/09/2018,5107268403,19669.00,Exeter Royal Academy for Deaf Education,110897,EX2 ,Children & Education,TOP UP POST 16,Educational Fees,Supplies and Services,REVENUE
Wiltshire, http://opendatacommunities.org/id/unitary-authority/wiltshire,27/09/2018,5107268403,19669.00,Exeter Royal Academy for Deaf Education,110897,EX2 ,Children & Education,0-25 extnl disabty p,Educational Fees,Supplies and Services,REVENUE
Wiltshire, http://opendatacommunities.org/id/unitary-authority/wiltshire,25/09/2018,1902203551,256.00,Ezy s Taxis Ltd ,101645,SN15,Children & Education,CiC Team North,Transport Contracts,Third Party Payments,REVENUE
Wiltshire, http://opendatacommunities.org/id/unitary-authority/wiltshire,03/09/2018,5107259235,3980.40,Fairways Care  uk  Ltd ,115820,SO14,Children & Education,UASC Under 18 Years,Childrens Agency Placement,Third Party Payments,REVENUE
Wiltshire, http://opendatacommunities.org/id/unitary-authority/wiltshire,28/09/2018,5107268692,3852.00,Fairways Care  uk  Ltd ,115820,SO14,Children & Education,UASC Under 18 Years,Childrens Agency Placement,Third Party Payments,REVENUE
Wiltshire, http://opendatacommunities.org/id/unitary-authority/wiltshire,28/09/2018,5107268693,3852.00,Fairways Care  uk  Ltd ,115820,SO14,Children & Education,UASC Under 18 Years,Childrens Agency Placement,Third Party Payments,REVENUE
Wiltshire, http://opendatacommunities.org/id/unitary-authority/wiltshire,20/09/2018,5107260193,958.09,Fairweathers Surveyors Limited ,115821,RG6 ,Resources,Investment Estate,Premises Rental,Premises Related,REVENUE
Wiltshire, http://opendatacommunities.org/id/unitary-authority/wiltshire,20/09/2018,5107265825,29637.00,Fairweathers Surveyors Limited ,115821,RG6 ,Resources,Investment Estate,Premises Rental,Premises Related,REVENUE
Wiltshire, http://opendatacommunities.org/id/unitary-authority/wiltshire,20/09/2018,5107265826,958.09,Fairweathers Surveyors Limited ,115821,RG6 ,Resources,Investment Estate,Premises Rental,Premises Related,REVENUE
Wiltshire, http://opendatacommunities.org/id/unitary-authority/wiltshire,20/09/2018,5107259693,7338.00,Faithful   Gould ,101321,BS32,Wiltshire Council,Wiltshire Council,Professional Fees,Supplies and Services,CAPITAL
Wiltshire, http://opendatacommunities.org/id/unitary-authority/wiltshire,27/09/2018,5107259941,711.00,Faithful   Gould ,101321,BS32,Wiltshire Council,Wiltshire Council,Consultants Fees,Supplies and Services,CAPITAL
Wiltshire, http://opendatacommunities.org/id/unitary-authority/wiltshire,27/09/2018,5107264278,1223.00,Faithful   Gould ,101321,BS32,Wiltshire Council,Wiltshire Council,Consultants Fees,Supplies and Services,CAPITAL
Wiltshire, http://opendatacommunities.org/id/unitary-authority/wiltshire,27/09/2018,5107264290,804.00,Faithful   Gould ,101321,BS32,Wiltshire Council,Wiltshire Council,Consultants Fees,Supplies and Services,CAPITAL
Wiltshire, http://opendatacommunities.org/id/unitary-authority/wiltshire,27/09/2018,5107264292,847.00,Faithful   Gould ,101321,BS32,Wiltshire Council,Wiltshire Council,Consultants Fees,Supplies and Services,CAPITAL
Wiltshire, http://opendatacommunities.org/id/unitary-authority/wiltshire,27/09/2018,5107268362,1106.29,Faithful   Gould ,101321,BS32,Wiltshire Council,Wiltshire Council,Buildings Minor Alterations,Premises Related,CAPITAL
Wiltshire, http://opendatacommunities.org/id/unitary-authority/wiltshire,27/09/2018,5107268363,2000.00,Faithful   Gould ,101321,BS32,Wiltshire Council,Wiltshire Council,Professional Fees,Supplies and Services,CAPITAL
Wiltshire, http://opendatacommunities.org/id/unitary-authority/wiltshire,20/09/2018,5107265804,1230.00,Faithful + Gould ,136315,CF24,Wiltshire Council,Wiltshire Council,Consultants Fees,Supplies and Services,CAPITAL
Wiltshire, http://opendatacommunities.org/id/unitary-authority/wiltshire,20/09/2018,5107265805,3240.00,Faithful + Gould ,136315,CF24,Wiltshire Council,Wiltshire Council,Consultants Fees,Supplies and Services,CAPITAL
Wiltshire, http://opendatacommunities.org/id/unitary-authority/wiltshire,14/09/2018,5107261639,10718.76,Farleigh FEC - Swindon Priory ,137850,DL2 ,Children & Education,TOP UP POST 16,Educational Fees,Supplies and Services,REVENUE
Wiltshire, http://opendatacommunities.org/id/unitary-authority/wiltshire,14/09/2018,5107262731,6500.00,Farleigh FEC - Swindon Priory ,137850,DL2 ,Children & Education,TOP UP POST 16,Educational Fees,Supplies and Services,REVENUE
Wiltshire, http://opendatacommunities.org/id/unitary-authority/wiltshire,14/09/2018,5107262732,6500.00,Farleigh FEC - Swindon Priory ,137850,DL2 ,Children & Education,TOP UP POST 16,Educational Fees,Supplies and Services,REVENUE
Wiltshire, http://opendatacommunities.org/id/unitary-authority/wiltshire,14/09/2018,5107262733,10833.33,Farleigh FEC - Swindon Priory ,137850,DL2 ,Children & Education,TOP UP POST 16,Educational Fees,Supplies and Services,REVENUE
Wiltshire, http://opendatacommunities.org/id/unitary-authority/wiltshire,17/09/2018,5107262734,7017.81,Farleigh FEC - Swindon Priory ,137850,DL2 ,Children & Education,TOP UP POST 16,Educational Fees,Supplies and Services,REVENUE
Wiltshire, http://opendatacommunities.org/id/unitary-authority/wiltshire,17/09/2018,5107262735,6500.00,Farleigh FEC - Swindon Priory ,137850,DL2 ,Children & Education,TOP UP POST 16,Educational Fees,Supplies and Services,REVENUE
Wiltshire, http://opendatacommunities.org/id/unitary-authority/wiltshire,17/09/2018,5107262736,6500.00,Farleigh FEC - Swindon Priory ,137850,DL2 ,Children & Education,TOP UP POST 16,Educational Fees,Supplies and Services,REVENUE
Wiltshire, http://opendatacommunities.org/id/unitary-authority/wiltshire,17/09/2018,1902199917,6571.84,Farley Nursery School @ Steeple Lan ,131291,SP3 ,Children & Education,Free Enttlmnt 3 & 4y,Childcare Free Entitlement Early Years,Supplies and Services,REVENUE
Wiltshire, http://opendatacommunities.org/id/unitary-authority/wiltshire,17/09/2018,1902199918,255.36,Farley Nursery School @ Steeple Lan ,131291,SP3 ,Children & Education,Free Entitlement 2 Y,Childcare Free Entitlement Early Years,Supplies and Services,REVENUE
Wiltshire, http://opendatacommunities.org/id/unitary-authority/wiltshire,17/09/2018,1902200036,10876.32,Farley Nursery School 1042 ,115835,SP5 ,Children & Education,Free Enttlmnt 3 & 4y,Childcare Free Entitlement Early Years,Supplies and Services,REVENUE
Wiltshire, http://opendatacommunities.org/id/unitary-authority/wiltshire,17/09/2018,1902200037,837.90,Farley Nursery School 1042 ,115835,SP5 ,Children & Education,Free Entitlement 2 Y,Childcare Free Entitlement Early Years,Supplies and Services,REVENUE
Wiltshire, http://opendatacommunities.org/id/unitary-authority/wiltshire,18/09/2018,5107264177,313.87,Faun Zoeller (UK) Ltd ,145851,B98 ,Neighbourhood & Planning,Fleet,Vehicle 3rd Party Repairs,Transport Related,REVENUE
Wiltshire, http://opendatacommunities.org/id/unitary-authority/wiltshire,07/09/2018,5107259305,237408.58,FCC Recycling (UK) Ltd ,133757,DN4 ,Neighbourhood & Planning,HRC's - Lot 2,Waste Contracts,Third Party Payments,REVENUE
Wiltshire, http://opendatacommunities.org/id/unitary-authority/wiltshire,04/09/2018,1902195243,1838.68,Financial Data Management Limited ,129034,E16 ,Resources,RegistrationofElectr,Postage,Supplies and Services,REVENUE
Wiltshire, http://opendatacommunities.org/id/unitary-authority/wiltshire,24/09/2018,1902203423,3860.50,Financial Data Management Limited ,129034,E16 ,Resources,Annual Canvass,Postage,Supplies and Services,REVENUE
Wiltshire, http://opendatacommunities.org/id/unitary-authority/wiltshire,24/09/2018,1902203426,23796.00,Financial Data Management Limited ,129034,E16 ,Resources,Annual Canvass,Postage,Supplies and Services,REVENUE
Wiltshire, http://opendatacommunities.org/id/unitary-authority/wiltshire,25/09/2018,1902203581,502.46,Financial Data Management Limited ,129034,E16 ,Resources,Parish Elections,Postage,Supplies and Services,REVENUE
Wiltshire, http://opendatacommunities.org/id/unitary-authority/wiltshire,20/09/2018,5107265763,2587.00,Financial Data Management Limited ,129034,E16 ,Resources,DesignPrintTrowbridg,Printing,Supplies and Services,REVENUE
Wiltshire, http://opendatacommunities.org/id/unitary-authority/wiltshire,28/09/2018,5107260185,460.17,First Corporate Clothing Ltd ,122929,SA13,Community Services,Libraries,Clothing and Uniform Purchase,Supplies and Services,REVENUE
Wiltshire, http://opendatacommunities.org/id/unitary-authority/wiltshire,17/09/2018,1902199964,3379.80,First Friends Day Nursery ,128530,SP3 ,Children & Education,Free Enttlmnt 3 & 4y,Childcare Free Entitlement Early Years,Supplies and Services,REVENUE
Wiltshire, http://opendatacommunities.org/id/unitary-authority/wiltshire,17/09/2018,1902199965,1197.00,First Friends Day Nursery ,128530,SP3 ,Children & Education,Free Entitlement 2 Y,Childcare Free Entitlement Early Years,Supplies and Services,REVENUE
Wiltshire, http://opendatacommunities.org/id/unitary-authority/wiltshire,04/09/2018,1902195785,647.00,First Klass Taxis ,130827,SP4 ,Children & Education,SENTransport,Transport Contracts,Third Party Payments,REVENUE
Wiltshire, http://opendatacommunities.org/id/unitary-authority/wiltshire,25/09/2018,1902203564,14500.00,First Somerset  and  Avon Ltd ,101188,AB24,Neighbourhood & Planning,Concessionary Fares,Concessionary fares,Third Party Payments,REVENUE
Wiltshire, http://opendatacommunities.org/id/unitary-authority/wiltshire,17/09/2018,1902199946,9413.40,First Steps Day Nursery (BBN Ltd) ,115876,SP1 ,Children & Education,Free Enttlmnt 3 & 4y,Childcare Free Entitlement Early Years,Supplies and Services,REVENUE
Wiltshire, http://opendatacommunities.org/id/unitary-authority/wiltshire,17/09/2018,1902199947,1815.45,First Steps Day Nursery (BBN Ltd) ,115876,SP1 ,Children & Education,Free Entitlement 2 Y,Childcare Free Entitlement Early Years,Supplies and Services,REVENUE
Wiltshire, http://opendatacommunities.org/id/unitary-authority/wiltshire,19/09/2018,5107259304,331825.14,Focsa Services  uk  Ltd ,115903,BA14,Neighbourhood & Planning,West Ops - Waste,Waste Contracts,Third Party Payments,REVENUE
Wiltshire, http://opendatacommunities.org/id/unitary-authority/wiltshire,18/09/2018,5107264277,4000.00,Footprint Architects Ltd ,140690,BH1 ,Wiltshire Council,Wiltshire Council,Professional Fees,Supplies and Services,CAPITAL
Wiltshire, http://opendatacommunities.org/id/unitary-authority/wiltshire,26/09/2018,5107268085,1120.64,FORAY MOTOR GROUP LTD T/A EDWARDS FORD,110943,SP2 ,Neighbourhood & Planning,Fleet,Vehicle Repairs & Maintenance,Transport Related,REVENUE
Wiltshire, http://opendatacommunities.org/id/unitary-authority/wiltshire,06/09/2018,5107259470,5220.00,Ford Fuel Oils  Bristol ,110945,DT10,Neighbourhood & Planning,Fleet,Vehicle Fuel,Transport Related,REVENUE
Wiltshire, http://opendatacommunities.org/id/unitary-authority/wiltshire,17/09/2018,1902200101,1104.76,Forest Nursery Ltd 298 ,115917,SN14,Children & Education,Free Enttlmnt 3 & 4y,Childcare Free Entitlement Early Years,Supplies and Services,REVENUE
Wiltshire, http://opendatacommunities.org/id/unitary-authority/wiltshire,17/09/2018,1902200102,829.92,Forest Nursery Ltd 298 ,115917,SN14,Children & Education,Free Entitlement 2 Y,Childcare Free Entitlement Early Years,Supplies and Services,REVENUE
Wiltshire, http://opendatacommunities.org/id/unitary-authority/wiltshire,11/09/2018,1902197711,264.00,Forest Taxis ,101069,SN12,Neighbourhood & Planning,Mainstream Secondary,Transport Contracts,Third Party Payments,REVENUE
Wiltshire, http://opendatacommunities.org/id/unitary-authority/wiltshire,11/09/2018,1902197711,432.00,Forest Taxis ,101069,SN12,Neighbourhood & Planning,Mainstream Primary,Transport Contracts,Third Party Payments,REVENUE
Wiltshire, http://opendatacommunities.org/id/unitary-authority/wiltshire,07/09/2018,5107259126,5707.10,Foster Care Associates Limited ,110952,B60 ,Children & Education,Ext Placement & IFA,Childrens Agency Placement,Third Party Payments,REVENUE
Wiltshire, http://opendatacommunities.org/id/unitary-authority/wiltshire,07/09/2018,5107259764,3405.35,Foster Care Associates Limited ,110952,B60 ,Children & Education,UASC Under 18 Years,Childrens Agency Placement,Third Party Payments,REVENUE
Wiltshire, http://opendatacommunities.org/id/unitary-authority/wiltshire,24/09/2018,5107266678,3450.00,Foster Care Associates Limited ,110952,B60 ,Children & Education,Ext Placement & IFA,Childrens Agency Placement,Third Party Payments,REVENUE
Wiltshire, http://opendatacommunities.org/id/unitary-authority/wiltshire,24/09/2018,5107266679,3360.00,Foster Care Associates Limited ,110952,B60 ,Children & Education,Ext Placement & IFA,Childrens Agency Placement,Third Party Payments,REVENUE
Wiltshire, http://opendatacommunities.org/id/unitary-authority/wiltshire,24/09/2018,5107266680,4100.70,Foster Care Associates Limited ,110952,B60 ,Children & Education,Ext Placement & IFA,Childrens Agency Placement,Third Party Payments,REVENUE
Wiltshire, http://opendatacommunities.org/id/unitary-authority/wiltshire,24/09/2018,5107266681,4100.70,Foster Care Associates Limited ,110952,B60 ,Children & Education,Ext Placement & IFA,Childrens Agency Placement,Third Party Payments,REVENUE
Wiltshire, http://opendatacommunities.org/id/unitary-authority/wiltshire,24/09/2018,5107266682,3238.50,Foster Care Associates Limited ,110952,B60 ,Children & Education,Ext Placement & IFA,Childrens Agency Placement,Third Party Payments,REVENUE
Wiltshire, http://opendatacommunities.org/id/unitary-authority/wiltshire,24/09/2018,5107266707,3360.00,Foster Care Associates Limited ,110952,B60 ,Children & Education,Ext Placement & IFA,Childrens Agency Placement,Third Party Payments,REVENUE
Wiltshire, http://opendatacommunities.org/id/unitary-authority/wiltshire,24/09/2018,5107266708,3150.00,Foster Care Associates Limited ,110952,B60 ,Children & Education,Ext Placement & IFA,Childrens Agency Placement,Third Party Payments,REVENUE
Wiltshire, http://opendatacommunities.org/id/unitary-authority/wiltshire,24/09/2018,5107266751,5523.00,Foster Care Associates Limited ,110952,B60 ,Children & Education,Ext Placement & IFA,Childrens Agency Placement,Third Party Payments,REVENUE
Wiltshire, http://opendatacommunities.org/id/unitary-authority/wiltshire,28/09/2018,5107268653,3295.50,Foster Care Associates Limited ,110952,B60 ,Children & Education,UASC Under 18 Years,Childrens Agency Placement,Third Party Payments,REVENUE
Wiltshire, http://opendatacommunities.org/id/unitary-authority/wiltshire,28/09/2018,5107268654,3405.35,Foster Care Associates Limited ,110952,B60 ,Children & Education,UASC Under 18 Years,Childrens Agency Placement,Third Party Payments,REVENUE
Wiltshire, http://opendatacommunities.org/id/unitary-authority/wiltshire,24/09/2018,5107266700,3205.80,Fostering Foundation Ltd ,112686,BA11,Children & Education,Ext Placement & IFA,Childrens Agency Placement,Third Party Payments,REVENUE
Wiltshire, http://opendatacommunities.org/id/unitary-authority/wiltshire,24/09/2018,5107266701,3205.80,Fostering Foundation Ltd ,112686,BA11,Children & Education,Ext Placement & IFA,Childrens Agency Placement,Third Party Payments,REVENUE
Wiltshire, http://opendatacommunities.org/id/unitary-authority/wiltshire,24/09/2018,5107266702,3486.00,Fostering Foundation Ltd ,112686,BA11,Children & Education,Ext Placement & IFA,Childrens Agency Placement,Third Party Payments,REVENUE
Wiltshire, http://opendatacommunities.org/id/unitary-authority/wiltshire,24/09/2018,5107266703,3432.90,Fostering Foundation Ltd ,112686,BA11,Children & Education,Ext Placement & IFA,Childrens Agency Placement,Third Party Payments,REVENUE
Wiltshire, http://opendatacommunities.org/id/unitary-authority/wiltshire,24/09/2018,5107266704,3432.90,Fostering Foundation Ltd ,112686,BA11,Children & Education,Ext Placement & IFA,Childrens Agency Placement,Third Party Payments,REVENUE
Wiltshire, http://opendatacommunities.org/id/unitary-authority/wiltshire,28/09/2018,5107268507,280.00,Fostering Network ,115927,SE1 ,Children & Education,In house fostering t,Carer Recruitment & Training,Third Party Payments,REVENUE
Wiltshire, http://opendatacommunities.org/id/unitary-authority/wiltshire,21/09/2018,5107266452,2997.00,Fostering Solutions Ltd ,110059,BL2 ,Children & Education,Ext Placement & IFA,Childrens Agency Placement,Third Party Payments,REVENUE
Wiltshire, http://opendatacommunities.org/id/unitary-authority/wiltshire,21/09/2018,5107266455,2785.80,Fostering Solutions Ltd ,110059,BL2 ,Children & Education,Ext Placement & IFA,Childrens Agency Placement,Third Party Payments,REVENUE
Wiltshire, http://opendatacommunities.org/id/unitary-authority/wiltshire,19/09/2018,5107265756,530.00,Freelance Entry Solutions Ltd ,136752,SP2 ,Neighbourhood & Planning,DLO,Equipment Purchase,Supplies and Services,REVENUE
Wiltshire, http://opendatacommunities.org/id/unitary-authority/wiltshire,19/09/2018,5107265757,530.00,Freelance Entry Solutions Ltd ,136752,SP2 ,Neighbourhood & Planning,DLO,Equipment Purchase,Supplies and Services,REVENUE
Wiltshire, http://opendatacommunities.org/id/unitary-authority/wiltshire,20/09/2018,5107265762,549.98,Freelance Entry Solutions Ltd ,136752,SP2 ,Neighbourhood & Planning,DLO,Equipment Purchase,Supplies and Services,REVENUE
Wiltshire, http://opendatacommunities.org/id/unitary-authority/wiltshire,24/09/2018,5107267392,2636.50,Freelance Entry Solutions Ltd ,136752,SP2 ,Neighbourhood & Planning,DLO,Equipment Purchase,Supplies and Services,REVENUE
Wiltshire, http://opendatacommunities.org/id/unitary-authority/wiltshire,13/09/2018,1902199449,1035.13,FromeBus Limited ,100601,BA11,Neighbourhood & Planning,Public Transport,Transport Contracts,Third Party Payments,REVENUE
Wiltshire, http://opendatacommunities.org/id/unitary-authority/wiltshire,13/09/2018,1902199449,3333.00,FromeBus Limited ,100601,BA11,Neighbourhood & Planning,Mainstream Secondary,Transport Contracts,Third Party Payments,REVENUE
Wiltshire, http://opendatacommunities.org/id/unitary-authority/wiltshire,13/09/2018,1902199456,11009.64,FromeBus Limited ,100601,BA11,Neighbourhood & Planning,Public Transport,Transport Contracts,Third Party Payments,REVENUE
Wiltshire, http://opendatacommunities.org/id/unitary-authority/wiltshire,13/09/2018,1902199457,8037.50,FromeBus Limited ,100601,BA11,Neighbourhood & Planning,Public Transport,Transport Contracts,Third Party Payments,REVENUE
Wiltshire, http://opendatacommunities.org/id/unitary-authority/wiltshire,13/09/2018,1902199458,9193.75,FromeBus Limited ,100601,BA11,Neighbourhood & Planning,Public Transport,Transport Contracts,Third Party Payments,REVENUE
Wiltshire, http://opendatacommunities.org/id/unitary-authority/wiltshire,13/09/2018,1902199459,5915.83,FromeBus Limited ,100601,BA11,Neighbourhood & Planning,Public Transport,Transport Contracts,Third Party Payments,REVENUE
Wiltshire, http://opendatacommunities.org/id/unitary-authority/wiltshire,13/09/2018,1902199460,2850.00,FromeBus Limited ,100601,BA11,Neighbourhood & Planning,Mainstream Secondary,Transport Contracts,Third Party Payments,REVENUE
Wiltshire, http://opendatacommunities.org/id/unitary-authority/wiltshire,13/09/2018,1902199460,7687.08,FromeBus Limited ,100601,BA11,Neighbourhood & Planning,Public Transport,Transport Contracts,Third Party Payments,REVENUE
Wiltshire, http://opendatacommunities.org/id/unitary-authority/wiltshire,25/09/2018,1902203567,15289.45,FromeBus Limited ,100601,BA11,Neighbourhood & Planning,Concessionary Fares,Concessionary fares,Third Party Payments,REVENUE
Wiltshire, http://opendatacommunities.org/id/unitary-authority/wiltshire,12/09/2018,5107260501,1088.85,Frowds House Trust ,101134,SP1 ,Community Services,MH Commissioned Cont,Grants Expenditure,Supplies and Services,REVENUE
Wiltshire, http://opendatacommunities.org/id/unitary-authority/wiltshire,12/09/2018,5107260502,1088.85,Frowds House Trust ,101134,SP1 ,Community Services,MH Commissioned Cont,Grants Expenditure,Supplies and Services,REVENUE
Wiltshire, http://opendatacommunities.org/id/unitary-authority/wiltshire,18/09/2018,5107256163,5265.97,Ftct-glebe House Account ,115982,CB21,Children & Education,Ext Placement & IFA,Childrens Agency Placement,Third Party Payments,REVENUE
Wiltshire, http://opendatacommunities.org/id/unitary-authority/wiltshire,18/09/2018,5107256164,5265.97,Ftct-glebe House Account ,115982,CB21,Children & Education,Ext Placement & IFA,Childrens Agency Placement,Third Party Payments,REVENUE
Wiltshire, http://opendatacommunities.org/id/unitary-authority/wiltshire,18/09/2018,5107256165,1192.26,Ftct-glebe House Account ,115982,CB21,Children & Education,YOT,Childrens Agency Placement,Third Party Payments,REVENUE
Wiltshire, http://opendatacommunities.org/id/unitary-authority/wiltshire,18/09/2018,5107256166,3775.49,Ftct-glebe House Account ,115982,CB21,Children & Education,IndepSpecialSchFees,Childrens Agency Placement,Third Party Payments,REVENUE
Wiltshire, http://opendatacommunities.org/id/unitary-authority/wiltshire,21/09/2018,5107266070,6797.86,Fusion Fostering Ltd ,135113,TA3 ,Children & Education,Ext Placement & IFA,Childrens Agency Placement,Third Party Payments,REVENUE
Wiltshire, http://opendatacommunities.org/id/unitary-authority/wiltshire,21/09/2018,5107266072,880.00,Fusion Fostering Ltd ,135113,TA3 ,Children & Education,Ext Placement & IFA,Childrens Agency Placement,Third Party Payments,REVENUE
Wiltshire, http://opendatacommunities.org/id/unitary-authority/wiltshire,27/09/2018,5107268429,3760.71,Fusion Fostering Ltd ,135113,TA3 ,Children & Education,Ext Placement & IFA,Childrens Agency Placement,Third Party Payments,REVENUE
Wiltshire, http://opendatacommunities.org/id/unitary-authority/wiltshire,27/09/2018,5107268450,3722.14,Fusion Fostering Ltd ,135113,TA3 ,Children & Education,Ext Placement & IFA,Childrens Agency Placement,Third Party Payments,REVENUE
Wiltshire, http://opendatacommunities.org/id/unitary-authority/wiltshire,27/09/2018,5107268452,3642.86,Fusion Fostering Ltd ,135113,TA3 ,Children & Education,Ext Placement & IFA,Childrens Agency Placement,Third Party Payments,REVENUE
Wiltshire, http://opendatacommunities.org/id/unitary-authority/wiltshire,27/09/2018,5107268454,3964.29,Fusion Fostering Ltd ,135113,TA3 ,Children & Education,Ext Placement & IFA,Childrens Agency Placement,Third Party Payments,REVENUE
Wiltshire, http://opendatacommunities.org/id/unitary-authority/wiltshire,27/09/2018,5107268455,4954.59,Fusion Fostering Ltd ,135113,TA3 ,Children & Education,Ext Placement & IFA,Childrens Agency Placement,Third Party Payments,REVENUE
Wiltshire, http://opendatacommunities.org/id/unitary-authority/wiltshire,27/09/2018,5107268457,3964.29,Fusion Fostering Ltd ,135113,TA3 ,Children & Education,Ext Placement & IFA,Childrens Agency Placement,Third Party Payments,REVENUE
Wiltshire, http://opendatacommunities.org/id/unitary-authority/wiltshire,27/09/2018,5107268458,3722.14,Fusion Fostering Ltd ,135113,TA3 ,Children & Education,Ext Placement & IFA,Childrens Agency Placement,Third Party Payments,REVENUE
Wiltshire, http://opendatacommunities.org/id/unitary-authority/wiltshire,12/09/2018,5107255743,410.07,Fussell Wadman Ltd ,110971,SN10,Neighbourhood & Planning,Fleet,Vehicle Parts,Transport Related,REVENUE
Wiltshire, http://opendatacommunities.org/id/unitary-authority/wiltshire,07/09/2018,5107257436,9001.90,GatenbySanderson ,124218,LS1 ,Resources,Corporate Directors,Recruitment Costs - Other,Employee Related,REVENUE
Wiltshire, http://opendatacommunities.org/id/unitary-authority/wiltshire,07/09/2018,5107258702,3127.92,GatenbySanderson ,124218,LS1 ,Resources,Corporate Directors,Recruitment Costs - Other,Employee Related,REVENUE
Wiltshire, http://opendatacommunities.org/id/unitary-authority/wiltshire,05/09/2018,1902196578,568.75,GDP Polo ,140029,SN16,Neighbourhood & Planning,Sports & Physical Ac,Other Sporting Activities,Supplies and Services,REVENUE
Wiltshire, http://opendatacommunities.org/id/unitary-authority/wiltshire,19/09/2018,1902201374,450.00,Geoplace LLP ,129713,SW1W,Neighbourhood & Planning,Highways Asset Mgt,Corporate Memberships,Supplies and Services,REVENUE
Wiltshire, http://opendatacommunities.org/id/unitary-authority/wiltshire,06/09/2018,1902195802,8592.72,Geosight Limited ,145075,SP5 ,Health & Wellbeing,ESIF SME Initiative,Consultants Fees,Supplies and Services,REVENUE
Wiltshire, http://opendatacommunities.org/id/unitary-authority/wiltshire,26/09/2018,5107268129,821.20,Geraint John Planning Ltd ,147455,CF24,Neighbourhood & Planning,Development Control,Professional Fees,Supplies and Services,REVENUE
Wiltshire, http://opendatacommunities.org/id/unitary-authority/wiltshire,17/09/2018,1902199742,7133.78,Giant Steps (River Bourne Farm) Ltd ,144262,SP1 ,Children & Education,Free Enttlmnt 3 & 4y,Childcare Free Entitlement Early Years,Supplies and Services,REVENUE
Wiltshire, http://opendatacommunities.org/id/unitary-authority/wiltshire,17/09/2018,1902199949,8765.12,Giant Steps Day Nursery ,111008,SP5 ,Children & Education,Free Enttlmnt 3 & 4y,Childcare Free Entitlement Early Years,Supplies and Services,REVENUE
Wiltshire, http://opendatacommunities.org/id/unitary-authority/wiltshire,17/09/2018,1902199950,782.04,Giant Steps Day Nursery ,111008,SP5 ,Children & Education,Free Entitlement 2 Y,Childcare Free Entitlement Early Years,Supplies and Services,REVENUE
Wiltshire, http://opendatacommunities.org/id/unitary-authority/wiltshire,20/09/2018,5107265833,811.80,Glenny LLP ,146369,E15 ,Resources,FM Highway Depots,Premises Rental,Premises Related,REVENUE
Wiltshire, http://opendatacommunities.org/id/unitary-authority/wiltshire,20/09/2018,5107265834,1066.80,Glenny LLP ,146369,E15 ,Resources,FM Highway Depots,Premises Rental,Premises Related,REVENUE
Wiltshire, http://opendatacommunities.org/id/unitary-authority/wiltshire,17/09/2018,1902199958,4026.20,Glitterbugs Nursery ,121006,BA14,Children & Education,Free Enttlmnt 3 & 4y,Childcare Free Entitlement Early Years,Supplies and Services,REVENUE
Wiltshire, http://opendatacommunities.org/id/unitary-authority/wiltshire,17/09/2018,1902199959,279.30,Glitterbugs Nursery ,121006,BA14,Children & Education,Free Entitlement 2 Y,Childcare Free Entitlement Early Years,Supplies and Services,REVENUE
Wiltshire, http://opendatacommunities.org/id/unitary-authority/wiltshire,28/09/2018,5107259056,1770.00,Global Radio Services Limited ,111018,RG31,Children & Education,In house fostering t,Carer Recruitment & Training,Third Party Payments,REVENUE
Wiltshire, http://opendatacommunities.org/id/unitary-authority/wiltshire,28/09/2018,5107259057,3600.00,Global Radio Services Limited ,111018,RG31,Children & Education,In house fostering t,Carer Recruitment & Training,Third Party Payments,REVENUE
Wiltshire, http://opendatacommunities.org/id/unitary-authority/wiltshire,04/09/2018,1902195784,675.00,Gloucestershire County Council ,111020,GL1 ,Neighbourhood & Planning,Mainstream Secondary,Transport Contract -  Bus Season Tickets,Third Party Payments,REVENUE
Wiltshire, http://opendatacommunities.org/id/unitary-authority/wiltshire,11/09/2018,5107259974,6002.19,Gloucestershire County Council ,111020,GL1 ,Children & Education,Wiltshire Pupils NWS,Educational Fees,Supplies and Services,REVENUE
Wiltshire, http://opendatacommunities.org/id/unitary-authority/wiltshire,17/09/2018,1902199735,1344.00,Godophin Prep ,116134,SP1 ,Children & Education,Free Enttlmnt 3 & 4y,Childcare Free Entitlement Early Years,Supplies and Services,REVENUE
Wiltshire, http://opendatacommunities.org/id/unitary-authority/wiltshire,17/09/2018,1902200085,3931.20,Gooseberry Bush (Kemble) ,127731,GL7 ,Children & Education,Free Enttlmnt 3 & 4y,Childcare Free Entitlement Early Years,Supplies and Services,REVENUE
Wiltshire, http://opendatacommunities.org/id/unitary-authority/wiltshire,17/09/2018,1902199963,7909.90,Gooseberry Bush Day Nursery ,127606,SN14,Children & Education,Free Enttlmnt 3 & 4y,Childcare Free Entitlement Early Years,Supplies and Services,REVENUE
Wiltshire, http://opendatacommunities.org/id/unitary-authority/wiltshire,06/09/2018,5107259650,684.00,Gov Net Communications ,116147,M1 6,Resources,Democracy & Perform,Conference Fees,Supplies and Services,REVENUE
Wiltshire, http://opendatacommunities.org/id/unitary-authority/wiltshire,27/09/2018,5107268364,1496.00,Great Green Systems Limited ,111040,LS1 ,Wiltshire Council,Wiltshire Council,Waste Contracts,Third Party Payments,CAPITAL
Wiltshire, http://opendatacommunities.org/id/unitary-authority/wiltshire,27/09/2018,5107268365,1188.00,Great Green Systems Limited ,111040,LS1 ,Wiltshire Council,Wiltshire Council,Waste Contracts,Third Party Payments,CAPITAL
Wiltshire, http://opendatacommunities.org/id/unitary-authority/wiltshire,19/09/2018,1902201455,2255.73,Great Western Hospitals NHS FT ,131775,WF3 ,Community Services,Hospital - Great Wes,Agency Staff,Employee Related,REVENUE
Wiltshire, http://opendatacommunities.org/id/unitary-authority/wiltshire,26/09/2018,1902203428,2255.73,Great Western Hospitals NHS FT ,131775,WF3 ,Community Services,Hospital - Great Wes,Agency Staff,Employee Related,REVENUE
Wiltshire, http://opendatacommunities.org/id/unitary-authority/wiltshire,11/09/2018,5107260140,31610.36,Great Western Hospitals NHS Trust ,111037,SN3 ,Resources,Coroner,Mortuary Fees,Supplies and Services,REVENUE
Wiltshire, http://opendatacommunities.org/id/unitary-authority/wiltshire,27/09/2018,5107268440,2704.00,Greatwood ,125368,SN8 ,Children & Education,SpecialistProvision,Educational Fees,Supplies and Services,REVENUE
Wiltshire, http://opendatacommunities.org/id/unitary-authority/wiltshire,17/09/2018,1902199941,11224.20,Green Shoots Day Nursery 991 ,111041,BA14,Children & Education,Free Enttlmnt 3 & 4y,Childcare Free Entitlement Early Years,Supplies and Services,REVENUE
Wiltshire, http://opendatacommunities.org/id/unitary-authority/wiltshire,17/09/2018,1902199942,3072.30,Green Shoots Day Nursery 991 ,111041,BA14,Children & Education,Free Entitlement 2 Y,Childcare Free Entitlement Early Years,Supplies and Services,REVENUE
Wiltshire, http://opendatacommunities.org/id/unitary-authority/wiltshire,11/09/2018,1902197598,908.76,Green Square Group ,139743,SN14,Wiltshire Council,Wiltshire Council,Professional Fees,Supplies and Services,CAPITAL
Wiltshire, http://opendatacommunities.org/id/unitary-authority/wiltshire,11/09/2018,1902197623,571.92,Green Square Group ,139743,SN14,Wiltshire Council,Wiltshire Council,Professional Fees,Supplies and Services,CAPITAL
Wiltshire, http://opendatacommunities.org/id/unitary-authority/wiltshire,06/09/2018,5107259437,2189.10,Grist Environmental Ltd ,100594,SN10,Neighbourhood & Planning,Env & Enforcement,Other Contracts,Third Party Payments,REVENUE
Wiltshire, http://opendatacommunities.org/id/unitary-authority/wiltshire,05/09/2018,1902196704,1197.00,Guy's and St Thomas'NHS Foundation ,141197,SE1 ,Neighbourhood & Planning,Sexual Health Commun,Public Health Commissioning,Supplies and Services,REVENUE
Wiltshire, http://opendatacommunities.org/id/unitary-authority/wiltshire,10/09/2018,1902197529,315.00,H J Knee Ltd ,100139,BA14,Resources,Social Fund,Social Fund Payments,Capital charges and Expenditure,REVENUE
Wiltshire, http://opendatacommunities.org/id/unitary-authority/wiltshire,18/09/2018,5107264294,51954.20,Halsall Construction Limited ,111075,BA2 ,Wiltshire Council,Wiltshire Council,Buildings Minor Alterations,Premises Related,CAPITAL
Wiltshire, http://opendatacommunities.org/id/unitary-authority/wiltshire,11/09/2018,1902197589,1493.50,Hampshire Mobility Services Ltd ,142288,SO51,Wiltshire Council,Wiltshire Council,Other Contracts,Third Party Payments,CAPITAL
Wiltshire, http://opendatacommunities.org/id/unitary-authority/wiltshire,11/09/2018,1902197785,459.50,Hampshire Mobility Services Ltd ,142288,SO51,Wiltshire Council,Wiltshire Council,Other Contracts,Third Party Payments,CAPITAL
Wiltshire, http://opendatacommunities.org/id/unitary-authority/wiltshire,19/09/2018,1902201360,4061.00,Hampshire Mobility Services Ltd ,142288,SO51,Wiltshire Council,Wiltshire Council,Other Contracts,Third Party Payments,CAPITAL
Wiltshire, http://opendatacommunities.org/id/unitary-authority/wiltshire,19/09/2018,1902201469,1671.50,Hampshire Mobility Services Ltd ,142288,SO51,Wiltshire Council,Wiltshire Council,Other Contracts,Third Party Payments,CAPITAL
Wiltshire, http://opendatacommunities.org/id/unitary-authority/wiltshire,27/09/2018,1902210020,1540.00,Hampshire Mobility Services Ltd ,142288,SO51,Wiltshire Council,Wiltshire Council,Other Contracts,Third Party Payments,CAPITAL
Wiltshire, http://opendatacommunities.org/id/unitary-authority/wiltshire,17/09/2018,1902199825,3775.58,Happy Days Nursery ,116315,SN15,Children & Education,Free Enttlmnt 3 & 4y,Childcare Free Entitlement Early Years,Supplies and Services,REVENUE
Wiltshire, http://opendatacommunities.org/id/unitary-authority/wiltshire,17/09/2018,1902199826,279.30,Happy Days Nursery ,116315,SN15,Children & Education,Free Entitlement 2 Y,Childcare Free Entitlement Early Years,Supplies and Services,REVENUE
Wiltshire, http://opendatacommunities.org/id/unitary-authority/wiltshire,19/09/2018,1902195773,312.50,Harrow Green (Bristol) ,125875,BS11,Resources,Facilities Managemen,Equipment Purchase,Supplies and Services,REVENUE
Wiltshire, http://opendatacommunities.org/id/unitary-authority/wiltshire,19/09/2018,1902195774,1175.00,Harrow Green (Bristol) ,125875,BS11,Resources,Salisbury Recovery,Equipment Purchase,Supplies and Services,REVENUE
Wiltshire, http://opendatacommunities.org/id/unitary-authority/wiltshire,14/09/2018,1902194776,508.50,Haymarket Publishing Services Ltd ,124610,TW1 ,Neighbourhood & Planning,City Deals,Conference Fees,Supplies and Services,REVENUE
Wiltshire, http://opendatacommunities.org/id/unitary-authority/wiltshire,28/09/2018,5107268600,299.89,Haystack Dryers ,130013,BH21,Neighbourhood & Planning,Five Rivers,Equipment Maintenance,Supplies and Services,REVENUE
Wiltshire, http://opendatacommunities.org/id/unitary-authority/wiltshire,27/09/2018,5107268492,15057.01,Headway Adolescent Resources Limite ,140291,GL15,Children & Education,Ext Placement & IFA,Childrens Agency Placement,Third Party Payments,REVENUE
Wiltshire, http://opendatacommunities.org/id/unitary-authority/wiltshire,27/09/2018,5107268493,15057.01,Headway Adolescent Resources Limite ,140291,GL15,Children & Education,Ext Placement & IFA,Childrens Agency Placement,Third Party Payments,REVENUE
Wiltshire, http://opendatacommunities.org/id/unitary-authority/wiltshire,28/09/2018,5107268622,14571.30,Headway Adolescent Resources Limite ,140291,GL15,Children & Education,Ext Placement & IFA,Childrens Agency Placement,Third Party Payments,REVENUE
Wiltshire, http://opendatacommunities.org/id/unitary-authority/wiltshire,28/09/2018,5107268623,14571.30,Headway Adolescent Resources Limite ,140291,GL15,Children & Education,Ext Placement & IFA,Childrens Agency Placement,Third Party Payments,REVENUE
Wiltshire, http://opendatacommunities.org/id/unitary-authority/wiltshire,21/09/2018,1902203001,952.50,Health and Well Being ,147401,SP1 ,Resources,Salisbury Recovery,Grants Expenditure,Supplies and Services,REVENUE
Wiltshire, http://opendatacommunities.org/id/unitary-authority/wiltshire,26/09/2018,5107268382,414.60,Heritage Insider Ltd ,147390,BA2 ,Community Services,Collecting Cultures,Staff Training - General,Employee Related,REVENUE
Wiltshire, http://opendatacommunities.org/id/unitary-authority/wiltshire,17/09/2018,1902200248,4387.00,Heytesbury Hedgehogs 334 ,116409,BA12,Children & Education,Free Enttlmnt 3 & 4y,Childcare Free Entitlement Early Years,Supplies and Services,REVENUE
Wiltshire, http://opendatacommunities.org/id/unitary-authority/wiltshire,17/09/2018,1902200249,279.30,Heytesbury Hedgehogs 334 ,116409,BA12,Children & Education,Free Entitlement 2 Y,Childcare Free Entitlement Early Years,Supplies and Services,REVENUE
Wiltshire, http://opendatacommunities.org/id/unitary-authority/wiltshire,06/09/2018,1902196806,3500.00,HG & AP  Vaughan Ltd - DFG Only ,116244,BA11,Wiltshire Council,Wiltshire Council,Other Contracts,Third Party Payments,CAPITAL
Wiltshire, http://opendatacommunities.org/id/unitary-authority/wiltshire,11/09/2018,1902197587,6400.00,HG & AP  Vaughan Ltd - DFG Only ,116244,BA11,Wiltshire Council,Wiltshire Council,Other Contracts,Third Party Payments,CAPITAL
Wiltshire, http://opendatacommunities.org/id/unitary-authority/wiltshire,11/09/2018,1902197784,7338.87,HG & AP  Vaughan Ltd - DFG Only ,116244,BA11,Wiltshire Council,Wiltshire Council,Other Contracts,Third Party Payments,CAPITAL
Wiltshire, http://opendatacommunities.org/id/unitary-authority/wiltshire,20/09/2018,5107265827,28500.00,High Street Estates ,116420,M7 4,Resources,Investment Estate,Premises Rental,Premises Related,REVENUE
Wiltshire, http://opendatacommunities.org/id/unitary-authority/wiltshire,27/09/2018,5107259453,21828.57,Hillcrest Care Limited t/a Orange Grove Fostercare,137138,PO9 ,Children & Education,Ext Placement & IFA,Childrens Agency Placement,Third Party Payments,REVENUE
Wiltshire, http://opendatacommunities.org/id/unitary-authority/wiltshire,28/09/2018,5107265835,16230.00,Hillcrest Care Limited t/a Orange Grove Fostercare,137138,PO9 ,Children & Education,Ext Placement & IFA,Childrens Agency Placement,Third Party Payments,REVENUE
Wiltshire, http://opendatacommunities.org/id/unitary-authority/wiltshire,04/09/2018,1902195723,456.64,Hills Waste Solutions Limited ,111132,SN1 ,Resources,FM Leisure Centres,Waste / Refuse Costs,Supplies and Services,REVENUE
Wiltshire, http://opendatacommunities.org/id/unitary-authority/wiltshire,04/09/2018,1902195731,1318.50,Hills Waste Solutions Limited ,111132,SN1 ,Resources,County Hall Complex,Waste / Refuse Costs,Supplies and Services,REVENUE
Wiltshire, http://opendatacommunities.org/id/unitary-authority/wiltshire,04/09/2018,1902195733,660.27,Hills Waste Solutions Limited ,111132,SN1 ,Resources,5 Rivers LC,Waste / Refuse Costs,Supplies and Services,REVENUE
Wiltshire, http://opendatacommunities.org/id/unitary-authority/wiltshire,04/09/2018,1902195735,372.46,Hills Waste Solutions Limited ,111132,SN1 ,Resources,Corsham Campus,Waste / Refuse Costs,Supplies and Services,REVENUE
Wiltshire, http://opendatacommunities.org/id/unitary-authority/wiltshire,18/09/2018,1902201034,819.08,Hills Waste Solutions Limited ,111132,SN1 ,Resources,5 Rivers LC,Waste / Refuse Costs,Supplies and Services,REVENUE
Wiltshire, http://opendatacommunities.org/id/unitary-authority/wiltshire,18/09/2018,1902201049,270.88,Hills Waste Solutions Limited ,111132,SN1 ,Resources,Corsham Campus,Waste / Refuse Costs,Supplies and Services,REVENUE
Wiltshire, http://opendatacommunities.org/id/unitary-authority/wiltshire,26/09/2018,1902203624,270.88,Hills Waste Solutions Limited ,111132,SN1 ,Resources,Monkton Park,Waste / Refuse Costs,Supplies and Services,REVENUE
Wiltshire, http://opendatacommunities.org/id/unitary-authority/wiltshire,26/09/2018,1902203651,1254.86,Hills Waste Solutions Limited ,111132,SN1 ,Resources,5 Rivers LC,Waste / Refuse Costs,Supplies and Services,REVENUE
Wiltshire, http://opendatacommunities.org/id/unitary-authority/wiltshire,06/09/2018,5107251035,1531.20,Hills Waste Solutions Limited ,111132,SN1 ,Neighbourhood & Planning,Fleet,Vehicle Repairs & Maintenance,Transport Related,REVENUE
Wiltshire, http://opendatacommunities.org/id/unitary-authority/wiltshire,06/09/2018,5107251037,264.55,Hills Waste Solutions Limited ,111132,SN1 ,Neighbourhood & Planning,Fleet,Vehicle Repairs & Maintenance,Transport Related,REVENUE
Wiltshire, http://opendatacommunities.org/id/unitary-authority/wiltshire,06/09/2018,5107251041,1304.29,Hills Waste Solutions Limited ,111132,SN1 ,Neighbourhood & Planning,Fleet,Vehicle Repairs & Maintenance,Transport Related,REVENUE
Wiltshire, http://opendatacommunities.org/id/unitary-authority/wiltshire,06/09/2018,5107251043,761.75,Hills Waste Solutions Limited ,111132,SN1 ,Neighbourhood & Planning,Fleet,Vehicle Repairs & Maintenance,Transport Related,REVENUE
Wiltshire, http://opendatacommunities.org/id/unitary-authority/wiltshire,04/09/2018,5107259306,46993.25,Hills Waste Solutions Limited ,111132,SN1 ,Neighbourhood & Planning,Hills Contract,Waste Contracts,Third Party Payments,REVENUE
Wiltshire, http://opendatacommunities.org/id/unitary-authority/wiltshire,11/09/2018,5107259307,35226.05,Hills Waste Solutions Limited ,111132,SN1 ,Neighbourhood & Planning,Hills Waste Recyclin,Waste Contracts,Third Party Payments,REVENUE
Wiltshire, http://opendatacommunities.org/id/unitary-authority/wiltshire,11/09/2018,5107259308,550676.11,Hills Waste Solutions Limited ,111132,SN1 ,Neighbourhood & Planning,MBT Contract,Waste Contracts,Third Party Payments,REVENUE
Wiltshire, http://opendatacommunities.org/id/unitary-authority/wiltshire,11/09/2018,5107259309,131867.49,Hills Waste Solutions Limited ,111132,SN1 ,Neighbourhood & Planning,Landfill Tax Waste D,Landfill Tax,Third Party Payments,REVENUE
Wiltshire, http://opendatacommunities.org/id/unitary-authority/wiltshire,12/09/2018,5107259310,127824.47,Hills Waste Solutions Limited ,111132,SN1 ,Neighbourhood & Planning,Landfill Tax Waste D,Landfill Tax,Third Party Payments,REVENUE
Wiltshire, http://opendatacommunities.org/id/unitary-authority/wiltshire,12/09/2018,5107259311,460195.95,Hills Waste Solutions Limited ,111132,SN1 ,Neighbourhood & Planning,Hills Contract,Waste Contracts,Third Party Payments,REVENUE
Wiltshire, http://opendatacommunities.org/id/unitary-authority/wiltshire,11/09/2018,5107259312,392620.80,Hills Waste Solutions Limited ,111132,SN1 ,Neighbourhood & Planning,Lakeside Contract,Waste Contracts,Third Party Payments,REVENUE
Wiltshire, http://opendatacommunities.org/id/unitary-authority/wiltshire,11/09/2018,5107259556,8335.69,Hills Waste Solutions Limited ,111132,SN1 ,Neighbourhood & Planning,Hills Waste Recyclin,Waste Contracts,Third Party Payments,REVENUE
Wiltshire, http://opendatacommunities.org/id/unitary-authority/wiltshire,07/09/2018,5107259557,19983.26,Hills Waste Solutions Limited ,111132,SN1 ,Neighbourhood & Planning,MBT Contract,Waste Contracts,Third Party Payments,REVENUE
Wiltshire, http://opendatacommunities.org/id/unitary-authority/wiltshire,11/09/2018,5107259558,20823.00,Hills Waste Solutions Limited ,111132,SN1 ,Neighbourhood & Planning,Lakeside Contract,Waste Contracts,Third Party Payments,REVENUE
Wiltshire, http://opendatacommunities.org/id/unitary-authority/wiltshire,11/09/2018,5107259559,12770.06,Hills Waste Solutions Limited ,111132,SN1 ,Neighbourhood & Planning,Hills Waste Recyclin,Waste Contracts,Third Party Payments,REVENUE
Wiltshire, http://opendatacommunities.org/id/unitary-authority/wiltshire,11/09/2018,5107259560,13346.44,Hills Waste Solutions Limited ,111132,SN1 ,Neighbourhood & Planning,Hills Waste Recyclin,Waste Contracts,Third Party Payments,REVENUE
Wiltshire, http://opendatacommunities.org/id/unitary-authority/wiltshire,11/09/2018,5107259561,4521.77,Hills Waste Solutions Limited ,111132,SN1 ,Neighbourhood & Planning,Hills Waste Recyclin,Waste Contracts,Third Party Payments,REVENUE
Wiltshire, http://opendatacommunities.org/id/unitary-authority/wiltshire,11/09/2018,5107259562,1466.16,Hills Waste Solutions Limited ,111132,SN1 ,Neighbourhood & Planning,Hills Waste Recyclin,Waste Contracts,Third Party Payments,REVENUE
Wiltshire, http://opendatacommunities.org/id/unitary-authority/wiltshire,07/09/2018,5107259563,1156.84,Hills Waste Solutions Limited ,111132,SN1 ,Neighbourhood & Planning,Hills Waste Recyclin,Waste Contracts,Third Party Payments,REVENUE
Wiltshire, http://opendatacommunities.org/id/unitary-authority/wiltshire,06/09/2018,5107259564,2970.00,Hills Waste Solutions Limited ,111132,SN1 ,Neighbourhood & Planning,Hills Contract,Waste Contracts,Third Party Payments,REVENUE
Wiltshire, http://opendatacommunities.org/id/unitary-authority/wiltshire,06/09/2018,5107259565,11648.07,Hills Waste Solutions Limited ,111132,SN1 ,Neighbourhood & Planning,Hills Waste Recyclin,Waste Contracts,Third Party Payments,REVENUE
Wiltshire, http://opendatacommunities.org/id/unitary-authority/wiltshire,11/09/2018,5107259987,44626.72,Hills Waste Solutions Limited ,111132,SN1 ,Neighbourhood & Planning,Hills Waste Recyclin,Waste Contracts,Third Party Payments,REVENUE
Wiltshire, http://opendatacommunities.org/id/unitary-authority/wiltshire,13/09/2018,5107260208,45267.81,Hills Waste Solutions Limited ,111132,SN1 ,Neighbourhood & Planning,MBT Contract,Waste Contracts,Third Party Payments,REVENUE
Wiltshire, http://opendatacommunities.org/id/unitary-authority/wiltshire,13/09/2018,5107260209,38542.42,Hills Waste Solutions Limited ,111132,SN1 ,Neighbourhood & Planning,MBT Contract,Waste Contracts,Third Party Payments,REVENUE
Wiltshire, http://opendatacommunities.org/id/unitary-authority/wiltshire,13/09/2018,5107260550,31906.85,Hills Waste Solutions Limited ,111132,SN1 ,Neighbourhood & Planning,MBT Contract,Waste Contracts,Third Party Payments,REVENUE
Wiltshire, http://opendatacommunities.org/id/unitary-authority/wiltshire,17/09/2018,1902199740,4580.72,Hilmarton Parish Pre-sch Playgroup ,116435,SN11,Children & Education,Free Enttlmnt 3 & 4y,Childcare Free Entitlement Early Years,Supplies and Services,REVENUE
Wiltshire, http://opendatacommunities.org/id/unitary-authority/wiltshire,17/09/2018,1902199741,279.30,Hilmarton Parish Pre-sch Playgroup ,116435,SN11,Children & Education,Free Entitlement 2 Y,Childcare Free Entitlement Early Years,Supplies and Services,REVENUE
Wiltshire, http://opendatacommunities.org/id/unitary-authority/wiltshire,14/09/2018,1902199645,250.00,Hindon Surgery ,133990,SP3 ,Neighbourhood & Planning,Smoking-Mgt & Commss,Public Health Commissioning,Supplies and Services,REVENUE
Wiltshire, http://opendatacommunities.org/id/unitary-authority/wiltshire,11/09/2018,1902197782,385.00,HMCTS ,125542,-,Community Services,COP APPLICATION FEES,Miscellaneous Costs,Supplies and Services,REVENUE
Wiltshire, http://opendatacommunities.org/id/unitary-authority/wiltshire,27/09/2018,1902209680,385.00,HMCTS ,125542,-,Community Services,COP APPLICATION FEES,Miscellaneous Costs,Supplies and Services,REVENUE
Wiltshire, http://opendatacommunities.org/id/unitary-authority/wiltshire,27/09/2018,1902210000,385.00,HMCTS ,125542,-,Community Services,COP APPLICATION FEES,Miscellaneous Costs,Supplies and Services,REVENUE
Wiltshire, http://opendatacommunities.org/id/unitary-authority/wiltshire,13/09/2018,5107255794,470.00,Holex ,145717,WR11,Children & Education,Adult Comm Learning,Professional Subscriptions/Memberships,Employee Related,REVENUE
Wiltshire, http://opendatacommunities.org/id/unitary-authority/wiltshire,27/09/2018,1902209664,3780.00,Home Adaptations ,126701,SN14,Wiltshire Council,Wiltshire Council,Other Contracts,Third Party Payments,CAPITAL
Wiltshire, http://opendatacommunities.org/id/unitary-authority/wiltshire,27/09/2018,5107268478,257.77,Hop Back Brewery PLC ,138022,SP5 ,Neighbourhood & Planning,City Hall,Vending costs,Supplies and Services,REVENUE
Wiltshire, http://opendatacommunities.org/id/unitary-authority/wiltshire,27/09/2018,5107268479,376.18,Hop Back Brewery PLC ,138022,SP5 ,Neighbourhood & Planning,City Hall,Vending costs,Supplies and Services,REVENUE
Wiltshire, http://opendatacommunities.org/id/unitary-authority/wiltshire,05/09/2018,1902196587,7281.16,Housemark Online Services Ltd ,116512,CV4 ,Community Services,HRA System Supp Perf,Tenants� Contents Insurance,Premises Related,REVENUE
Wiltshire, http://opendatacommunities.org/id/unitary-authority/wiltshire,18/09/2018,1902201086,920.08,Hoval Ltd ,146854,NG24,Neighbourhood & Planning,Biomass Prog Schools,Premises Related Other Maintenance Costs,Premises Related,REVENUE
Wiltshire, http://opendatacommunities.org/id/unitary-authority/wiltshire,11/09/2018,5107259993,4000.00,HubSpot Ireland Ltd ,147346,DUBL,Neighbourhood & Planning,Growth Hub - Round 3,Professional Fees,Supplies and Services,REVENUE
Wiltshire, http://opendatacommunities.org/id/unitary-authority/wiltshire,25/09/2018,1902201110,336.19,Hunt's Foodservice Limited ,134470,DT9 ,Neighbourhood & Planning,Five Rivers LC Cafe,Catering,Supplies and Services,REVENUE
Wiltshire, http://opendatacommunities.org/id/unitary-authority/wiltshire,11/09/2018,1902186099,280.18,Hunt's Foodservices Ltd ,140838,DT9 ,Neighbourhood & Planning,Five Rivers LC Cafe,Catering,Supplies and Services,REVENUE
Wiltshire, http://opendatacommunities.org/id/unitary-authority/wiltshire,04/09/2018,5107259256,2550.00,Hydrock Consultants ,129156,BS32,Wiltshire Council,Wiltshire Council,Professional Fees,Supplies and Services,CAPITAL
Wiltshire, http://opendatacommunities.org/id/unitary-authority/wiltshire,04/09/2018,5107259295,2600.00,Hydrock Consultants ,129156,BS32,Wiltshire Council,Wiltshire Council,Consultants Fees,Supplies and Services,CAPITAL
Wiltshire, http://opendatacommunities.org/id/unitary-authority/wiltshire,04/09/2018,5107259296,2500.00,Hydrock Consultants ,129156,BS32,Wiltshire Council,Wiltshire Council,Consultants Fees,Supplies and Services,CAPITAL
Wiltshire, http://opendatacommunities.org/id/unitary-authority/wiltshire,28/09/2018,5107265039,2330.00,Hydrock Consultants ,129156,BS32,Wiltshire Council,Wiltshire Council,Professional Fees,Supplies and Services,CAPITAL
Wiltshire, http://opendatacommunities.org/id/unitary-authority/wiltshire,06/09/2018,5107259659,23082.36,Ian Williams Ltd ,100425,BS37,Neighbourhood & Planning,Void Repairs-Contrct,Premises Related Other Maintenance Costs,Premises Related,REVENUE
Wiltshire, http://opendatacommunities.org/id/unitary-authority/wiltshire,21/09/2018,5107260551,13026.98,Ian Williams Ltd ,100425,BS37,Wiltshire Council,Wiltshire Council,Premises Related Other Maintenance Costs,Premises Related,CAPITAL
Wiltshire, http://opendatacommunities.org/id/unitary-authority/wiltshire,21/09/2018,5107260552,2162.69,Ian Williams Ltd ,100425,BS37,Wiltshire Council,Wiltshire Council,Premises Related Other Maintenance Costs,Premises Related,CAPITAL
Wiltshire, http://opendatacommunities.org/id/unitary-authority/wiltshire,21/09/2018,5107260553,22887.46,Ian Williams Ltd ,100425,BS37,Wiltshire Council,Wiltshire Council,Premises Related Other Maintenance Costs,Premises Related,CAPITAL
Wiltshire, http://opendatacommunities.org/id/unitary-authority/wiltshire,21/09/2018,5107260560,45940.50,Ian Williams Ltd ,100425,BS37,Wiltshire Council,Wiltshire Council,Premises Related Other Maintenance Costs,Premises Related,CAPITAL
Wiltshire, http://opendatacommunities.org/id/unitary-authority/wiltshire,21/09/2018,5107260588,64990.71,Ian Williams Ltd ,100425,BS37,Wiltshire Council,Wiltshire Council,Premises Related Other Maintenance Costs,Premises Related,CAPITAL
Wiltshire, http://opendatacommunities.org/id/unitary-authority/wiltshire,21/09/2018,5107260589,44880.55,Ian Williams Ltd ,100425,BS37,Wiltshire Council,Wiltshire Council,Premises Related Other Maintenance Costs,Premises Related,CAPITAL
Wiltshire, http://opendatacommunities.org/id/unitary-authority/wiltshire,21/09/2018,5107260600,91019.22,Ian Williams Ltd ,100425,BS37,Wiltshire Council,Wiltshire Council,Premises Related Other Maintenance Costs,Premises Related,CAPITAL
Wiltshire, http://opendatacommunities.org/id/unitary-authority/wiltshire,21/09/2018,5107260601,26050.16,Ian Williams Ltd ,100425,BS37,Wiltshire Council,Wiltshire Council,Premises Related Other Maintenance Costs,Premises Related,CAPITAL
Wiltshire, http://opendatacommunities.org/id/unitary-authority/wiltshire,21/09/2018,5107260602,39242.07,Ian Williams Ltd ,100425,BS37,Wiltshire Council,Wiltshire Council,Premises Related Other Maintenance Costs,Premises Related,CAPITAL
Wiltshire, http://opendatacommunities.org/id/unitary-authority/wiltshire,21/09/2018,5107260603,60614.35,Ian Williams Ltd ,100425,BS37,Wiltshire Council,Wiltshire Council,Premises Related Other Maintenance Costs,Premises Related,CAPITAL
Wiltshire, http://opendatacommunities.org/id/unitary-authority/wiltshire,26/09/2018,5107268377,14242.37,Ian Williams Ltd ,100425,BS37,Neighbourhood & Planning,Void Repairs-Contrct,Premises Related Other Maintenance Costs,Premises Related,REVENUE
Wiltshire, http://opendatacommunities.org/id/unitary-authority/wiltshire,06/09/2018,1902197281,3976.53,idverde ,129086,CV5 ,Neighbourhood & Planning,Bem Hth Specif Cost,Cleaning,Premises Related,REVENUE
Wiltshire, http://opendatacommunities.org/id/unitary-authority/wiltshire,06/09/2018,1902197281,3976.53,idverde ,129086,CV5 ,Neighbourhood & Planning,Friary Specif Costs,Cleaning,Premises Related,REVENUE
Wiltshire, http://opendatacommunities.org/id/unitary-authority/wiltshire,06/09/2018,1902197282,3976.53,idverde ,129086,CV5 ,Neighbourhood & Planning,Bem Hth Specif Cost,Cleaning,Premises Related,REVENUE
Wiltshire, http://opendatacommunities.org/id/unitary-authority/wiltshire,06/09/2018,1902197282,3976.53,idverde ,129086,CV5 ,Neighbourhood & Planning,Friary Specif Costs,Cleaning,Premises Related,REVENUE
Wiltshire, http://opendatacommunities.org/id/unitary-authority/wiltshire,11/09/2018,1902197618,3976.53,idverde ,129086,CV5 ,Neighbourhood & Planning,Bem Hth Specif Cost,Cleaning,Premises Related,REVENUE
Wiltshire, http://opendatacommunities.org/id/unitary-authority/wiltshire,11/09/2018,1902197618,3976.53,idverde ,129086,CV5 ,Neighbourhood & Planning,Friary Specif Costs,Cleaning,Premises Related,REVENUE
Wiltshire, http://opendatacommunities.org/id/unitary-authority/wiltshire,11/09/2018,1902197661,313.36,idverde ,129086,CV5 ,Resources,SAFM - Other Assets,Grounds Maintenance,Premises Related,REVENUE
